{"text_format":"1","workbook":"xlsx","n_sheets":11,"sheets":["Front Page","Disclaimer","RAG ","Option 1 OAN ","Option 2 London Plan","Policy 43 Man COU Nonshop Front","Policy 46 Pro of Particular Use","Policy 52 Making Safer Places ","Summary table","Summary","Pivot Chart"],"not_rendered":{"charts":1,"images":4,"macros":1,"external_links":38,"defined_names":63,"comments":0,"pivot_tables":1},"unopened":[],"bounds":{"document_bytes":16777216,"sheet_cells":100000,"rows_first":2000,"rows_last":500,"rows_between":2000,"halvings":0,"cell_chars":16384,"cell_head_chars":4096},"cells_cut":0,"cells_raw":0,"read":"whole","date_system":"1900"}

{"sheet":"Front Page","index":0,"n_rows":30,"n_cols":11,"rows_kept":30,"cut":false,"hidden":false,"merged":[[9,2,10,10],[15,2,15,10],[14,2,14,10],[13,2,13,10]]}
[]
[]
[]
[]
[]
[]
[]
[]
[]
[]
[]
[]
[]
[null,null,"Waltham Forest Submission Local Plan Part 1 \nSustainability Appriasal Examination Addendum"]
[]
[null,null,"Appendix A: Assessment of Scale of Growth OptionsAssessment Matrices"]
[]
[]
[]
[]
[]
[]
[null,null,null,null,null,null,null,null,null,null,"Prepared by:"]
[null,null,null,null,null,null,null,null,null,null,"ClearLead Consulting Ltd "]
[]
[]
[null,null,null,null,null,null,null,null,null,null,"Date: 27/09/2022"]
[]
[]
[null,null,null,null,null,null,null,null,null,null,"Project Ref: C0093"]

{"sheet":"Disclaimer","index":1,"n_rows":41,"n_cols":7,"rows_kept":41,"cut":false,"hidden":false,"merged":[[21,2,34,6],[37,1,37,2],[37,6,37,7],[40,6,40,7],[40,1,40,2],[38,1,38,2],[38,6,38,7],[39,1,39,2],[39,6,39,7]]}
[]
[]
[]
[]
[null,null,null,"Contract  No:","C0093"]
[]
[null,null,null,"Issue",3]
[]
[null,null,null,"Author        ","Vicky Pearson"]
[]
[]
[]
[]
[null,null,null,"Project Director                     ","Jo Mitchell"]
[]
[]
[]
[]
[null,null,null,"Date:","2022-09-27"]
[]
[]
[null,null,"LIMITATIONS\nThis report has been prepared by ClearLead Consulting Limited solely for the use of the Client and those parties with whom a warranty agreement has been executed, or with whom an assignment has been agreed. Should any third party wish to use or rely upon the contents of the report, written approval must be sought from ClearLead Consulting Limited; a charge may be levied against such approval.\nClearLead Consulting Limited accepts no responsibility or liability for:\na) the consequences of this document being used for any purpose or project other than for which it was commissioned, and\nb)  the use of this document by any third party with whom an agreement has not been executed.\nThe work undertaken to provide the basis of this report comprised a study of available documented information from a variety of sources (including the Client) and discussions with relevant authorities and other interested parties.  The opinions given in this report have been dictated by the finite data on which they are based and are relevant only to the purpose for which the report was commissioned. The information reviewed should not be considered exhaustive and has been accepted in good faith as providing true and representative data pertaining to site conditions. Should additional information become available which may affect the opinions expressed in this report, ClearLead Consulting Limited reserves the right to review such information and, if warranted, to modify the opinions accordingly.\nIt should be noted that any recommendations identified in this report are based on information provided by the Client and as gathered during the site survey. In some cases access cannot be granted to all areas of the site, in these instances and in the absence of information to the contrary, ClearLead Consulting Limited will use the information provided to complete the report.\n"]
[]
[]
[]
[]
[]
[]
[]
[]
[]
[]
[]
[]
[]
[]
[null,"VERSION CONTROL RECORD"]
[null,"Issue",null,"Description of Status","Date","Reviewer Initials","Authors Initials"]
[null,1,null,"Draft","2022-09-06","JM","VP"]
[null,2,null,"With edits","2022-09-22","JM","VP"]
[null,3,null,"Final","2022-09-27","JM","VP"]

{"sheet":"RAG ","index":2,"n_rows":33,"n_cols":5,"rows_kept":33,"cut":false,"hidden":true,"merged":[[23,1,24,1],[25,1,26,1],[31,1,32,1],[2,1,3,1],[4,1,10,1],[19,1,20,1],[21,1,22,1],[27,1,29,1],[11,1,14,1],[15,1,17,1]]}
[]
[null,"SA Objective","Indicator","RAG Criteria","Justification"]
[null,"SA 3: Improve standard of health and wellbeing of those who live and work in the Borough ","Proximity to a GPs/Health centre/hospital",">800m \n400-800m\n<400m","CIHT Planning for Walking Guidelines, 2015 "]
[null,null,"Proximity to recreational facilities ",">800m \n400-800m\n<400m","CIHT Planning for Walking Guidelines, 2015 "]
[null,"SA4. Improve community cohesion and reduce inequalities through the provision of community facilities to meet local cultural, educational, recreational and social needs ","Proximity to a Town, Local, Neighbourhood or District Centres",">0.8km walking distance \n<0.8km walking distance\n<0.4km walking distance\n<0.2km walking distance","CIHT Planning for Walking Guidelines, 2015 "]
[null,null,"Proximity to a primary school",">3.2km \n<3.2km\n<1km","Home to School Transport and Travel Guidance, 2014 "]
[null,null,"Proximity to a secondary school",">4.8km \n<4.8km\n<1km","Home to School Transport and Travel Guidance, 2014 "]
[null,null,"Proximity to a community centre",">800m \n400-800m\n<400m"]
[null,null,"Proximity to a place of worship",">800m \n400-800m\n<400m"]
[null,null,"Proximity to a shopping frontage",">800m \n400-800m\n<400m"]
[null,null,"Proximity to recreation facilities ",">800m \n400-800m\n<400m","CIHT Planning for Walking Guidelines, 2014"]
[null,"SA5. Improve opportunities for access to local services, facilities and employment through an integrated ","Proximity to a bus stop",">400m \n<400m ","CIHT Planning for Walking Guidelines, 2015 "]
[null,null,"Proximity to a train/tube station",">800m \n<800m","CIHT Planning for Walking Guidelines, 2015 "]
[null,null,"Proximity to an employment area",">800m \n400-800m \n<400m"]
[null,null,"PTAL Score","0-2\n3-4\n5-6B","Transport for London, Measuring Public Transport Accessibility Levels, 2010 "]
[null,"SA9. Improve air quality","Proximity to a bus stop",">400m \n<400m ","CIHT Planning for Walking Guidelines, 2015 "]
[null,null,"Proximity to a train/tube station",">800m \n<800m","CIHT Planning for Walking Guidelines, 2015 "]
[null,null,"PTAL Score","0-2\n3-4\n5-6B","Transport for London, Measuring Public Transport Accessibility Levels, 2010 "]
[null,"SA11 Reduce the risk of flooding and improve resilience to climate change ","Flood Zone","Zone 3\nZone 2 \nZone 1","Environment Agency Guidance"]
[null,"SA 12 Ensure the efficient use of land and buildings and protect soil quality and geological resources "," LIG/RIG?","Yes\nPart\nNo"]
[null,null,"Previously developed land?","No\nPart\nYes"]
[null,"SA13. Conserve and enhance biodiversity and the natural environment, improving resilience to climate change ","Local Nature Reserve","Includes or is adjacent \n<50m\n>50m","Natural England"]
[null,null,"Priority habitat","Includes or is adjacent \n<50m\n>50m","Natural England"]
[null,"SA14. Protect the ecological integrity of SSSI and Natura 2000 sites ","Proximity to a SSSI","<200m\n200 - 800m\n>800m","The data for SSSIs is provided by NE and includes sites lying outside of the Borough. The RAG distances have been selected to take account of this and help differentiate between the sites options. It is recognised that distance in itself is not a definitive guide to the likelihood or significance of effects on a SSSI."]
[null,null,"Proximity to a Natura 2000","<400m\n<1km\n>2km","It is recognised that distance in itself is not a definitive guide to the likelihood or significance of effects on a European site. "]
[null,"SA15. Maintain and enhance the quality of the green belt and open space areas ","Green Belt","Yes\nPart\nNo"]
[null,null,"Metropolitan Open Land","Yes\nPart\nNo"]
[null,"SA17. Conserve and enhance the historic built environment ","Conservation Area","Intersects or is adjacent \n<50m\n>50m"]
[null,null,"Listed Buildings","Intersects or is adjacent \n<50m\n>50m"]
[null,null,"Proximity to a historic park or garden? ","<300m\n<1km \n>1km"]
[null,"SA18. Maintain and enhance the vitality of the Borough's town Centres","Town Centres (Walthamstow or District Centres) ",">0.8km walking distance \n<0.8km walking distance\n<0.4km walking distance\n<0.2km walking distance","CIHT Planning for Walking Guidelines, 2015 "]
[null,"SA19. Improve the local economy by enabling employment developments in appropriate places ","Town, Neighbourhood or Local  Centres (Walthamstow, District Centres) ",">0.8km walking distance \n<0.8km walking distance\n<0.4km walking distance\n<0.2km walking distance","CIHT Planning for Walking Guidelines, 2015 "]
[null,null,"Borough Employment Areas",">800m \n400-800m \n<400m","CIHT Planning for Walking Guidelines, 2015 "]

{"sheet":"Option 1 OAN ","index":3,"n_rows":30,"n_cols":19,"rows_kept":30,"cut":false,"hidden":false,"merged":[[28,1,28,8],[29,1,29,8],[1,2,1,8],[2,2,2,8],[24,1,24,8],[25,1,25,8],[26,1,26,8],[27,1,27,8]]}
[]
[null,"Option Name:","Option 1 OAN Scale of Growth ( LP1 Policy 2)"]
[null,"Assumptions:","None. ",null,null,null,null,null,null,null,null,null,null,"Direct","Short","Permanent/ Irreversible",null,null,"Significant Positive"]
[null,"SA Objective","Key Sustainability Issues","Description of Impact (Including Effects on Receptor and Effects on Key Sustainability Issues)","Direct/ Indirect/ Cumulative","Duration (short, medium, long term)","Permanent/ Temporary Irreversible/ Reversible","Spatial Extent / Magnitude","Significance",null,null,null,null,"Indirect","Medium","Permanent/ Reversible",null,null,"Significant Negative"]
[null,"SA1. Meet local housing needs through the provision of a range of tenures and sizes of new dwellings \n","As the population continues to increase so does the demand for housing, infrastructure and facilities. \n\nThe population density within the Borough exceeds both the London and the national averages.\n\nThere is a need to create high quality places to live, work and recreate that are mixed and well-balanced in terms of tenure and income.\n\nPromote high quality housing with a range of tenures to reduce health issues which arise from poor quality accommodation.\n\nThere is a disparity between the cost of housing and the amount that people are able to borrow to purchase a home, which means that many people are unable to access the property market.\n\nThere is a shortfall in the provision of affordable housing to meet the requirements of those in housing need.\n\n28% of households are unsuitably housed; there is a potential shortfall in the provision of family accommodation and there is overcrowding, primarily in the private rental sector.\n\nHomelessness is expected to increase.\n\nNeed to offer greater quality, flexibility and choice to those who rent.\n\nThere is a need to increase the supply of well-designed housing of all tenures.\n\nNeed to introduce more flexible approaches for affordable housing contributions to encourage open market and mixed tenure specialist older people’s housing.","The option sets out a scale of growth across the Borough and includes a minimum net increase of housing to be planned for and provided which is a minimum of 27,000 additional homes.  The policy therefore supports the achievement of this objective and addresses key sustainability issues.  It is considered to have a significant positive effect.  ","Direct","Medium/ Long","Permanent/ Irreversible","Local/ High","Significant Positive",null,null,null,null,"Cumulative","Long","Temporary/ Irreversible",null,null,"Minor Positive"]
[null,"SA2. Reduce crime and the fear of crime ","Increases in racist and religious hate crimes.\n\nThe percentage of residents that are worried about crime in the Borough remains higher than the London average.\n\nNeed to provide safe and accessible environments where crime and disorder, and the fear of crime, do not undermine quality of life.\n\nNeed to develop an approach to tackling crime, improving liveability and reducing anti-social behaviour.","The policy neither supports nor detracts from the achievement of the SA objective.  A specific policy in the Local Plan (policy 60 Designing out crime) should address this SA objective. Therefore a neutral effect is predicted.  ","N/A","N/A","N/A","N/A","Neutral",null,null,null,null,"N/A","Short/ Medium","Temporary/ Reversible",null,null,"Minor Negative"]
[null,"SA3. Improve standard of health and wellbeing of those who live and work in the Borough ","Currently a large proportion of the population are aged over 50 and this is projected to rise over the next 20 years (+26% rise by 2021 ).\n\nImprove life expectancies through promoting healthy lifestyles for all ages.\n\nNeed to ensure adequate access to green spaces and recreational facilities to promote active and healthy lifestyles.\n\nNeed to increase recognition of the growing evidence of a relationship between physical and mental health.\n\nNeed to ensure that hospitals have fit for purpose facilities (i.e. less converted houses) that meet the needs of patients.\n\nNeed to increase levels of active travel throughout the Borough in order to increase physical activity levels and tackle poor air quality.","The option neither supports nor detracts from the achievement of the SA objective.  Therefore a neutral effect is predicted.  ","N/A","N/A","N/A","N/A","Neutral",null,null,null,null,null,"Medium/ Long","N/A",null,null,"Neutral"]
[null,"SA4. Improve community cohesion and reduce inequalities through the provision of community facilities to meet local cultural, educational, recreational and social needs ","Inequalities in health and life expectancy between ethnic groups.\n\nDisparities between wards, particularly between the north and south of the Borough.\n\nNeed to provide inclusive services; promote equal opportunities; oppose discrimination, intolerance and disadvantage through reducing inequalities and promoting community cohesion.\nHelp to support development of successful neighbourhoods.\n\n\tThere is a need to create high quality places to live, work and recreate that are mixed and well-balanced in terms of tenure and income.\n\n\tAdequate support and facilities for older residents, including independent living, has been noted in particular to be needed.\n\n\tNeed to build on Borough’s arts, culture and sport strengths across the Borough's diverse and changing population.\n \n\tNeed to reduce the number of older people who feel socially isolated, by getting them actively participating in community life.\n\n\tCurrently a large proportion of the population are aged over 50 and this is projected to rise over the next 20 years (+26% rise by 2021 ).\n\n\tNeed to ensure that growth supports the delivery of vital infrastructure and new facilities across the Borough.\n\n\tHelp to support development of successful neighbourhoods.\n\n\tNeed to ensure that all residents have access to training and skills development to enable them to access and progress into high quality employment.","\nThe option neither supports nor detracts from the achievement of the SA objective.  Therefore a neutral effect is predicted.    ","N/A","N/A","N/A","N/A","Neutral",null,null,null,"Local/ Low",null,"N/A",null,null,null,"Uncertain"]
[null,"SA5. Improve opportunities for access to local services, facilities and employment through an integrated sustainable transport system, reducing car use for all journey lengths ","\tNeed to work towards improving air quality and reducing noise impacts from transport.\n\n\tThere is a need to make public transport more accessible in some areas of the Borough.\n\n\tThere is a need to promote walking and cycling (building on Enjoy Waltham Forest (“Mini Holland”) programmes) for local journeys in place of travel by private car. There should also be a focus on promoting public transport use instead of cars for medium and longer journeys.\n\n\tThere is a need to reduce car parking spaces in order to discourage private car use and improve air quality.\n\n\tOne in five journeys each weekday morning and afternoon involves trips to school, even though most journeys to schools are under a mile. There is a need to reduce school journeys by reducing Drop Off/Pick Up arrangements for new school developments, and encouraging sustainable, active travel amongst school pupils.\n\n\tAs the population grows, so does the need to change current infrastructure to meet the demands of all residents whilst making it future proof. \n\n\tNeed to ensure that growth supports the delivery of vital infrastructure and new facilities across the Borough.\n\n\tNeed to provide public transport capacity and safeguard land for transport.\n\n\tHelp to enhance London’s transport connectivity.\n\n\tImprovements to road safety are needed to reduce casualties.\n\n\tNeed to make cycle parking safe and easy to use.\n\n\tThere is a need to provide electric vehicle infrastructure, such as charging points. \n","\nThe option neither supports nor detracts from the achievement of the SA objective.  Other policies within the Local Plan such as option 4 Location of Growth and option 6 Ensuring Good Growth and policies 62-69 aim to distribute growth to locations where public transport access can be optimised and aim to improve sustainable transport access for all new residents. Therefore a neutral effect is predicted here.    ","N/A","N/A","N/A","N/A","Neutral",null,null,null,"Local/ Medium"]
[null,"SA6. Prevent production of waste, improve resource efficiency and increase recycling and recovery ","\tThe amount of waste produced is reducing but still exceeds both the London and national average. \n\n\tThe London Plan encourages greater self-sufficiency for waste management in London and sustainable transportation of waste.\n\n\tRecycling is increasing but still falls short of government targets.\n\n\tNeed to ensure that growth supports the delivery of vital infrastructure and new facilities across the Borough.\n\n\tNeed to minimise the impact of municipal waste management on the Borough’s environment. \n\n\tNeed to reduce the carbon footprint of municipal waste.\n\n\tNeed to ensure that all waste is managed in the most environmentally friendly way.","This option is likely to increase waste arisings within the Borough. The Local Plan contains option 95 Waste Management which will help to minimise waste arisings and achieve this SA objective, however, a minor negative effect still remains due to the scale of development proposed.  ","Direct","Short/ Medium","Permanent/ Irreversible","Regional/ Medium","Minor Negative",null,null,null,"Local/ High"]
[null,"SA7. Reduce greenhouse gas emissions and promote low carbon growth ","\tGreenhouse gas emissions need to be stabilised and reduced over time.\n\n\tHelp promote low carbon heat network. \n\n\tNeed to identify opportunities for growth of the low carbon economy in the Upper Lee Valley.\n\n\tThere is a need to provide electric vehicle infrastructure, such as charging points. ","The scale of growth proposed in this option has the potential to increase greenhouse gas emissions however option 87 A Zero Carbon Borough provides mitigation for a potential significant negative effect on carbon emissions and this SA objective. Therefore a neutral effect is recorded here.   ","N/A","N/A","N/A","N/A","Neutral",null,null,null,"Regional/ Low"]
[null,"SA8. Conserve energy ","\tThere is a need to continue to promote the construction of energy efficient buildings, and to support the installation of renewable and low or zero carbon technology. ","The scale of growth proposed in this option has the potential to increase energy use however other Local Plan policies 88 and 89 on decentralised energy and sustainable design and construction provide mitigation for a potential significant negative effect on carbon emissions and this SA objective. Therefore a neutral effect is recorded here.  ","N/A","N/A","N/A","N/A","Neutral",null,null,null,"Regional/ Medium"]
[null,"SA9. Improve air quality ","\tReliance on the petrol or diesel-fuelled private car as the main mode of transport.\n\n\tAir pollution from the strategic road network is an issue across the Borough and NO2 emissions are remaining constant, not decreasing as predicted. \n\n\tIncreasing use of biofuels (biodiesel and biomass) for heating schemes will cause further air quality issues. \n\n\tNeed to help reduce pollution from road vehicles, buildings, industry and construction.\n\n\tNeed to improve efficacy of measures within the AQMA. \n\nThere is a need to provide electric vehicle infrastructure, such as charging points. ","The scale of growth proposed in this policy has the potential to increase air pollution from transport and developments. However, a vehicle trip generation exercise has been undertaken evaluating how the identified locations which would deliver the growth of the Local Plan (identified in LP2) would affect traffic levels within the borough. Along with other policies within the Local Plan, such as policy 90 Air Pollution, there is a potential for air quality within the borough to improve. A potential minor positive effect is identified.  ","Indirect","Long","Permanent/ Reversible","Local/ High","Minor Positive",null,null,null,"Regional/ High"]
[null,"SA10. Improve water quality in rivers and groundwater and ensure the efficient use of water resources ","\tDiffuse urban water pollution exists in local rivers and water bodies.\n\nThere should be no deterioration in the health and quality of existing water bodies and development should improve the status of waterbodies to achieve 'Good Overall Status' in accordance with the Water Framework Directive', such as through installing rain planters and reed beds.\n\n\tIncreasing population will put strain on water resources.\n\nNew development will need to allow for an 8 metre buffer zone on both sides of a main river to allow access to the flood defences for maintenance or essential remedial work as well as promoting green and blue infrastructure links, water quality and human health.\n\n\tPotential impacts of the Local Plan policies and site allocations on groundwater need to be identified and addressed.","The scale of growth proposed in this option has the potential to increase water pollution from developments however Local Plan option 91 Water Quality and Water Resources provides mitigation in relation to this SA objective. Therefore a neutral effect is recorded here.  ","N/A","N/A","N/A","N/A","Neutral",null,null,null,"National/ Low"]
[null,"SA11. Reduce the risk of flooding and improve resilience to climate change ","\tHigh number of properties at risk at flooding and there is a need to promote the construction of new flood resistance and resilience measures for existing and future properties to ensure they are resilient to the future effect of climate change and protected against future flood risk.  \n\nNatural flood management techniques should be promoted.  \n\n\tNew development will need to incorporate SUDS to sustainably reduce flood risk and there is a need to encourage the retrofitting of existing developments with SUD systems.\n\nEnsure that existing flood defences are maintained responsibly by the riparian owner for remedial works to be carried out where necessary.\n\n\tNeed to promote the use of new technologies and innovation in flood mitigation measures.\n\n\tThere will be an increasing need to plan for and implement/facilitate climate change adaptation, in respect of rising temperatures, water scarcity and extreme weather events, particularly heavy rainfall/flooding.\n\n\tThere is a need to plan and prepare for the expected impacts of unavoidable climate change by developing adaptation responses and building resilience. \n\n\tNew developments need to minimise vulnerability and provide resilience to climate change.\n\n\tThere is a need to work with communities to help tackle climate change.","An evidence-led approach to considering appropriate sites for development has been undertaken to steer development towards areas of lowest flood risk. A sequential test exercise has been completed which examines the sites available for development within the borough and their anticipated capacity for residential development. The evaluation of sites within the sequential test has been based on Flood Risk criteria which take account of the risk posed to the site by tidal, fluvial and surface water sources as well as any sites which intersect an ordinary watercourse or have a history of flooding. Capacity has been identified for approximately 10,290 net additional units on strategic and key sites in Flood Zone 1. Capacity has been identified for approximately 3,580 dwellings on smaller sites proposed for inclusion on the borough’s Brownfield Land Register in Flood Zone 1. Additional capacity cannot be found in locations which fall within Flood Zone 1. In total, potential housing capacity of 13,870 dwellings has been identified in Flood Zone 1 within the borough. This capacity falls short of the housing delivery target of a minimum of 27,000 or approximately 1,800 dwellings a year over 15 years. \n\nSites identified as being within Flood Zones 2 and 3 have been taken forward for further assessment as part of the SFRA for Waltham Forest, in order to identify how the housing target could be delivered. The sequential test exercise has identified capacity for an additional 11,013 net additional units on strategic and key sites in Flood Zone 2 and 3. Combined with the capacity on Flood Zone 1 this totals 24,883.\n  \nApproximately 50% of this scale of growth option could be delivered on sites within flood zone 1 and 50% would need to be delivered on sites within flood zones 2 and 3. Circa 10,000 homes would need to be delivered in flood zones 2 and 3. Proposed developments in these zones would need to adhere to Local Plan Policy 93 Managing Flood Risk which requires mitigation and minimisation of flood risk through site Flood Risk Assessment and development design. If a proposal did not adhere to this policy it would not be granted permission. As it is not certain that all developments would be granted permission in Flood Zones 2 and 3, an uncertain effect is therefore identified for SA11 for Option 1.","N/A","N/A","N/A","N/A","Uncertain",null,null,null,"National/ Medium"]
[null,"SA12. Ensure the efficient use of land and buildings and protect soil quality and geological resources ","\tThere is finite availability of previously developed land for development; this may result in the use of greenfield land in the future. \n\n\tThere is a need to protect soils and the important ecosystem services they provide – particularly during construction and development.\n\n\tNeed to protect designated geological sites.","The option neither supports nor detracts from the achievement of the SA objective. This policy has the potential to contribute to the efficient use of land however, it is other policies in the Local Plan (such as Policy 5 Ensuring Good Growth) that will achieve it. Therefore a neutral effect is predicted here.  ","N/A","N/A","N/A","N/A","Neutral",null,null,null,"National/ High"]
[null,"SA13. Conserve and enhance biodiversity and the natural environment, improving resilience to climate change ","\tSupport is needed to achieve local BAP targets.\n\n\tNeed to promote effective land-management to support, protect and enhance biodiversity.\n\n\tIncreases in population will cause a demand for more development, where there is a potential for loss of valuable habitats which have yet to be designated for nature conservation as a direct result.\n\n\tConsider and plan for the impacts of climate change on species and habitats.\n\n\tThere is a need to help encourage people to engage with the ownership, design, management, maintenance and use of their environment as part of their own vision for their neighbourhood.\n\n\tNeed to recognise the wider benefits of ecosystem services and minimise impacts on biodiversity.\n\nIncrease awareness that green infrastructure and resilient ecological networks play an important role in aiding climate change adaptation and resilience.\n\nSeek to enhance green infrastructure networks within the Borough.\n\nEnsure current ecological networks are not compromised, and future improvements in habitat connectivity are not prejudiced.\n\nIn line with NPPF, paragraph 174, new development should achieve biodiversity net-gain in a hierarchical approach with on-site net-gain being preferred and off-site compensation as a last resort.\n\n\tNeed to work to conserve and enhance the local environment.","This option proposes a scale of growth of at least 27,000 dwellings over 15 years. This level of growth has the potential to have a negative effect on biodiversity, however, there are policies within the Local Plan, such as Policy 81 Biodiversity and Geodiversity, which will mitigate for potential effects of development on biodiversity and achieve a net gain in biodiversity through development. In turn this should help to improve resilience to climate change. A neutral effect is therefore predicted for this policy against this SA objective.  ","N/A","N/A","N/A","N/A","Neutral",null,null,null,"N/A"]
[null,"SA14. Protect the ecological integrity of SSSI and Natura 2000 sites ","\tLarge areas of the SSSI sites are considered to be in either unfavourable with no change or to be in an unfavourable and declining condition;\n\n\tSSSIs and European sites within the Borough are under threat from poor air quality, recreational pressure and urban effects (including issues with litter).\n\n\tNeed to protect and enhance the wildlife and habitats in Waltham Forest, in particular those of international, national and regional importance.","The HRA of the Local Plan has identified that there is a potential for adverse effects to occur on Epping Forest SAC from growth within the borough relating to air quality and recreation. Further work has been undertaken by LBWF on the potential effects of the Local Plan on air quality from transport and with regards to mitigating for increased recreational pressure. Agreement on recreational mitigation and the conclusions of the further work by LBWF on traffic is being sought with Natural England. The HRA of the Local Plan has concluded that there will be no adverse effects on European sites subject to agreement of required mitigation strategies with Natural England. Until these are agreed an uncertain effect is identified. ","N/A","N/A","N/A","N/A","Uncertain"]
[null,"SA15. Maintain and enhance the quality of the green belt and open space areas ","\tLarge areas of open space are Metropolitan Green Belt. There is a need to protect these areas of open space from development pressure.\n\nThere is a need to protect open space of varying types, which is used heavily by residents in the Borough.  For example, allotment space.  ","The option neither supports nor detracts from the achievement of the SA objective. Other policies in the Local Plan (such as option option 9 North Waltham Forest) will help to protect the greenbelt and open space. Therefore a neutral effect is predicted.  ","N/A","N/A","N/A","N/A","Neutral"]
[null,"SA16. Maintain and improve local distinctiveness ","\tNeed to establish a strong sense of place, using streetscapes and buildings to create attractive and comfortable places to live, work and visit.\n\t\n\tNeed to work towards conserving local character and history, by reflecting the identity of local surroundings and materials. This should not prevent or discourage appropriate innovation.","The option neither supports nor detracts from the achievement of the SA objective. Other policies within the Local Plan (such as option 56 Delivering High-Quality Design)  will ensure that new development protects and enhances local distinctiveness. Therefore a neutral effect is predicted.  ","N/A","N/A","N/A","N/A","Neutral"]
[null,"SA17. Conserve and enhance the historic built environment ","\tA number of listed buildings are identified as being in poor condition and are have been included on Historic England’s Heritage at Risk Register. Opportunities exist to improve the condition of some listed buildings through development.\n\nThe Borough contains 20 Archaeological Priority Areas where there is significant known archaeological interest or potential for new discoveries.\n\n\tEnsure that the Conservation Areas, Heritage Assets (including archaeology) and features are preserved or enhanced.\n\n\tNew developments should respect the urban and historic context, improve townscape and leave a positive architectural legacy.\n\n\tImpacts of future development on the local historic environment need to be considered.\n\n\tHeritage assets should be managed to sustain their significance. \n\n\tEnsure that everyone is able to participate in understanding and sustaining their local historic environment.\n\n\tDevelopment could encroach on Conservation Areas and subsequently negatively affect townscape and heritage assets.","The scale of development proposed by this option could put pressure on the Borough's historic assets. However other policies within the Local Plan such as policies 72 to 78 on designated heritage assets, archaeology, locally listed heritage assets etc will mitigate and minimise potential negative effects of development. A neutral effect is therefore predicted here.  ","N/A","N/A","N/A","N/A","Neutral"]
[null,"SA18. Maintain and enhance the vitality and viability of the Borough’s town centres ","\tFurther action is needed in order to support and promote retail, business, cultural, leisure and residential investment in town centres.","The option sets out the scale of growth across the Borough and includes a minimum net increase of employment floorspace of 52,000sqm. The option will contribute to promoting further investment in the Borough's town centres and supports the achievement of this objective and addresses key sustainability issues.  It is considered to have potential to achieve a significant positive effect.  ","Direct","Medium/ Long","Permanent/ Reversible","Local/ Low","Significant Positive"]
[null,"SA19. Improve the local economy by enabling employment developments in appropriate places ","Action is needed to provide more support for business start-ups because only 71% of new businesses in the Borough survive more than 2 years.\n\nLower than average salaries could affect the Borough’s ability to attract inward investment.\n\nContinue to support the Upper Lee Valley Development Opportunity Area and celebrate its industrial heritage.\n\nThere are likely to be ongoing pressures on industrial sites, need to maintain industrial uses and promote strong local base of small businesses. \n\nNeed to provide additional workspaces and promote denser, mixed use development with no net loss of business floor space. ","The option sets out the scale of growth across the Borough and includes the net increase of employment to be planned for and provided which is 52,000sqm. The option will contribute to improving the local economy but does not address all of the key sustainability issues and is therefore considered to have an indirect minor positive effect.  ","Indirect","Medium/ Long","Permanent/ Irreversible","Local/ Low","Minor Positive"]
[null,"SA20. Maintain stable levels of employment in the Borough ","Skills development in growth areas is also needed both for those who are currently unemployed or underemployed.\n\nEncourage and promote flexible working arrangements for residents to support people when gaining skills and moving into employment.\n\nThere are large inequalities in employment and skill levels between wards within the Borough. Need to ensure that regeneration is inclusive.\n\nEnsure that ongoing business growth becomes a driver of productivity and fairer wages (e.g. encouraging the London Living Wage), in order to create an increase in the overall prosperity of the Waltham Forest Borough.\n\nThere is a need to create fair employment and good work for all.\nIn work support is needed to ensure sustainment of jobs, professional development and progression into better paid, secure higher quality jobs.\n\nNeed to promote employment, training programmes and sector based initiatives in the growth of skills to support creative and digital industries, construction and facilities management, retail and hospitality, and finance and business services.","This option has the potential to support this SA objective but the option is not sufficiently detailed to determine whether a significant positive effect would result. Other policies within the Local Plan will do more to maintain stable levels of employment within the Borough. Therefore a minor positive effect is predicted here.  ","Indirect","Medium/ Long","Permanent/ Reversible","Local/ Medium","Minor Positive"]
[null,"Mitigation"]
[null,"SA11: The sequential test statement (LBWF, July 2022) demonstrates that half of the minimum housing development proposed can be delivered on sites available in the borough which are in low flood risk areas. Half of the development would need to be located on sites which are in flood zones 2 and 3 and considered to be higher risk flooding areas. Mitigation will be needed, in accordance with Local Plan Policy 93 Managing Flood Risk, to ensure measures are put in place on the sites with higher flood risk to manage surface water run off and ensure the sites are resilient to climate change. The Flood Risk Sequential Test Statement recommends that redevelopment of development sites at lowest hazard should be prioritised, prior to the consideration of sites at higher flood hazard.\nSA14: Further develop and agree mitigation strategies and evidence base, as required, in order to ensure that robust strategies are in place to avoid adverse effects on Epping Forest SAC from this scale of development. "]
[null,"Enhancements "]
[null,"None"]
[null,"Summary of potential significant effects"]
[null,"Potential significant positive effects have been predicted for SA1 and SA18 as the option promotes significant levels of housing, employment and office development which will contribute to the achievement of these objectives.  \nAn uncertain effect is identified for SA14 Protect the ecological integrity of SSSI and Natura 2000 sites because mitigation strategies to protect Epping Forest SAC from potential adverse effects of development do not yet demonstrate that this scale of growth can be delivered without adverse effects on European sites in relation to recreation and air quality.   \nSA11: Approximately 50% of this scale of growth option could be delivered on sites within flood zone 1 and 50% would need to be delivered on sites within flood zones 2 and 3. There are policies within the Local Plan, such as option 93 Managing Flood Risk, which will mitigate and minimise potential negative effects on flood risk from developments and help to improve resilience to climate change, however, with circa 10,000 needing to be delivered in flood zones 2 and 3 it is uncertain whether all increased flood risk can be mitigated without a potential negative effect or negative cumulative effect.    "]

{"sheet":"Option 2 London Plan","index":4,"n_rows":30,"n_cols":19,"rows_kept":30,"cut":false,"hidden":false,"merged":[[28,1,28,8],[29,1,29,8],[1,2,1,8],[2,2,2,8],[24,1,24,8],[25,1,25,8],[26,1,26,8],[27,1,27,8]]}
[]
[null,"Option Name:","Option 2 London Plan "]
[null,"Assumptions:","None. ",null,null,null,null,null,null,null,null,null,null,"Direct","Short","Permanent/ Irreversible",null,null,"Significant Positive"]
[null,"SA Objective","Key Sustainability Issues","Description of Impact (Including Effects on Receptor and Effects on Key Sustainability Issues)","Direct/ Indirect/ Cumulative","Duration (short, medium, long term)","Permanent/ Temporary Irreversible/ Reversible","Spatial Extent / Magnitude","Significance",null,null,null,null,"Indirect","Medium","Permanent/ Reversible",null,null,"Significant Negative"]
[null,"SA1. Meet local housing needs through the provision of a range of tenures and sizes of new dwellings \n","As the population continues to increase so does the demand for housing, infrastructure and facilities. \n\nThe population density within the Borough exceeds both the London and the national averages.\n\nThere is a need to create high quality places to live, work and recreate that are mixed and well-balanced in terms of tenure and income.\n\nPromote high quality housing with a range of tenures to reduce health issues which arise from poor quality accommodation.\n\nThere is a disparity between the cost of housing and the amount that people are able to borrow to purchase a home, which means that many people are unable to access the property market.\n\nThere is a shortfall in the provision of affordable housing to meet the requirements of those in housing need.\n\n28% of households are unsuitably housed; there is a potential shortfall in the provision of family accommodation and there is overcrowding, primarily in the private rental sector.\n\nHomelessness is expected to increase.\n\nNeed to offer greater quality, flexibility and choice to those who rent.\n\nThere is a need to increase the supply of well-designed housing of all tenures.\n\nNeed to introduce more flexible approaches for affordable housing contributions to encourage open market and mixed tenure specialist older people’s housing.","This alterantive policy would deliver a scale of growth equal to the London Plan requirement for the borough, which is 12,640 or 1,264 dwellings per year over the ten year period 2019/20 to 2028/29. It is assumed that this annual requirement would be extended by 6 years to the end of the Local Plan period (2035) therefore delivering a total of 20,224. However, the LBWF Council's evidence base identifies that the Council’s objectively assessed need (OAN) for homes is 1,810 dwellings per annum, which over the 15 years plan period equates to approximately 27,000 new homes. The key evidence document is the Strategic Housing Market Assessment (SHMA, 2019). Although this alternative would provide 18,960 homes over a 15 year period, it would fall short of the housing need for the borough identified by the evidence base by circa 8,000 homes A significant negative effect is identified as this alternative would not meet the local housing need and could exacerbate key sustainability issues.    ","Direct","Medium/ Long","Permanent/ Reversible","Local/ High","Significant Negative",null,null,null,null,"Cumulative","Long","Temporary/ Irreversible",null,null,"Minor Positive"]
[null,"SA2. Reduce crime and the fear of crime ","Increases in racist and religious hate crimes.\n\nThe percentage of residents that are worried about crime in the Borough remains higher than the London average.\n\nNeed to provide safe and accessible environments where crime and disorder, and the fear of crime, do not undermine quality of life.\n\nNeed to develop an approach to tackling crime, improving liveability and reducing anti-social behaviour.","The alternative neither supports nor detracts from the achievement of the SA objective.  A specific policy in the Local Plan (policy 60 Designing out crime) should address this SA objective. Therefore a neutral effect is predicted.  ","N/A","N/A","N/A","N/A","Neutral",null,null,null,null,"N/A","Short/ Medium","Temporary/ Reversible",null,null,"Minor Negative"]
[null,"SA3. Improve standard of health and wellbeing of those who live and work in the Borough ","Currently a large proportion of the population are aged over 50 and this is projected to rise over the next 20 years (+26% rise by 2021 ).\n\nImprove life expectancies through promoting healthy lifestyles for all ages.\n\nNeed to ensure adequate access to green spaces and recreational facilities to promote active and healthy lifestyles.\n\nNeed to increase recognition of the growing evidence of a relationship between physical and mental health.\n\nNeed to ensure that hospitals have fit for purpose facilities (i.e. less converted houses) that meet the needs of patients.\n\nNeed to increase levels of active travel throughout the Borough in order to increase physical activity levels and tackle poor air quality.","The alternative neither supports nor detracts from the achievement of the SA objective.  Therefore a neutral effect is predicted.  ","N/A","N/A","N/A","N/A","Neutral",null,null,null,null,null,"Medium/ Long","N/A",null,null,"Neutral"]
[null,"SA4. Improve community cohesion and reduce inequalities through the provision of community facilities to meet local cultural, educational, recreational and social needs ","Inequalities in health and life expectancy between ethnic groups.\n\nDisparities between wards, particularly between the north and south of the Borough.\n\nNeed to provide inclusive services; promote equal opportunities; oppose discrimination, intolerance and disadvantage through reducing inequalities and promoting community cohesion.\nHelp to support development of successful neighbourhoods.\n\n\tThere is a need to create high quality places to live, work and recreate that are mixed and well-balanced in terms of tenure and income.\n\n\tAdequate support and facilities for older residents, including independent living, has been noted in particular to be needed.\n\n\tNeed to build on Borough’s arts, culture and sport strengths across the Borough's diverse and changing population.\n \n\tNeed to reduce the number of older people who feel socially isolated, by getting them actively participating in community life.\n\n\tCurrently a large proportion of the population are aged over 50 and this is projected to rise over the next 20 years (+26% rise by 2021 ).\n\n\tNeed to ensure that growth supports the delivery of vital infrastructure and new facilities across the Borough.\n\n\tHelp to support development of successful neighbourhoods.\n\n\tNeed to ensure that all residents have access to training and skills development to enable them to access and progress into high quality employment.","\nThe alternative neither supports nor detracts from the achievement of the SA objective.  Therefore a neutral effect is predicted.    ","N/A","N/A","N/A","N/A","Neutral",null,null,null,"Local/ Low",null,"N/A",null,null,null,"Uncertain"]
[null,"SA5. Improve opportunities for access to local services, facilities and employment through an integrated sustainable transport system, reducing car use for all journey lengths ","\tNeed to work towards improving air quality and reducing noise impacts from transport.\n\n\tThere is a need to make public transport more accessible in some areas of the Borough.\n\n\tThere is a need to promote walking and cycling (building on Enjoy Waltham Forest (“Mini Holland”) programmes) for local journeys in place of travel by private car. There should also be a focus on promoting public transport use instead of cars for medium and longer journeys.\n\n\tThere is a need to reduce car parking spaces in order to discourage private car use and improve air quality.\n\n\tOne in five journeys each weekday morning and afternoon involves trips to school, even though most journeys to schools are under a mile. There is a need to reduce school journeys by reducing Drop Off/Pick Up arrangements for new school developments, and encouraging sustainable, active travel amongst school pupils.\n\n\tAs the population grows, so does the need to change current infrastructure to meet the demands of all residents whilst making it future proof. \n\n\tNeed to ensure that growth supports the delivery of vital infrastructure and new facilities across the Borough.\n\n\tNeed to provide public transport capacity and safeguard land for transport.\n\n\tHelp to enhance London’s transport connectivity.\n\n\tImprovements to road safety are needed to reduce casualties.\n\n\tNeed to make cycle parking safe and easy to use.\n\n\tThere is a need to provide electric vehicle infrastructure, such as charging points. \n","\nThe policy neither supports nor detracts from the achievement of the SA objective.  Other policies within the Local Plan such as Policy 4 Location of Growth and Policy 6 Ensuring Good Growth and policies 62-69 aim to distribute growth to locations where public transport access can be optimised and aim to improve sustainable transport access for all new residents. Therefore a neutral effect is predicted here.    ","N/A","N/A","N/A","N/A","Neutral",null,null,null,"Local/ Medium"]
[null,"SA6. Prevent production of waste, improve resource efficiency and increase recycling and recovery ","\tThe amount of waste produced is reducing but still exceeds both the London and national average. \n\n\tThe London Plan encourages greater self-sufficiency for waste management in London and sustainable transportation of waste.\n\n\tRecycling is increasing but still falls short of government targets.\n\n\tNeed to ensure that growth supports the delivery of vital infrastructure and new facilities across the Borough.\n\n\tNeed to minimise the impact of municipal waste management on the Borough’s environment. \n\n\tNeed to reduce the carbon footprint of municipal waste.\n\n\tNeed to ensure that all waste is managed in the most environmentally friendly way.","This alternative is likely to increase waste arisings within the Borough. The Local Plan contains policy 95 Waste Management which will help to minimise waste arisings and achieve this SA objective, however, a minor negative effect still remains due to the scale of development proposed.  ","Direct","Short/ Medium","Permanent/ Irreversible","Regional/ Medium","Minor Negative",null,null,null,"Local/ High"]
[null,"SA7. Reduce greenhouse gas emissions and promote low carbon growth ","\tGreenhouse gas emissions need to be stabilised and reduced over time.\n\n\tHelp promote low carbon heat network. \n\n\tNeed to identify opportunities for growth of the low carbon economy in the Upper Lee Valley.\n\n\tThere is a need to provide electric vehicle infrastructure, such as charging points. ","The scale of growth proposed in this alternative has the potential to increase greenhouse gas emissions however Policy 87 A Zero Carbon Borough provides mitigation for a potential significant negative effect on carbon emissions and this SA objective. Therefore a neutral effect is recorded here.   ","N/A","N/A","N/A","N/A","Neutral",null,null,null,"Regional/ Low"]
[null,"SA8. Conserve energy ","\tThere is a need to continue to promote the construction of energy efficient buildings, and to support the installation of renewable and low or zero carbon technology. ","The scale of growth proposed in this policy has the potential to increase energy use however other Local Plan policies 88 and 89 on decentralised energy and sustainable design and construction provide mitigation for a potential significant negative effect on carbon emissions and this SA objective. Therefore a neutral effect is recorded here.  ","N/A","N/A","N/A","N/A","Neutral",null,null,null,"Regional/ Medium"]
[null,"SA9. Improve air quality ","\tReliance on the petrol or diesel-fuelled private car as the main mode of transport.\n\n\tAir pollution from the strategic road network is an issue across the Borough and NO2 emissions are remaining constant, not decreasing as predicted. \n\n\tIncreasing use of biofuels (biodiesel and biomass) for heating schemes will cause further air quality issues. \n\n\tNeed to help reduce pollution from road vehicles, buildings, industry and construction.\n\n\tNeed to improve efficacy of measures within the AQMA. \n\nThere is a need to provide electric vehicle infrastructure, such as charging points. ","The scale of growth proposed in this option has the potential to increase air pollution from transport and developments. However, a vehicle trip generation exercise has been undertaken evaluating how the identified locations which would deliver the growth of the Local Plan (identified in LP2) - a higher level than this option - would affect traffic levels within the borough. This exercise  concludes that the LP1  will bring about reductions in traffic compared to the situation without the LP1. Along with other policies within the Local Plan, such as policy 90 Air Pollution, there is a potential for air quality within the borough to improve due to the development proposed within LP2. Although fewer or less dense developments might result from a lower growth delivery target, such as this alteranative, it might result in less redevelopment of sites which are currently in high-trip generating uses. The performance of this option is therefore uncertain against SA9. ","N/A","N/A","N/A","N/A","Uncertain",null,null,null,"Regional/ High"]
[null,"SA10. Improve water quality in rivers and groundwater and ensure the efficient use of water resources ","\tDiffuse urban water pollution exists in local rivers and water bodies.\n\nThere should be no deterioration in the health and quality of existing water bodies and development should improve the status of waterbodies to achieve 'Good Overall Status' in accordance with the Water Framework Directive', such as through installing rain planters and reed beds.\n\n\tIncreasing population will put strain on water resources.\n\nNew development will need to allow for an 8 metre buffer zone on both sides of a main river to allow access to the flood defences for maintenance or essential remedial work as well as promoting green and blue infrastructure links, water quality and human health.\n\n\tPotential impacts of the Local Plan policies and site allocations on groundwater need to be identified and addressed.","The scale of growth proposed in this alternative has the potential to increase water pollution from developments however Local Plan Policy 91 Water Quality and Water Resources provides mitigation in relation to this SA objective. Therefore a neutral effect is recorded here.  ","N/A","N/A","N/A","N/A","Neutral",null,null,null,"National/ Low"]
[null,"SA11. Reduce the risk of flooding and improve resilience to climate change ","\tHigh number of properties at risk at flooding and there is a need to promote the construction of new flood resistance and resilience measures for existing and future properties to ensure they are resilient to the future effect of climate change and protected against future flood risk.  \n\nNatural flood management techniques should be promoted.  \n\n\tNew development will need to incorporate SUDS to sustainably reduce flood risk and there is a need to encourage the retrofitting of existing developments with SUD systems.\n\nEnsure that existing flood defences are maintained responsibly by the riparian owner for remedial works to be carried out where necessary.\n\n\tNeed to promote the use of new technologies and innovation in flood mitigation measures.\n\n\tThere will be an increasing need to plan for and implement/facilitate climate change adaptation, in respect of rising temperatures, water scarcity and extreme weather events, particularly heavy rainfall/flooding.\n\n\tThere is a need to plan and prepare for the expected impacts of unavoidable climate change by developing adaptation responses and building resilience. \n\n\tNew developments need to minimise vulnerability and provide resilience to climate change.\n\n\tThere is a need to work with communities to help tackle climate change.","An evidence-led approach to considering appropriate sites for development has been undertaken to steer development towards areas of lowest flood risk. A sequential test exercise has been completed which examines the sites available for development within the borough and their anticipated capacity for residential development. The evaluation of sites within the sequential test has been based on Flood Risk criteria which take account of the risk posed to the site by tidal, fluvial and surface water sources as well as any sites which intersect an ordinary watercourse or have a history of flooding. Capacity has been identified for approximately 10,290 net additional units on strategic and key sites in Flood Zone 1. Capacity has been identified for approximately 3580 dwellings on smaller sites proposed for inclusion on the borough’s Brownfield Land Register in Flood Zone 1. Additional capacity cannot be found in locations which fall within Flood Zone 1. In total, potential housing capacity of 13,870 dwellings has been identified in Flood Zone 1 within the borough. This capacity falls short of the London Plan housing delivery target of 1,264 dwellings per year totalling 20,224 over the full 15 year plan period. It would, however, provide capacity for housing delivery of 1,264 dwellings per year for approximately 10 years. \n\nSites identified as being within Flood Zones 2 and 3 have been taken forward for further assessment as part of the SFRA for Waltham Forest, in order to identify how the higher OAN for housing could be delivered. The sequential test exercise has identified capacity for an additional 11,013 net additional units on strategic and key sites in Flood Zone 2 and 3.\n  \nAs the majority of this scale of growth option could be delivered on sites within flood zones 1 and 2 and there are policies within the Local Plan, such as Policy 93 Managing Flood Risk, which will mitigate and minimise potential negative effects on flood risk from developments and help to improve resilience to climate change, an overall minor positive effect is identified for this scale of growth on reducing the risk of flooding and improving resilience to climate change.   ","Direct","Long","Permanent/ Irreversible","Local/ Medium","Minor Positive",null,null,null,"National/ Medium"]
[null,"SA12. Ensure the efficient use of land and buildings and protect soil quality and geological resources ","\tThere is finite availability of previously developed land for development; this may result in the use of greenfield land in the future. \n\n\tThere is a need to protect soils and the important ecosystem services they provide – particularly during construction and development.\n\n\tNeed to protect designated geological sites.","This alternative neither supports nor detracts from the achievement of the SA objective. This policy has the potential to contribute to the efficient use of land however, it is other policies in the Local Plan (such as Policy 5 Ensuring Good Growth ) that will achieve it. Therefore a neutral effect is predicted here.  ","N/A","N/A","N/A","N/A","Neutral",null,null,null,"National/ High"]
[null,"SA13. Conserve and enhance biodiversity and the natural environment, improving resilience to climate change ","\tSupport is needed to achieve local BAP targets.\n\n\tNeed to promote effective land-management to support, protect and enhance biodiversity.\n\n\tIncreases in population will cause a demand for more development, where there is a potential for loss of valuable habitats which have yet to be designated for nature conservation as a direct result.\n\n\tConsider and plan for the impacts of climate change on species and habitats.\n\n\tThere is a need to help encourage people to engage with the ownership, design, management, maintenance and use of their environment as part of their own vision for their neighbourhood.\n\n\tNeed to recognise the wider benefits of ecosystem services and minimise impacts on biodiversity.\n\nIncrease awareness that green infrastructure and resilient ecological networks play an important role in aiding climate change adaptation and resilience.\n\nSeek to enhance green infrastructure networks within the Borough.\n\nEnsure current ecological networks are not compromised, and future improvements in habitat connectivity are not prejudiced.\n\nIn line with NPPF, paragraph 174, new development should achieve biodiversity net-gain in a hierarchical approach with on-site net-gain being preferred and off-site compensation as a last resort.\n\n\tNeed to work to conserve and enhance the local environment.","This alternative proposes a scale of growth of around 19,000 dwellings over 15 years. This level of growth has the potential to have a negative effect on biodiversity, however, there are policies within the Local Plan, such as Policy 81 Biodiversity and Geodiversity, which will mitigate for potential effects of development on biodiversity and acheieve a net gain in biodiversity through development. In turn this should help to improve resilience to climate change. A neutral effect is therefore predicted for this alternative against this SA objective.  ","N/A","N/A","N/A","N/A","Neutral",null,null,null,"N/A"]
[null,"SA14. Protect the ecological integrity of SSSI and Natura 2000 sites ","\tLarge areas of the SSSI sites are considered to be in either unfavourable with no change or to be in an unfavourable and declining condition;\n\n\tSSSIs and European sites within the Borough are under threat from poor air quality, recreational pressure and urban effects (including issues with litter).\n\n\tNeed to protect and enhance the wildlife and habitats in Waltham Forest, in particular those of international, national and regional importance.","The HRA of the Local Plan has identified that there is a potential for adverse effects to occur on Epping Forest SAC from growth within the borough relating to air quality and recreation. Further work has been undertaken by LBWF on the potential effects of the Local Plan on air quality from transport and with regards to mitigating for increased recreational pressure. Agreement on recreational mitigation and the conclusions of the further work by LBWF on traffic is being sought with Natural England. The HRA of the Local Plan has concluded that there will be no adverse effects on European sites subject to agreement of required mitigation strategies with Natural England. Until these are agreed an uncertain effect is identified.  With a lower scale of growth proposed this option could represent a lower risk of adverse effect compared to the alternative growth option and could in turn require less mitigation to avoid potential adverse effects. ","N/A","N/A","N/A","N/A","Uncertain"]
[null,"SA15. Maintain and enhance the quality of the green belt and open space areas ","\tLarge areas of open space are Metropolitan Green Belt. There is a need to protect these areas of open space from development pressure.\n\nThere is a need to protect open space of varying types, which is used heavily by residents in the Borough.  For example, allotment space.  ","The policy neither supports nor detracts from the achievement of the SA objective. Other policies in the Local Plan (such as Policy Policy 9 North Waltham Forest) will help to protect the greenbelt and open space. Therefore a neutral effect is predicted.  ","N/A","N/A","N/A","N/A","Neutral"]
[null,"SA16. Maintain and improve local distinctiveness ","\tNeed to establish a strong sense of place, using streetscapes and buildings to create attractive and comfortable places to live, work and visit.\n\t\n\tNeed to work towards conserving local character and history, by reflecting the identity of local surroundings and materials. This should not prevent or discourage appropriate innovation.","The policy neither supports nor detracts from the achievement of the SA objective. Other policies within the Local Plan (such as Policy 56 Delivering High-Quality Design)  will ensure that new development protects and enhances local distinctiveness. Therefore a neutral effect is predicted.  ","N/A","N/A","N/A","N/A","Neutral"]
[null,"SA17. Conserve and enhance the historic built environment ","\tA number of listed buildings are identified as being in poor condition and are have been included on Historic England’s Heritage at Risk Register. Opportunities exist to improve the condition of some listed buildings through development.\n\nThe Borough contains 20 Archaeological Priority Areas where there is significant known archaeological interest or potential for new discoveries.\n\n\tEnsure that the Conservation Areas, Heritage Assets (including archaeology) and features are preserved or enhanced.\n\n\tNew developments should respect the urban and historic context, improve townscape and leave a positive architectural legacy.\n\n\tImpacts of future development on the local historic environment need to be considered.\n\n\tHeritage assets should be managed to sustain their significance. \n\n\tEnsure that everyone is able to participate in understanding and sustaining their local historic environment.\n\n\tDevelopment could encroach on Conservation Areas and subsequently negatively affect townscape and heritage assets.","The scale of development proposed by this policy could put pressure on the Borough's historic assets. However other policies within the Local Plan such as policies 72 to 78 on designated heritage assets, archaeology, locally listed heritage assets etc will mitigate and minimise potential negative effects of development. A neutral effect is therefore predicted here.  ","N/A","N/A","N/A","N/A","Neutral"]
[null,"SA18. Maintain and enhance the vitality and viability of the Borough’s town centres ","\tFurther action is needed in order to support and promote retail, business, cultural, leisure and residential investment in town centres.","This alternative scale of growth across the Borough includes a minimum net increase of employment floorspace of 52,000sqm. This will contribute to promoting further investment in the Borough's town centres and supports the achievement of this objective and addresses key sustainability issues.  It is considered to have potential to acheive a significant positive effect.  ","Direct","Medium/ Long","Permanent/ Reversible","Local/ Low","Significant Positive"]
[null,"SA19. Improve the local economy by enabling employment developments in appropriate places ","Action is needed to provide more support for business start-ups because only 71% of new businesses in the Borough survive more than 2 years.\n\nLower than average salaries could affect the Borough’s ability to attract inward investment.\n\nContinue to support the Upper Lee Valley Development Opportunity Area and celebrate its industrial heritage.\n\nThere are likely to be ongoing pressures on industrial sites, need to maintain industrial uses and promote strong local base of small businesses. \n\nNeed to provide additional workspaces and promote denser, mixed use development with no net loss of business floor space. ","The alternative scale of growth policy would includes the net increase of employment to be planned for and provided which is 52,000sqm. The policy will contribute to improving the local economy but does not address all of the key sustainability issues and is therefore considered to have an indirect minor positive effect.  ","Indirect","Medium/ Long","Permanent/ Irreversible","Local/ Low","Minor Positive"]
[null,"SA20. Maintain stable levels of employment in the Borough ","Skills development in growth areas is also needed both for those who are currently unemployed or underemployed.\n\nEncourage and promote flexible working arrangements for residents to support people when gaining skills and moving into employment.\n\nThere are large inequalities in employment and skill levels between wards within the Borough. Need to ensure that regeneration is inclusive.\n\nEnsure that ongoing business growth becomes a driver of productivity and fairer wages (e.g. encouraging the London Living Wage), in order to create an increase in the overall prosperity of the Waltham Forest Borough.\n\nThere is a need to create fair employment and good work for all.\nIn work support is needed to ensure sustainment of jobs, professional development and progression into better paid, secure higher quality jobs.\n\nNeed to promote employment, training programmes and sector based initiatives in the growth of skills to support creative and digital industries, construction and facilities management, retail and hospitality, and finance and business services.","This alterantive scale of growth has the potential to support this SA objective but is not sufficiently detailed to determine whether a significant positive effect would result. Other policies within the Local Plan will do more to maintain stable levels of employment within the Borough. Therefore a minor positive effect is predicted here.  ","Indirect","Medium/ Long","Permanent/ Reversible","Local/ Medium","Minor Positive"]
[null,"Mitigation"]
[null,"SA1: Ensure that the housing delivery proposed meets the identified housing needs in accordance with an up to date and robust evidence base.\nSA9: Conclude trip generation exercise to provide information on the potential effects on traffic (and therefore inform potential increases in air quality) from the OAN. \nSA14: Further develop and agree mitigation strategies and evidence base, as required, in order to ensure that robust strategies are in place to avoid adverse effects on Epping Forest SAC from this scale of development. "]
[null,"Enhancements "]
[null,"SA11: The Flood Risk Sequential Test Statement (June 2022) recommends that redevelopment of development sites at lowest hazard should be prioritised, prior to the consideration of sites at higher flood hazard. "]
[null,"Summary of potential significant effects"]
[null,"A potential significant positive effect has been predicted for SA18 as the scale of growth would promote significant levels of employment and office development which will contribute to the achievement of this objective.  \nA potential significant negative effect is recorded in relation to SA1 because the scale of growth would not meet identified housing needs for the borough. \nAn uncertain effect is identified for SA14 Protect the ecological integrity of SSSI and Natura 2000 sites because mitigation strategies to protect Epping Forest SAC from potential adverse effects of development do not yet demonstrate that this scale of growth can be delivered without adverse effects on European sites in relation to air quality.   \nAn uncertain effect is also identified for SA9 in relation to air quality. LBWF Council is undertaking a trip generation exercise to ascertain the likely generation of traffic from the Objectively Assessed Need (OAN) level of growth (higher than this alternative level). Once this exercise is concluded this assessment can be updated with the conclusions of the study but in the meantime an uncertain effect is identified."]

{"sheet":"Policy 43 Man COU Nonshop Front","index":5,"n_rows":30,"n_cols":19,"rows_kept":30,"cut":false,"hidden":true,"merged":[[28,1,28,8],[29,1,29,8],[1,2,1,8],[2,2,2,8],[24,1,24,8],[25,1,25,8],[26,1,26,8],[27,1,27,8]]}
[]
[null,"Policy Name:","Managing Changes of Use Outside Primary Shopping Areas of Designated Centres - policy now merged with Policy 42"]
[null,"Assumptions:","None. ",null,null,null,null,null,null,null,null,null,null,"Direct","Short","Permanent/ Irreversible",null,null,"Significant Positive"]
[null,"SA Objective","Key Sustainability Issues","Description of Impact (Including Effects on Receptor and Effects on Key Sustainability Issues)","Direct/ Indirect/ Cumulative","Duration (short, medium, long term)","Permanent/ Temporary Irreversible/ Reversible","Spatial Extent / Magnitude","Significance",null,null,null,null,"Indirect","Medium","Permanent/ Reversible",null,null,"Significant Negative"]
[null,"SA1. Meet local housing needs through the provision of a range of tenures and sizes of new dwellings \n","As the population continues to increase so does the demand for housing, infrastructure and facilities. \n\nThe population density within the Borough exceeds both the London and the national averages.\n\nThere is a need to create high quality places to live, work and recreate that are mixed and well-balanced in terms of tenure and income.\n\nPromote high quality housing with a range of tenures to reduce health issues which arise from poor quality accommodation.\n\nThere is a disparity between the cost of housing and the amount that people are able to borrow to purchase a home, which means that many people are unable to access the property market.\n\nThere is a shortfall in the provision of affordable housing to meet the requirements of those in housing need.\n\n28% of households are unsuitably housed; there is a potential shortfall in the provision of family accommodation and there is overcrowding, primarily in the private rental sector.\n\nHomelessness is expected to increase.\n\nNeed to offer greater quality, flexibility and choice to those who rent.\n\nThere is a need to increase the supply of well-designed housing of all tenures.\n\nNeed to introduce more flexible approaches for affordable housing contributions to encourage open market and mixed tenure specialist older people’s housing.","The policy neither supports nor detracts from the achievement of the SA objective.  Therefore a neutral effect is predicted.  ","N/A","N/A","N/A","N/A","Neutral",null,null,null,null,"Cumulative","Long","Temporary/ Irreversible",null,null,"Minor Positive"]
[null,"SA2. Reduce crime and the fear of crime ","Increases in racist and religious hate crimes.\n\nThe percentage of residents that are worried about crime in the Borough remains higher than the London average.\n\nNeed to provide safe and accessible environments where crime and disorder, and the fear of crime, do not undermine quality of life.\n\nNeed to develop an approach to tackling crime, improving liveability and reducing anti-social behaviour.","The policy neither supports nor detracts from the achievement of the SA objective.  Therefore a neutral effect is predicted.  ","N/A","N/A","N/A","N/A","Neutral",null,null,null,null,"N/A","Short/ Medium","Temporary/ Reversible",null,null,"Minor Negative"]
[null,"SA3. Improve standard of health and wellbeing of those who live and work in the Borough ","Currently a large proportion of the population are aged over 50 and this is projected to rise over the next 20 years (+26% rise by 2021 ).\n\nImprove life expectancies through promoting healthy lifestyles for all ages.\n\nNeed to ensure adequate access to green spaces and recreational facilities to promote active and healthy lifestyles.\n\nNeed to increase recognition of the growing evidence of a relationship between physical and mental health.\n\nNeed to ensure that hospitals have fit for purpose facilities (i.e. less converted houses) that meet the needs of patients.\n\nNeed to increase levels of active travel throughout the Borough in order to increase physical activity levels and tackle poor air quality.","The policy neither supports nor detracts from the achievement of the SA objective.  Therefore a neutral effect is predicted.  ","N/A","N/A","N/A","N/A","Neutral",null,null,null,null,null,"Medium/ Long","N/A",null,null,"Neutral"]
[null,"SA4. Improve community cohesion and reduce inequalities through the provision of community facilities to meet local cultural, educational, recreational and social needs ","Inequalities in health and life expectancy between ethnic groups.\n\nDisparities between wards, particularly between the north and south of the Borough.\n\nNeed to provide inclusive services; promote equal opportunities; oppose discrimination, intolerance and disadvantage through reducing inequalities and promoting community cohesion.\nHelp to support development of successful neighbourhoods.\n\n\tThere is a need to create high quality places to live, work and recreate that are mixed and well-balanced in terms of tenure and income.\n\n\tAdequate support and facilities for older residents, including independent living, has been noted in particular to be needed.\n\n\tNeed to build on Borough’s arts, culture and sport strengths across the Borough's diverse and changing population.\n \n\tNeed to reduce the number of older people who feel socially isolated, by getting them actively participating in community life.\n\n\tCurrently a large proportion of the population are aged over 50 and this is projected to rise over the next 20 years (+26% rise by 2021 ).\n\n\tNeed to ensure that growth supports the delivery of vital infrastructure and new facilities across the Borough.\n\n\tHelp to support development of successful neighbourhoods.\n\n\tNeed to ensure that all residents have access to training and skills development to enable them to access and progress into high quality employment.","The policy neither supports nor detracts from the achievement of the SA objective.  Therefore a neutral effect is predicted.  ","N/A","N/A","N/A","N/A","Neutral",null,null,null,"Local/ Low",null,"N/A",null,null,null,"Uncertain"]
[null,"SA5. Improve opportunities for access to local services, facilities and employment through an integrated sustainable transport system, reducing car use for all journey lengths ","\tNeed to work towards improving air quality and reducing noise impacts from transport.\n\n\tThere is a need to make public transport more accessible in some areas of the Borough.\n\n\tThere is a need to promote walking and cycling (building on Enjoy Waltham Forest (“Mini Holland”) programmes) for local journeys in place of travel by private car. There should also be a focus on promoting public transport use instead of cars for medium and longer journeys.\n\n\tThere is a need to reduce car parking spaces in order to discourage private car use and improve air quality.\n\n\tOne in five journeys each weekday morning and afternoon involves trips to school, even though most journeys to schools are under a mile. There is a need to reduce school journeys by reducing Drop Off/Pick Up arrangements for new school developments, and encouraging sustainable, active travel amongst school pupils.\n\n\tAs the population grows, so does the need to change current infrastructure to meet the demands of all residents whilst making it future proof. \n\n\tNeed to ensure that growth supports the delivery of vital infrastructure and new facilities across the Borough.\n\n\tNeed to provide public transport capacity and safeguard land for transport.\n\n\tHelp to enhance London’s transport connectivity.\n\n\tImprovements to road safety are needed to reduce casualties.\n\n\tNeed to make cycle parking safe and easy to use.\n\n\tThere is a need to provide electric vehicle infrastructure, such as charging points. \n","The policy neither supports nor detracts from the achievement of the SA objective.  Therefore a neutral effect is predicted.  ","N/A","N/A","N/A","N/A","Neutral",null,null,null,"Local/ Medium"]
[null,"SA6. Prevent production of waste, improve resource efficiency and increase recycling and recovery ","\tThe amount of waste produced is reducing but still exceeds both the London and national average. \n\n\tThe London Plan encourages greater self-sufficiency for waste management in London and sustainable transportation of waste.\n\n\tRecycling is increasing but still falls short of government targets.\n\n\tNeed to ensure that growth supports the delivery of vital infrastructure and new facilities across the Borough.\n\n\tNeed to minimise the impact of municipal waste management on the Borough’s environment. \n\n\tNeed to reduce the carbon footprint of municipal waste.\n\n\tNeed to ensure that all waste is managed in the most environmentally friendly way.","The policy neither supports nor detracts from the achievement of the SA objective.  Therefore a neutral effect is predicted.  ","N/A","N/A","N/A","N/A","Neutral",null,null,null,"Local/ High"]
[null,"SA7. Reduce greenhouse gas emissions and promote low carbon growth ","\tGreenhouse gas emissions need to be stabilised and reduced over time.\n\n\tHelp promote low carbon heat network. \n\n\tNeed to identify opportunities for growth of the low carbon economy in the Upper Lee Valley.\n\n\tThere is a need to provide electric vehicle infrastructure, such as charging points. ","The policy neither supports nor detracts from the achievement of the SA objective.  Therefore a neutral effect is predicted.  ","N/A","N/A","N/A","N/A","Neutral",null,null,null,"Regional/ Low"]
[null,"SA8. Conserve energy ","\tThere is a need to continue to promote the construction of energy efficient buildings, and to support the installation of renewable and low or zero carbon technology. ","The policy neither supports nor detracts from the achievement of the SA objective.  Therefore a neutral effect is predicted.  ","N/A","N/A","N/A","N/A","Neutral",null,null,null,"Regional/ Medium"]
[null,"SA9. Improve air quality ","\tReliance on the petrol or diesel-fuelled private car as the main mode of transport.\n\n\tAir pollution from the strategic road network is an issue across the Borough and NO2 emissions are remaining constant, not decreasing as predicted. \n\n\tIncreasing use of biofuels (biodiesel and biomass) for heating schemes will cause further air quality issues. \n\n\tNeed to help reduce pollution from road vehicles, buildings, industry and construction.\n\n\tNeed to improve efficacy of measures within the AQMA. \n\nThere is a need to provide electric vehicle infrastructure, such as charging points. ","The policy neither supports nor detracts from the achievement of the SA objective.  Therefore a neutral effect is predicted.  ","N/A","N/A","N/A","N/A","Neutral",null,null,null,"Regional/ High"]
[null,"SA10. Improve water quality in rivers and groundwater and ensure the efficient use of water resources ","\tDiffuse urban water pollution exists in local rivers and water bodies.\n\nThere should be no deterioration in the health and quality of existing water bodies and development should improve the status of waterbodies to achieve 'Good Overall Status' in accordance with the Water Framework Directive', such as through installing rain planters and reed beds.\n\n\tIncreasing population will put strain on water resources.\n\nNew development will need to allow for an 8 metre buffer zone on both sides of a main river to allow access to the flood defences for maintenance or essential remedial work as well as promoting green and blue infrastructure links, water quality and human health.\n\n\tPotential impacts of the Local Plan policies and site allocations on groundwater need to be identified and addressed.","The policy neither supports nor detracts from the achievement of the SA objective.  Therefore a neutral effect is predicted.  ","N/A","N/A","N/A","N/A","Neutral",null,null,null,"National/ Low"]
[null,"SA 11. Reduce the risk of flooding and improve resilience to climate change ","\tHigh number of properties at risk at flooding and there is a need to promote the construction of new flood resistance and resilience measures for existing and future properties to ensure they are resilient to the future effect of climate change and protected against future flood risk.  \n\nNatural flood management techniques should be promoted.  \n\n\tNew development will need to incorporate SUDS to sustainably reduce flood risk and there is a need to encourage the retrofitting of existing developments with SUD systems.\n\nEnsure that existing flood defences are maintained responsibly by the riparian owner for remedial works to be carried out where necessary.\n\n\tNeed to promote the use of new technologies and innovation in flood mitigation measures.\n\n\tThere will be an increasing need to plan for and implement/facilitate climate change adaptation, in respect of rising temperatures, water scarcity and extreme weather events, particularly heavy rainfall/flooding.\n\n\tThere is a need to plan and prepare for the expected impacts of unavoidable climate change by developing adaptation responses and building resilience. \n\n\tNew developments need to minimise vulnerability and provide resilience to climate change.\n\n\tThere is a need to work with communities to help tackle climate change.","The policy neither supports nor detracts from the achievement of the SA objective.  Therefore a neutral effect is predicted.  ","N/A","N/A","N/A","N/A","Neutral",null,null,null,"National/ Medium"]
[null,"SA12. Ensure the efficient use of land and buildings and protect soil quality and geological resources ","\tThere is finite availability of previously developed land for development; this may result in the use of greenfield land in the future. \n\n\tThere is a need to protect soils and the important ecosystem services they provide – particularly during construction and development.\n\n\tNeed to protect designated geological sites.","The policy supports proposals for new retail and non-retail uses outside of the designated primary shopping areas of Walthamstow and the District Centres.  This encourages the efficient use buildings in the local area generally and is therefore considered to have a minor positive effect.  \n","Direct","Short/ Medium","Permanent/ Reversible","Local/ Low","Minor Positive",null,null,null,"National/ High"]
[null,"SA13. Conserve and enhance biodiversity and the natural environment, improving resilience to climate change ","\tSupport is needed to achieve local BAP targets.\n\n\tNeed to promote effective land-management to support, protect and enhance biodiversity.\n\n\tIncreases in population will cause a demand for more development, where there is a potential for loss of valuable habitats which have yet to be designated for nature conservation as a direct result.\n\n\tConsider and plan for the impacts of climate change on species and habitats.\n\n\tThere is a need to help encourage people to engage with the ownership, design, management, maintenance and use of their environment as part of their own vision for their neighbourhood.\n\n\tNeed to recognise the wider benefits of ecosystem services and minimise impacts on biodiversity.\n\nIncrease awareness that green infrastructure and resilient ecological networks play an important role in aiding climate change adaptation and resilience.\n\nSeek to enhance green infrastructure networks within the Borough.\n\nEnsure current ecological networks are not compromised, and future improvements in habitat connectivity are not prejudiced.\n\nIn line with NPPF, paragraph 174, new development should achieve biodiversity net-gain in a hierarchical approach with on-site net-gain being preferred and off-site compensation as a last resort.\n\n\tNeed to work to conserve and enhance the local environment.","The policy neither supports nor detracts from the achievement of the SA objective.  Therefore a neutral effect is predicted.  ","N/A","N/A","N/A","N/A","Neutral",null,null,null,"N/A"]
[null,"SA14. Protect the ecological integrity of SSSI and Natura 2000 sites ","\tLarge areas of the SSSI sites are considered to be in either unfavourable with no change or to be in an unfavourable and declining condition;\n\n\tSSSIs and European sites within the Borough are under threat from poor air quality, recreational pressure and urban effects (including issues with litter).\n\n\tNeed to protect and enhance the wildlife and habitats in Waltham Forest, in particular those of international, national and regional importance.","The policy neither supports nor detracts from the achievement of the SA objective.  Therefore a neutral effect is predicted.  ","N/A","N/A","N/A","N/A","Neutral"]
[null,"SA15. Maintain and enhance the quality of the green belt and open space areas ","\tLarge areas of open space are Metropolitan Green Belt. There is a need to protect these areas of open space from development pressure.\n\nThere is a need to protect open space of varying types, which is used heavily by residents in the Borough.  For example, allotment space.  ","The policy neither supports nor detracts from the achievement of the SA objective.  Therefore a neutral effect is predicted.  ","N/A","N/A","N/A","N/A","Neutral"]
[null,"SA16. Maintain and improve local distinctiveness ","\tNeed to establish a strong sense of place, using streetscapes and buildings to create attractive and comfortable places to live, work and visit.\n\t\n\tNeed to work towards conserving local character and history, by reflecting the identity of local surroundings and materials. This should not prevent or discourage appropriate innovation.","The policy neither supports nor detracts from the achievement of the SA objective.  Therefore a neutral effect is predicted.  ","N/A","N/A","N/A","N/A","Neutral"]
[null,"SA17. Conserve and enhance the historic built environment ","\tA number of listed buildings are identified as being in poor condition and are have been included on Historic England’s Heritage at Risk Register. Opportunities exist to improve the condition of some listed buildings through development.\n\nThe Borough contains 20 Archaeological Priority Areas where there is significant known archaeological interest or potential for new discoveries.\n\n\tEnsure that the Conservation Areas, Heritage Assets (including archaeology) and features are preserved or enhanced.\n\n\tNew developments should respect the urban and historic context, improve townscape and leave a positive architectural legacy.\n\n\tImpacts of future development on the local historic environment need to be considered.\n\n\tHeritage assets should be managed to sustain their significance. \n\n\tEnsure that everyone is able to participate in understanding and sustaining their local historic environment.\n\n\tDevelopment could encroach on Conservation Areas and subsequently negatively affect townscape and heritage assets.","The policy neither supports nor detracts from the achievement of the SA objective.  Therefore a neutral effect is predicted.  ","N/A","N/A","N/A","N/A","Neutral"]
[null,"SA18. Maintain and enhance the vitality and viability of the Borough’s town centres ","\tFurther action is needed in order to support and promote retail, business, cultural, leisure and residential investment in town centres.","The policy promotes greater opportunities for a diverse range and mix of both retail and non-retail uses outside the designated primary shopping areas in the Borough.  This may include new businesses that cannot initially afford prime locations or retailers specialising in a particular product.  Criterion A of the policy requires proposals to show how the proposed use will contribute to the vitality and viability of the particular frontage and centre generally. This shows how the policy supports the achievement of the objective and is therefore considered to have a minor positive effect.  ","Indirect","Short/ Medium","Permanent/ Irreversible","Local/ Low","Minor Positive"]
[null,"SA19. Improve the local economy by enabling employment developments in appropriate places ","Action is needed to provide more support for business start-ups because only 71% of new businesses in the Borough survive more than 2 years.\n\nLower than average salaries could affect the Borough’s ability to attract inward investment.\n\nContinue to support the Upper Lee Valley Development Opportunity Area and celebrate its industrial heritage.\n\nThere are likely to be ongoing pressures on industrial sites, need to maintain industrial uses and promote strong local base of small businesses. \n\nNeed to provide additional workspaces and promote denser, mixed use development with no net loss of business floor space. ","The policy promotes proposals for new retail and non-retail uses which will help achieve this objective and is considered to have a minor positive effect.  ","Indirect","Short/ Medium","Permanent/ Irreversible","Local/ Low","Minor Positive"]
[null,"SA20. Maintain stable levels of employment in the Borough ","Skills development in growth areas is also needed both for those who are currently unemployed or underemployed.\n\nEncourage and promote flexible working arrangements for residents to support people when gaining skills and moving into employment.\n\nThere are large inequalities in employment and skill levels between wards within the Borough. Need to ensure that regeneration is inclusive.\n\nEnsure that ongoing business growth becomes a driver of productivity and fairer wages (e.g. encouraging the London Living Wage), in order to create an increase in the overall prosperity of the Waltham Forest Borough.\n\nThere is a need to create fair employment and good work for all.\nIn work support is needed to ensure sustainment of jobs, professional development and progression into better paid, secure higher quality jobs.\n\nNeed to promote employment, training programmes and sector based initiatives in the growth of skills to support creative and digital industries, construction and facilities management, retail and hospitality, and finance and business services.","The policy seeks to manage appropriate changes of use outside primary shopping areas of Walthamstow Town Centre and the District Centres.  It supports the achievement of the objective as it seeks to protect and enhance existing centres.  It is therefore considered to have a minor positive effect on helping to maintain stables levels of employment in the Borough.   ","Indirect","Short/ Medium","Permanent/ Irreversible","Local/ Low","Minor Positive"]
[null,"Mitigation"]
[null,"None."]
[null,"Enhancements "]
[null,"None."]
[null,"Summary of potential significant effects"]
[null,"None."]

{"sheet":"Policy 46 Pro of Particular Use","index":6,"n_rows":30,"n_cols":19,"rows_kept":30,"cut":false,"hidden":true,"merged":[[28,1,28,8],[29,1,29,8],[1,2,1,8],[2,2,2,8],[24,1,24,8],[25,1,25,8],[26,1,26,8],[27,1,27,8]]}
[]
[null,"Policy Name:","Proliferation of Particular Uses Policy now deleted"]
[null,"Assumptions:","None. ",null,null,null,null,null,null,null,null,null,null,"Direct","Short","Permanent/ Irreversible",null,null,"Significant Positive"]
[null,"SA Objective","Key Sustainability Issues - NEEDS UPDATING AS PER POLICY 17","Description of Impact (Including Effects on Receptor and Effects on Key Sustainability Issues)","Direct/ Indirect/ Cumulative","Duration (short, medium, long term)","Permanent/ Temporary Irreversible/ Reversible","Spatial Extent / Magnitude","Significance",null,null,null,null,"Indirect","Medium","Permanent/ Reversible",null,null,"Significant Negative"]
[null,"SA1. Meet local housing needs through the provision of a range of tenures and sizes of new dwellings \n","As the population continues to increase so does the demand for housing, infrastructure and facilities. \n\nThe population density within the Borough exceeds both the London and the national averages.\n\nThere is a need to create high quality places to live, work and recreate that are mixed and well-balanced in terms of tenure and income.\n\nPromote high quality housing with a range of tenures to reduce health issues which arise from poor quality accommodation.\n\nThere is a disparity between the cost of housing and the amount that people are able to borrow to purchase a home, which means that many people are unable to access the property market.\n\nThere is a shortfall in the provision of affordable housing to meet the requirements of those in housing need.\n\n28% of households are unsuitably housed; there is a potential shortfall in the provision of family accommodation and there is overcrowding, primarily in the private rental sector.\n\nHomelessness is expected to increase.\n\nNeed to offer greater quality, flexibility and choice to those who rent.\n\nThere is a need to increase the supply of well-designed housing of all tenures.\n\nNeed to introduce more flexible approaches for affordable housing contributions to encourage open market and mixed tenure specialist older people’s housing.","The policy neither supports nor detracts from the achievement of the SA objective.  Therefore a neutral effect is predicted.  ","N/A","N/A","N/A","N/A","Neutral",null,null,null,null,"Cumulative","Long","Temporary/ Irreversible",null,null,"Minor Positive"]
[null,"SA2. Reduce crime and the fear of crime ","Increases in racist and religious hate crimes.\n\nThe percentage of residents that are worried about crime in the Borough remains higher than the London average.\n\nNeed to provide safe and accessible environments where crime and disorder, and the fear of crime, do not undermine quality of life.\n\nNeed to develop an approach to tackling crime, improving liveability and reducing anti-social behaviour.","The policy neither supports nor detracts from the achievement of the SA objective.  Therefore a neutral effect is predicted.  ","N/A","N/A","N/A","N/A","Neutral",null,null,null,null,"N/A","Short/ Medium","Temporary/ Reversible",null,null,"Minor Negative"]
[null,"SA3. Improve standard of health and wellbeing of those who live and work in the Borough ","Currently a large proportion of the population are aged over 50 and this is projected to rise over the next 20 years (+26% rise by 2021 ).\n\nImprove life expectancies through promoting healthy lifestyles for all ages.\n\nNeed to ensure adequate access to green spaces and recreational facilities to promote active and healthy lifestyles.\n\nNeed to increase recognition of the growing evidence of a relationship between physical and mental health.\n\nNeed to ensure that hospitals have fit for purpose facilities (i.e. less converted houses) that meet the needs of patients.\n\nNeed to increase levels of active travel throughout the borough in order to increase physical activity levels and tackle poor air quality.","The policy neither supports nor detracts from the achievement of the SA objective.  Therefore a neutral effect is predicted.  ","N/A","N/A","N/A","N/A","Neutral",null,null,null,null,null,"Medium/ Long","N/A",null,null,"Neutral"]
[null,"SA4. Improve community cohesion and reduce inequalities through the provision of community facilities to meet local cultural, educational, recreational and social needs ","Inequalities in health and life expectancy between ethnic groups.\n\nDisparities between wards, particularly between the north and south of the Borough.\n\nNeed to provide inclusive services; promote equal opportunities; oppose discrimination, intolerance and disadvantage through reducing inequalities and promoting community cohesion.\nHelp to support development of successful neighbourhoods.\n\n\tThere is a need to create high quality places to live, work and recreate that are mixed and well-balanced in terms of tenure and income.\n\n\tAdequate support and facilities for older residents, including independent living, has been noted in particular to be needed.\n\n\tNeed to build on borough’s arts, culture and sport strengths across the borough's diverse and changing population.\n \n\tNeed to reduce the number of older people who feel socially isolated, by getting them actively participating in community life.\n\n\tCurrently a large proportion of the population are aged over 50 and this is projected to rise over the next 20 years (+26% rise by 2021 ).\n\n\tNeed to ensure that growth supports the delivery of vital infrastructure and new facilities across the borough.\n\n\tHelp to support development of successful neighbourhoods.\n\n\tNeed to ensure that all residents have access to training and skills development to enable them to access and progress into high quality employment.","Planning Objective B of the policy promotes the conversion of retail and other commercial premises to appropriate alternative uses such as community uses, leisure and entertainment uses subject to other policies in the plan.  Policy Objective E also promotes the development of meanwhile and temporary uses with space provision for art, performance and exhibition as well as for educational and vocational projects and activities.  The provision of community facilities through this policy supports the achievement of this objective and is therefore considered to have a significant positive effect.  \n\n(upgraded scoring now there are 2 policy criteria promoting community facilities)","Indirect","Short/ Medium","Temporary/ Reversible","Local/ Low","Significant Positive",null,null,null,"Local/ Low",null,"N/A",null,null,null,"Uncertain"]
[null,"SA5. Improve opportunities for access to local services, facilities and employment through an integrated sustainable transport system, reducing car use for all journey lengths ","\t\tContinual growth in car ownership will contribute to further air pollution, and associated impacts on climate, human health and biodiversity. \n\n\tNeed to work towards improving air quality and reducing noise impacts from transport.\n\n\tThere is a need to make public transport more accessible in some areas of the Borough.\n\n\tThere is a need to promote walking and cycling (building on Enjoy Waltham Forest (“Mini Holland”) programmes) for local journeys in place of travel by private car. There should also be a focus on promoting public transport use instead of cars for medium and longer journeys.\n\n\tThere is a need to reduce car parking spaces in order to discourage private car use and improve air quality.\n\n\tOne in five journeys each weekday morning and afternoon involves trips to school, even though most journeys to schools are under a mile. There is a need to reduce school journeys by reducing Drop Off/Pick Up arrangements for new school developments, and encouraging sustainable, active travel amongst school pupils.\n\n\tAs the population grows, so does the need to change current infrastructure to meet the demands of all residents whilst making it future proof. \n\n\tNeed to ensure that growth supports the delivery of vital infrastructure and new facilities across the Borough.\n\n\tNeed to provide public transport capacity and safeguard land for transport.\n\n\tHelp to enhance London’s transport connectivity.\n\n\tImprovements to road safety are needed to reduce casualties.\n\n\tNeed to make cycle parking safe and easy to use.\n\n\tThere is a need to provide electric vehicle infrastructure, such as charging points. \n","The policy neither supports nor detracts from the achievement of the SA objective.  Therefore a neutral effect is predicted.  ","N/A","N/A","N/A","N/A","Neutral",null,null,null,"Local/ Medium"]
[null,"SA6. Prevent production of waste, improve resource efficiency and increase recycling and recovery ","\tThe amount of waste produced is reducing but still exceeds both the London and national average. \n\n\tThe London Plan encourages greater self-sufficiency for waste management in London and sustainable transportation of waste.\n\n\tRecycling is increasing but still falls short of government targets.\n\n\tNeed to ensure that growth supports the delivery of vital infrastructure and new facilities across the Borough.\n\n\tNeed to minimise the impact of municipal waste management on the Borough’s environment. \n\n\tNeed to reduce the carbon footprint of municipal waste.\n\n\tNeed to ensure that all waste is managed in the most environmentally friendly way.","The policy neither supports nor detracts from the achievement of the SA objective.  Therefore a neutral effect is predicted.  ","N/A","N/A","N/A","N/A","Neutral",null,null,null,"Local/ High"]
[null,"SA7. Reduce greenhouse gas emissions and promote low carbon growth ","\tGreenhouse gas emissions need to be stabilised and reduced over time.\n\n\tHelp promote low carbon heat network. \n\n\tNeed to identify opportunities for growth of the low carbon economy in the Upper Lee Valley.\n\n\tThere is a need to provide electric vehicle infrastructure, such as charging points. ","The policy neither supports nor detracts from the achievement of the SA objective.  Therefore a neutral effect is predicted.  ","N/A","N/A","N/A","N/A","Neutral",null,null,null,"Regional/ Low"]
[null,"SA8. Conserve energy ","\tThere is a need to continue to promote the construction of energy efficient buildings, and to support the installation of renewable and low or zero carbon technology. ","The policy neither supports nor detracts from the achievement of the SA objective.  Therefore a neutral effect is predicted.  ","N/A","N/A","N/A","N/A","Neutral",null,null,null,"Regional/ Medium"]
[null,"SA9. Improve air quality ","\tContinual growth in car ownership will contribute further air pollution. \n\n\tReliance on the petrol or diesel-fuelled private car as the main mode of transport.\n\n\tAir pollution from the strategic road network is an issue across the Borough and NO2 emissions are remaining constant, not decreasing as predicted. \n\n\tIncreasing use of biofuels (biodiesel and biomass) for heating schemes will cause further air quality issues. \n\n\tNeed to help reduce pollution from road vehicles, buildings, industry and construction.\n\n\tNeed to improve efficacy of measures within the AQMA. \nThere is a need to provide electric vehicle infrastructure, such as charging points. ","The policy neither supports nor detracts from the achievement of the SA objective.  Therefore a neutral effect is predicted.  ","N/A","N/A","N/A","N/A","Neutral",null,null,null,"Regional/ High"]
[null,"SA10. Improve water quality in rivers and groundwater and ensure the efficient use of water resources ","\tDiffuse urban water pollution exists in local rivers and water bodies.\n\n\tIncreasing population will put strain on water resources.\n\n\tPotential impacts of the Local Plan policies and site allocations on groundwater need to be identified and addressed.","The policy neither supports nor detracts from the achievement of the SA objective.  Therefore a neutral effect is predicted.  ","N/A","N/A","N/A","N/A","Neutral",null,null,null,"National/ Low"]
[null,"SA 11. Reduce the risk of flooding and improve resilience to climate change ","\tHigh number of properties at risk at flooding and there is a need to promote flood resistance and resilience measures for these properties.\n\n\tNew development will need to incorporate SUDS to sustainably reduce flood risk.\n\n\tNeed to promote the use of new technologies and innovation in flood mitigation measures.\n\n\tThere will be an increasing need to plan for and implement/facilitate climate change adaptation, in respect of rising temperatures, water scarcity and extreme weather events, particularly heavy rainfall/flooding.\n\n\tThere is a need to plan and prepare for the expected impacts of unavoidable climate change by developing adaptation responses and building resilience. \n\n\tNew developments need to minimise vulnerability and provide resilience to climate change.\n\n\tThere is a need to work with communities to help tackle climate change.","The policy neither supports nor detracts from the achievement of the SA objective.  Therefore a neutral effect is predicted.  ","N/A","N/A","N/A","N/A","Neutral",null,null,null,"National/ Medium"]
[null,"SA12. Ensure the efficient use of land and buildings and protect soil quality and geological resources ","\tThere is finite availability of previously developed land for development; this may result in the use of greenfield land in the future. \n\n\tThere is a need to protect soils and the important ecosystem services they provide – particularly during construction and development.\n\n\tNeed to protect designated geological sites.","The policy supports development proposals that involve the revitalisation, adaption and regeneration of the borough's designated centres/retail parades and other non-designated areas.  It promotes the conversion and adaption of existing buildings to appropriate alternative uses and the conversion of vacant commercial floorspace.  this includes vacant units.  This exemplifies how the policy supports the achievement of this objective and is therefore considered to have a significant positive effect.  ","Direct","Medium/ Long","Permanent/ Reversible","Local/ Low","Significant Positive",null,null,null,"National/ High"]
[null,"SA13. Conserve and enhance biodiversity and the natural environment, improving resilience to climate change ","\tSupport is needed to achieve local BAP targets.\n\n\tNeed to promote effective land-management to support, protect and enhance biodiversity.\n\n\tIncreases in population will cause a demand for more development, where there is a potential for loss of valuable habitats which have yet to be designated for nature conservation as a direct result.\n\n\tConsider and plan for the impacts of climate change on species and habitats.\n\n\tThere is a need to help encourage people to engage with the ownership, design, management, maintenance and use of their environment as part of their own vision for their neighbourhood.\n\n\tNeed to recognise the wider benefits of ecosystem services; minimise impacts on biodiversity and provide net gains in biodiversity where possible.\n\n\tNeed to work to conserve and enhance the local environment.","The policy neither supports nor detracts from the achievement of the SA objective.  Therefore a neutral effect is predicted.  ","N/A","N/A","N/A","N/A","Neutral",null,null,null,"N/A"]
[null,"SA14. Protect the ecological integrity of SSSI and Natura 2000 sites ","\tLarge areas of the SSSI sites are considered to be in either unfavourable with no change or to be in an unfavourable and declining condition;\n\n\tSSSIs and European sites within the Borough are under threat from poor air quality, recreational pressure and urban effects (including issues with litter).\n\n\tNeed to protect and enhance the wildlife and habitats in Waltham Forest, in particular those of international, national and regional importance.","The policy neither supports nor detracts from the achievement of the SA objective.  Therefore a neutral effect is predicted.  ","N/A","N/A","N/A","N/A","Neutral"]
[null,"SA15. Maintain and enhance the quality of the green belt and open space areas ","\tLarge areas of open space are Metropolitan Green Belt. There is a need to protect these areas of open space from development pressure.","The policy neither supports nor detracts from the achievement of the SA objective.  Therefore a neutral effect is predicted.  ","N/A","N/A","N/A","N/A","Neutral"]
[null,"SA16. Maintain and improve local distinctiveness ","\tNeed to establish a strong sense of place, using streetscapes and buildings to create attractive and comfortable places to live, work and visit.\n\t\n\tNeed to work towards conserving local character and history, by reflecting the identity of local surroundings and materials. This should not prevent or discourage appropriate innovation.","Planning Objective H of the policy promotes local distinctiveness with regard to the 'offer' of individual centres, their place setting and the development of differentiated niche roles. This shows how the policy supports the achievement of this SA objective and the recognition of the  importance that the design and appearance of a proposed use is in order to integrate well within the existing streetscape.  It is therefore considered to have a minor positive effect.  ","Indirect","Short/ Medium","Permanent/ Reversible","Local/ Low","Minor Positive"]
[null,"SA17. Conserve and enhance the historic built environment ","\tA number of listed buildings are identified as being in poor condition and are have been included on Historic England’s Heritage at Risk Register. Opportunities exist to improve the condition of some listed buildings through development.\n\n\tEnsure that the Conservation Areas, Heritage Assets and features are preserved or enhanced.\n\n\tNew developments should respect the urban and historic context, improve townscape and leave a positive architectural legacy.\n\n\tImpacts of future development on the local historic environment need to be considered.\n\n\tHeritage assets should be managed to sustain their significance. \n\n\tEnsure that everyone is able to participate in understanding and sustaining their local historic environment.\n\n\tDevelopment could encroach on Conservation Areas and subsequently negatively affect townscape and heritage assets.","The policy neither supports nor detracts from the achievement of the SA objective.  Therefore a neutral effect is predicted.  ","N/A","N/A","N/A","N/A","Neutral"]
[null,"SA18. Maintain and enhance the vitality and viability of the Borough’s town centres ","\tFurther action is needed in order to support and promote retail, business, cultural, leisure and residential investment in town centres.","This policy fully supports the achievement of this objective.  For example, it seeks to encourage the development of flexible and adaptable units and establish Business Improvement Districts to create an improved environment for business and secure improvements in town centre performance.  A mix of uses on individual sites and across and area will support vitality and viability and encourage investment.  It is therefore considered to have a significant positive effect.  ","Indirect","Short/ Medium","Permanent/ Irreversible","Local/ Low","Significant Positive"]
[null,"SA19. Improve the local economy by enabling employment developments in appropriate places ","Action is needed to provide more support for business start-ups because only 71% of new businesses in the Borough survive more than 2 years.\n\nLower than average salaries could affect the Borough’s ability to attract inward investment.\n\nContinue to support the Upper Lee Valley Development Opportunity Area and celebrate its industrial heritage.\n\nThere are likely to be ongoing pressures on industrial sites, need to maintain industrial uses and promote strong local base of small businesses. \n\nNeed to provide additional workspaces and promote denser, mixed use development with no net loss of business floor space. ","The policy promotes development proposals involving the revitalisation, adaptation and regeneration in designated centres and parades which will help achieve this objective and is considered to have a minor positive effect.  ","Indirect","Short/ Medium","Permanent/ Irreversible","Local/ Low","Minor Positive"]
[null,"SA20. Maintain stable levels of employment in the Borough ","Skills development in growth areas is also needed both for those who are currently unemployed or underemployed.\n\nEncourage and promote flexible working arrangements for residents to support people when gaining skills and moving into employment.\n\nThere are large inequalities in employment and skill levels. between wards within the Borough. Need to ensure that regeneration is inclusive.\n\nEnsure that ongoing business growth becomes a driver of productivity and fairer wages (e.g. encouraging the London Living Wage), in order to create an increase in the overall prosperity of the Waltham Forest Borough.\n\nThere is a need to create fair employment and good work for all.\nIn work support is needed to ensure sustainment of jobs, professional development and progression into better paid, secure higher quality jobs.\n\nNeed to promote employment, training programmes and sector based initiatives in the growth of skills to support creative and digital industries, construction and facilities management, retail and hospitality, and finance and business services.","The policy seeks to encourage the development of flexible and adaptable uses in designated centres and parades and supports the conversion of retail and other commercial premises to appropriate alternative uses.  It supports the achievement of the objective as it seeks to protect and enhance existing centres.  It is therefore considered to have a minor positive effect on helping to maintain stables levels of employment in the Borough.   ","Indirect","Short/ Medium","Permanent/ Irreversible","Local/ Low","Minor Positive"]
[null,"Mitigation"]
[null,"None."]
[null,"Enhancements "]
[null,"None. "]
[null,"Summary of potential significant effects"]
[null,"Potential significant positive effects are predicted for SA12 as the policy promotes the regeneration, revitalisation and adaptation of existing buildings and land which will help maintain and enhance the vitality and viability of the Borough's designated centres and parades (SA18).  "]

{"sheet":"Policy 52 Making Safer Places ","index":7,"n_rows":30,"n_cols":19,"rows_kept":30,"cut":false,"hidden":true,"merged":[[28,1,28,8],[29,1,29,8],[1,2,1,8],[2,2,2,8],[24,1,24,8],[25,1,25,8],[26,1,26,8],[27,1,27,8]]}
[]
[null,"Policy Name:","Making Safer Places - deleted"]
[null,"Assumptions:","None. ",null,null,null,null,null,null,null,null,null,null,"Direct","Short","Permanent/ Irreversible",null,null,"Significant Positive"]
[null,"SA Objective","Key Sustainability Issues ","Description of Impact (Including Effects on Receptor and Effects on Key Sustainability Issues)","Direct/ Indirect/ Cumulative","Duration (short, medium, long term)","Permanent/ Temporary Irreversible/ Reversible","Spatial Extent / Magnitude","Significance",null,null,null,null,"Indirect","Medium","Permanent/ Reversible",null,null,"Significant Negative"]
[null,"SA1. Meet local housing needs through the provision of a range of tenures and sizes of new dwellings \n","As the population continues to increase so does the demand for housing, infrastructure and facilities. \n\nThe population density within the Borough exceeds both the London and the national averages.\n\nThere is a need to create high quality places to live, work and recreate that are mixed and well-balanced in terms of tenure and income.\n\nPromote high quality housing with a range of tenures to reduce health issues which arise from poor quality accommodation.\n\nThere is a disparity between the cost of housing and the amount that people are able to borrow to purchase a home, which means that many people are unable to access the property market.\n\nThere is a shortfall in the provision of affordable housing to meet the requirements of those in housing need.\n\n28% of households are unsuitably housed; there is a potential shortfall in the provision of family accommodation and there is overcrowding, primarily in the private rental sector.\n\nHomelessness is expected to increase.\n\nNeed to offer greater quality, flexibility and choice to those who rent.\n\nThere is a need to increase the supply of well-designed housing of all tenures.\n\nNeed to introduce more flexible approaches for affordable housing contributions to encourage open market and mixed tenure specialist older people’s housing.","The policy neither supports nor detracts from the achievement of the SA objective.  Therefore a neutral effect is predicted.  ","N/A","N/A","N/A","N/A","Neutral",null,null,null,null,"Cumulative","Long","Temporary/ Irreversible",null,null,"Minor Positive"]
[null,"SA2. Reduce crime and the fear of crime ","Increases in racist and religious hate crimes.\n\nThe percentage of residents that are worried about crime in the Borough remains higher than the London average.\n\nNeed to provide safe and accessible environments where crime and disorder, and the fear of crime, do not undermine quality of life.\n\nNeed to develop an approach to tackling crime, improving liveability and reducing anti-social behaviour.","The policy aims to improve community safety and cohesion by designing out crime.\nIt promotes the design of new development to create safe environments and reduce crime and disorder. For example Criteria A of the policy requires all new development to incorporate principles and practises of 'Designing out Crime' and 'Secured by Design'. Criteria C of the policy promotes safer streets and public realm improvements throughout the Borough.  This fully supports the achievement of this objective and is therefore considered to have a significant positive effect.  ","Direct","Medium/ Long","Permanent/ Irreversible","Local/ High","Significant Positive",null,null,null,null,"N/A","Short/ Medium","Temporary/ Reversible",null,null,"Minor Negative"]
[null,"SA3. Improve standard of health and wellbeing of those who live and work in the Borough ","Currently a large proportion of the population are aged over 50 and this is projected to rise over the next 20 years (+26% rise by 2021 ).\n\nImprove life expectancies through promoting healthy lifestyles for all ages.\n\nNeed to ensure adequate access to green spaces and recreational facilities to promote active and healthy lifestyles.\n\nNeed to increase recognition of the growing evidence of a relationship between physical and mental health.\n\nNeed to ensure that hospitals have fit for purpose facilities (i.e. less converted houses) that meet the needs of patients.\n\nNeed to increase levels of active travel throughout the Borough in order to increase physical activity levels and tackle poor air quality.","The policy neither supports nor detracts from the achievement of the SA objective.  Therefore a neutral effect is predicted.  ","N/A","N/A","N/A","N/A","Neutral",null,null,null,null,null,"Medium/ Long","N/A",null,null,"Neutral"]
[null,"SA4. Improve community cohesion and reduce inequalities through the provision of community facilities to meet local cultural, educational, recreational and social needs ","Inequalities in health and life expectancy between ethnic groups.\n\nDisparities between wards, particularly between the north and south of the Borough.\n\nNeed to provide inclusive services; promote equal opportunities; oppose discrimination, intolerance and disadvantage through reducing inequalities and promoting community cohesion.\nHelp to support development of successful neighbourhoods.\n\n\tThere is a need to create high quality places to live, work and recreate that are mixed and well-balanced in terms of tenure and income.\n\n\tAdequate support and facilities for older residents, including independent living, has been noted in particular to be needed.\n\n\tNeed to build on Borough’s arts, culture and sport strengths across the Borough's diverse and changing population.\n \n\tNeed to reduce the number of older people who feel socially isolated, by getting them actively participating in community life.\n\n\tCurrently a large proportion of the population are aged over 50 and this is projected to rise over the next 20 years (+26% rise by 2021 ).\n\n\tNeed to ensure that growth supports the delivery of vital infrastructure and new facilities across the Borough.\n\n\tHelp to support development of successful neighbourhoods.\n\n\tNeed to ensure that all residents have access to training and skills development to enable them to access and progress into high quality employment.","The policy aims to improve community safety and cohesion by designing out crime by working with partners to achieve this and by requiring all new development to incorporate principles and practices which design out crime.  This will improve community cohesion and is therefore considered to have a significant positive effect.  ","Direct","Short/ Medium","Permanent/ Irreversible","Local/ Medium","Significant Positive",null,null,null,"Local/ Low",null,"N/A",null,null,null,"Uncertain"]
[null,"SA5. Improve opportunities for access to local services, facilities and employment through an integrated sustainable transport system, reducing car use for all journey lengths ","\tNeed to work towards improving air quality and reducing noise impacts from transport.\n\n\tThere is a need to make public transport more accessible in some areas of the Borough.\n\n\tThere is a need to promote walking and cycling (building on Enjoy Waltham Forest (“Mini Holland”) programmes) for local journeys in place of travel by private car. There should also be a focus on promoting public transport use instead of cars for medium and longer journeys.\n\n\tThere is a need to reduce car parking spaces in order to discourage private car use and improve air quality.\n\n\tOne in five journeys each weekday morning and afternoon involves trips to school, even though most journeys to schools are under a mile. There is a need to reduce school journeys by reducing Drop Off/Pick Up arrangements for new school developments, and encouraging sustainable, active travel amongst school pupils.\n\n\tAs the population grows, so does the need to change current infrastructure to meet the demands of all residents whilst making it future proof. \n\n\tNeed to ensure that growth supports the delivery of vital infrastructure and new facilities across the Borough.\n\n\tNeed to provide public transport capacity and safeguard land for transport.\n\n\tHelp to enhance London’s transport connectivity.\n\n\tImprovements to road safety are needed to reduce casualties.\n\n\tNeed to make cycle parking safe and easy to use.\n\n\tThere is a need to provide electric vehicle infrastructure, such as charging points. \n","The policy neither supports nor detracts from the achievement of the SA objective.  Therefore a neutral effect is predicted.  ","N/A","N/A","N/A","N/A","Neutral",null,null,null,"Local/ Medium"]
[null,"SA6. Prevent production of waste, improve resource efficiency and increase recycling and recovery ","\tThe amount of waste produced is reducing but still exceeds both the London and national average. \n\n\tThe London Plan encourages greater self-sufficiency for waste management in London and sustainable transportation of waste.\n\n\tRecycling is increasing but still falls short of government targets.\n\n\tNeed to ensure that growth supports the delivery of vital infrastructure and new facilities across the Borough.\n\n\tNeed to minimise the impact of municipal waste management on the Borough’s environment. \n\n\tNeed to reduce the carbon footprint of municipal waste.\n\n\tNeed to ensure that all waste is managed in the most environmentally friendly way.","The policy neither supports nor detracts from the achievement of the SA objective.  Therefore a neutral effect is predicted.  ","N/A","N/A","N/A","N/A","Neutral",null,null,null,"Local/ High"]
[null,"SA7. Reduce greenhouse gas emissions and promote low carbon growth ","\tGreenhouse gas emissions need to be stabilised and reduced over time.\n\n\tHelp promote low carbon heat network. \n\n\tNeed to identify opportunities for growth of the low carbon economy in the Upper Lee Valley.\n\n\tThere is a need to provide electric vehicle infrastructure, such as charging points. ","The policy neither supports nor detracts from the achievement of the SA objective.  Therefore a neutral effect is predicted.  ","N/A","N/A","N/A","N/A","Neutral",null,null,null,"Regional/ Low"]
[null,"SA8. Conserve energy ","\tThere is a need to continue to promote the construction of energy efficient buildings, and to support the installation of renewable and low or zero carbon technology. ","The policy neither supports nor detracts from the achievement of the SA objective.  Therefore a neutral effect is predicted.  ","N/A","N/A","N/A","N/A","Neutral",null,null,null,"Regional/ Medium"]
[null,"SA9. Improve air quality ","\tReliance on the petrol or diesel-fuelled private car as the main mode of transport.\n\n\tAir pollution from the strategic road network is an issue across the Borough and NO2 emissions are remaining constant, not decreasing as predicted. \n\n\tIncreasing use of biofuels (biodiesel and biomass) for heating schemes will cause further air quality issues. \n\n\tNeed to help reduce pollution from road vehicles, buildings, industry and construction.\n\n\tNeed to improve efficacy of measures within the AQMA. \n\nThere is a need to provide electric vehicle infrastructure, such as charging points. ","The policy neither supports nor detracts from the achievement of the SA objective.  Therefore a neutral effect is predicted.  ","N/A","N/A","N/A","N/A","Neutral",null,null,null,"Regional/ High"]
[null,"SA10. Improve water quality in rivers and groundwater and ensure the efficient use of water resources ","\tDiffuse urban water pollution exists in local rivers and water bodies.\n\nThere should be no deterioration in the health and quality of existing water bodies and development should improve the status of waterbodies to achieve 'Good Overall Status' in accordance with the Water Framework Directive', such as through installing rain planters and reed beds.\n\n\tIncreasing population will put strain on water resources.\n\nNew development will need to allow for an 8 metre buffer zone on both sides of a main river to allow access to the flood defences for maintenance or essential remedial work as well as promoting green and blue infrastructure links, water quality and human health.\n\n\tPotential impacts of the Local Plan policies and site allocations on groundwater need to be identified and addressed.","The policy neither supports nor detracts from the achievement of the SA objective.  Therefore a neutral effect is predicted.  ","N/A","N/A","N/A","N/A","Neutral",null,null,null,"National/ Low"]
[null,"SA 11. Reduce the risk of flooding and improve resilience to climate change ","\tHigh number of properties at risk at flooding and there is a need to promote the construction of new flood resistance and resilience measures for existing and future properties to ensure they are resilient to the future effect of climate change and protected against future flood risk.  \n\nNatural flood management techniques should be promoted.  \n\n\tNew development will need to incorporate SUDS to sustainably reduce flood risk and there is a need to encourage the retrofitting of existing developments with SUD systems.\n\nEnsure that existing flood defences are maintained responsibly by the riparian owner for remedial works to be carried out where necessary.\n\n\tNeed to promote the use of new technologies and innovation in flood mitigation measures.\n\n\tThere will be an increasing need to plan for and implement/facilitate climate change adaptation, in respect of rising temperatures, water scarcity and extreme weather events, particularly heavy rainfall/flooding.\n\n\tThere is a need to plan and prepare for the expected impacts of unavoidable climate change by developing adaptation responses and building resilience. \n\n\tNew developments need to minimise vulnerability and provide resilience to climate change.\n\n\tThere is a need to work with communities to help tackle climate change.","The policy neither supports nor detracts from the achievement of the SA objective.  Therefore a neutral effect is predicted.  ","N/A","N/A","N/A","N/A","Neutral",null,null,null,"National/ Medium"]
[null,"SA12. Ensure the efficient use of land and buildings and protect soil quality and geological resources ","\tThere is finite availability of previously developed land for development; this may result in the use of greenfield land in the future. \n\n\tThere is a need to protect soils and the important ecosystem services they provide – particularly during construction and development.\n\n\tNeed to protect designated geological sites.","The policy aims to design out crime which will help improve community safety and cohesion.  Criteria B of the policy promotes co-ordinated land uses to minimise the likelihood of an increase in crime and disorder.  This will contribute to the efficient use of land and is therefore considered to have a minor positive effect. ","Indirect","Medium/ Long","Permanent/ Irreversible","Local/ Low","Minor Positive",null,null,null,"National/ High"]
[null,"SA13. Conserve and enhance biodiversity and the natural environment, improving resilience to climate change ","\tSupport is needed to achieve local BAP targets.\n\n\tNeed to promote effective land-management to support, protect and enhance biodiversity.\n\n\tIncreases in population will cause a demand for more development, where there is a potential for loss of valuable habitats which have yet to be designated for nature conservation as a direct result.\n\n\tConsider and plan for the impacts of climate change on species and habitats.\n\n\tThere is a need to help encourage people to engage with the ownership, design, management, maintenance and use of their environment as part of their own vision for their neighbourhood.\n\n\tNeed to recognise the wider benefits of ecosystem services and minimise impacts on biodiversity.\n\nIncrease awareness that green infrastructure and resilient ecological networks play an important role in aiding climate change adaptation and resilience.\n\nSeek to enhance green infrastructure networks within the Borough.\n\nEnsure current ecological networks are not compromised, and future improvements in habitat connectivity are not prejudiced.\n\nIn line with NPPF, paragraph 174, new development should achieve biodiversity net-gain in a hierarchical approach with on-site net-gain being preferred and off-site compensation as a last resort.\n\n\tNeed to work to conserve and enhance the local environment.","The policy neither supports nor detracts from the achievement of the SA objective.  Therefore a neutral effect is predicted.  ","N/A","N/A","N/A","N/A","Neutral",null,null,null,"N/A"]
[null,"SA14. Protect the ecological integrity of SSSI and Natura 2000 sites ","\tLarge areas of the SSSI sites are considered to be in either unfavourable with no change or to be in an unfavourable and declining condition;\n\n\tSSSIs and European sites within the Borough are under threat from poor air quality, recreational pressure and urban effects (including issues with litter).\n\n\tNeed to protect and enhance the wildlife and habitats in Waltham Forest, in particular those of international, national and regional importance.","The policy neither supports nor detracts from the achievement of the SA objective.  Therefore a neutral effect is predicted.  ","N/A","N/A","N/A","N/A","Neutral"]
[null,"SA15. Maintain and enhance the quality of the green belt and open space areas ","\tLarge areas of open space are Metropolitan Green Belt. There is a need to protect these areas of open space from development pressure.\n\nThere is a need to protect open space of varying types, which is used heavily by residents in the Borough.  For example, allotment space.  ","The policy neither supports nor detracts from the achievement of the SA objective.  Therefore a neutral effect is predicted.  ","N/A","N/A","N/A","N/A","Neutral"]
[null,"SA16. Maintain and improve local distinctiveness ","\tNeed to establish a strong sense of place, using streetscapes and buildings to create attractive and comfortable places to live, work and visit.\n\t\n\tNeed to work towards conserving local character and history, by reflecting the identity of local surroundings and materials. This should not prevent or discourage appropriate innovation.","The policy promotes designing out crime and designing in community safety and how the design and layout of the physical environment is key to creating safe environments and reducing crime and disorder.  This will contribute to establishing a strong sense of place to live, work and visit which maintain and improve local distinctiveness.  It is therefore considered to have a minor positive effect.  ","Indirect","Medium/ Long","Permanent/ Irreversible","Local/ Low","Minor Positive"]
[null,"SA17. Conserve and enhance the historic built environment ","\tA number of listed buildings are identified as being in poor condition and are have been included on Historic England’s Heritage at Risk Register. Opportunities exist to improve the condition of some listed buildings through development.\n\nThe Borough contains 20 Archaeological Priority Areas where there is significant known archaeological interest or potential for new discoveries.\n\n\tEnsure that the Conservation Areas, Heritage Assets (including archaeology) and features are preserved or enhanced.\n\n\tNew developments should respect the urban and historic context, improve townscape and leave a positive architectural legacy.\n\n\tImpacts of future development on the local historic environment need to be considered.\n\n\tHeritage assets should be managed to sustain their significance. \n\n\tEnsure that everyone is able to participate in understanding and sustaining their local historic environment.\n\n\tDevelopment could encroach on Conservation Areas and subsequently negatively affect townscape and heritage assets.","The policy neither supports nor detracts from the achievement of the SA objective.  Therefore a neutral effect is predicted.  ","N/A","N/A","N/A","N/A","Neutral"]
[null,"SA18. Maintain and enhance the vitality and viability of the Borough’s town centres ","\tFurther action is needed in order to support and promote retail, business, cultural, leisure and residential investment in town centres.","The policy neither supports nor detracts from the achievement of the SA objective.  Therefore a neutral effect is predicted.  ","N/A","N/A","N/A","N/A","Neutral"]
[null,"SA19. Improve the local economy by enabling employment developments in appropriate places ","Action is needed to provide more support for business start-ups because only 71% of new businesses in the Borough survive more than 2 years.\n\nLower than average salaries could affect the Borough’s ability to attract inward investment.\n\nContinue to support the Upper Lee Valley Development Opportunity Area and celebrate its industrial heritage.\n\nThere are likely to be ongoing pressures on industrial sites, need to maintain industrial uses and promote strong local base of small businesses. \n\nNeed to provide additional workspaces and promote denser, mixed use development with no net loss of business floor space. ","The policy neither supports nor detracts from the achievement of the SA objective.  Therefore a neutral effect is predicted.  ","N/A","N/A","N/A","N/A","Neutral"]
[null,"SA20. Maintain stable levels of employment in the Borough ","Skills development in growth areas is also needed both for those who are currently unemployed or underemployed.\n\nEncourage and promote flexible working arrangements for residents to support people when gaining skills and moving into employment.\n\nThere are large inequalities in employment and skill levels between wards within the Borough. Need to ensure that regeneration is inclusive.\n\nEnsure that ongoing business growth becomes a driver of productivity and fairer wages (e.g. encouraging the London Living Wage), in order to create an increase in the overall prosperity of the Waltham Forest Borough.\n\nThere is a need to create fair employment and good work for all.\nIn work support is needed to ensure sustainment of jobs, professional development and progression into better paid, secure higher quality jobs.\n\nNeed to promote employment, training programmes and sector based initiatives in the growth of skills to support creative and digital industries, construction and facilities management, retail and hospitality, and finance and business services.","The policy neither supports nor detracts from the achievement of the SA objective.  Therefore a neutral effect is predicted.  ","N/A","N/A","N/A","N/A","Neutral"]
[null,"Mitigation"]
[null,"None. "]
[null,"Enhancements "]
[null,"None. "]
[null,"Summary of potential significant effects"]
[null,"\nPotential significant positive effects are predicted for SA2 and SA4 as the policy will help reduce crime and the fear of crime and improve community cohesion.  "]

{"sheet":"Summary table","index":8,"n_rows":9,"n_cols":31,"rows_kept":9,"cut":false,"hidden":true,"merged":[]}
[null,null,null,null,null,"I",5,6,7,8,9,10,11,12,13,14,15,16,17,18,19,20,21,22,23,24]
[null,null,null,null,null,"Policy Name","SA1","SA2","SA3","SA4","SA5","SA6","SA7","SA8","SA9","SA10","SA11","SA12","SA13","SA14","SA15","SA16","SA17","SA18","SA19","SA20"]
[4,{"$f":"INDEX(SheetNames,A3)","v":{"$error":"#NAME?"}},null,null,null,"Option 1 OAN",{"$f":"INDIRECT(\"'\"&$F3&\"'\"&\"!\"&$F$1&G$1)","v":0},{"$f":"INDIRECT(\"'\"&$F3&\"'\"&\"!\"&$F$1&H$1)","v":0},{"$f":"INDIRECT(\"'\"&$F3&\"'\"&\"!\"&$F$1&I$1)","v":0},{"$f":"INDIRECT(\"'\"&$F3&\"'\"&\"!\"&$F$1&J$1)","v":0},{"$f":"INDIRECT(\"'\"&$F3&\"'\"&\"!\"&$F$1&K$1)","v":0},{"$f":"INDIRECT(\"'\"&$F3&\"'\"&\"!\"&$F$1&L$1)","v":0},{"$f":"INDIRECT(\"'\"&$F3&\"'\"&\"!\"&$F$1&M$1)","v":0},{"$f":"INDIRECT(\"'\"&$F3&\"'\"&\"!\"&$F$1&N$1)","v":0},{"$f":"INDIRECT(\"'\"&$F3&\"'\"&\"!\"&$F$1&O$1)","v":0},{"$f":"INDIRECT(\"'\"&$F3&\"'\"&\"!\"&$F$1&P$1)","v":0},{"$f":"INDIRECT(\"'\"&$F3&\"'\"&\"!\"&$F$1&Q$1)","v":0},{"$f":"INDIRECT(\"'\"&$F3&\"'\"&\"!\"&$F$1&R$1)","v":0},{"$f":"INDIRECT(\"'\"&$F3&\"'\"&\"!\"&$F$1&S$1)","v":0},{"$f":"INDIRECT(\"'\"&$F3&\"'\"&\"!\"&$F$1&T$1)","v":0},{"$f":"INDIRECT(\"'\"&$F3&\"'\"&\"!\"&$F$1&U$1)","v":0},{"$f":"INDIRECT(\"'\"&$F3&\"'\"&\"!\"&$F$1&V$1)","v":0},{"$f":"INDIRECT(\"'\"&$F3&\"'\"&\"!\"&$F$1&W$1)","v":0},{"$f":"INDIRECT(\"'\"&$F3&\"'\"&\"!\"&$F$1&X$1)","v":0},{"$f":"INDIRECT(\"'\"&$F3&\"'\"&\"!\"&$F$1&Y$1)","v":0},{"$f":"INDIRECT(\"'\"&$F3&\"'\"&\"!\"&$F$1&Z$1)","v":0},null,{"$f":"#REF!","v":{"$error":"#REF!"}},null,"Significant positive","+ +"]
[5,{"$f":"INDEX(SheetNames,A4)","v":{"$error":"#NAME?"}},null,null,null,"Option 2 London Plan",{"$f":"INDIRECT(\"'\"&$F4&\"'\"&\"!\"&$F$1&G$1)","v":"Significant Negative"},{"$f":"INDIRECT(\"'\"&$F4&\"'\"&\"!\"&$F$1&H$1)","v":"Neutral"},{"$f":"INDIRECT(\"'\"&$F4&\"'\"&\"!\"&$F$1&I$1)","v":"Neutral"},{"$f":"INDIRECT(\"'\"&$F4&\"'\"&\"!\"&$F$1&J$1)","v":"Neutral"},{"$f":"INDIRECT(\"'\"&$F4&\"'\"&\"!\"&$F$1&K$1)","v":"Neutral"},{"$f":"INDIRECT(\"'\"&$F4&\"'\"&\"!\"&$F$1&L$1)","v":"Minor Negative"},{"$f":"INDIRECT(\"'\"&$F4&\"'\"&\"!\"&$F$1&M$1)","v":"Neutral"},{"$f":"INDIRECT(\"'\"&$F4&\"'\"&\"!\"&$F$1&N$1)","v":"Neutral"},{"$f":"INDIRECT(\"'\"&$F4&\"'\"&\"!\"&$F$1&O$1)","v":"Uncertain"},{"$f":"INDIRECT(\"'\"&$F4&\"'\"&\"!\"&$F$1&P$1)","v":"Neutral"},{"$f":"INDIRECT(\"'\"&$F4&\"'\"&\"!\"&$F$1&Q$1)","v":"Minor Positive"},{"$f":"INDIRECT(\"'\"&$F4&\"'\"&\"!\"&$F$1&R$1)","v":"Neutral"},{"$f":"INDIRECT(\"'\"&$F4&\"'\"&\"!\"&$F$1&S$1)","v":"Neutral"},{"$f":"INDIRECT(\"'\"&$F4&\"'\"&\"!\"&$F$1&T$1)","v":"Uncertain"},{"$f":"INDIRECT(\"'\"&$F4&\"'\"&\"!\"&$F$1&U$1)","v":"Neutral"},{"$f":"INDIRECT(\"'\"&$F4&\"'\"&\"!\"&$F$1&V$1)","v":"Neutral"},{"$f":"INDIRECT(\"'\"&$F4&\"'\"&\"!\"&$F$1&W$1)","v":"Neutral"},{"$f":"INDIRECT(\"'\"&$F4&\"'\"&\"!\"&$F$1&X$1)","v":"Significant Positive"},{"$f":"INDIRECT(\"'\"&$F4&\"'\"&\"!\"&$F$1&Y$1)","v":"Minor Positive"},{"$f":"INDIRECT(\"'\"&$F4&\"'\"&\"!\"&$F$1&Z$1)","v":"Minor Positive"},null,null,null,"Minor Positive","+"]
[]
[]
[null,null,null,null,null,"Policy Name","SA1","SA2","SA3","SA4","SA5","SA6","SA7","SA8","SA9","SA10","SA11","SA12","SA13","SA14","SA15","SA16","SA17","SA18","SA19","SA20"]
[null,null,null,null,null,"Option 1 OAN",{"$f":"INDEX($AE$3:$AE$4,MATCH(G3,$AD$3:$AD$4,0))","v":{"$error":"#N/A"}},{"$error":"#N/A"},{"$error":"#N/A"},{"$error":"#N/A"},{"$error":"#N/A"},{"$error":"#N/A"},{"$error":"#N/A"},{"$error":"#N/A"},{"$error":"#N/A"},{"$error":"#N/A"},{"$error":"#N/A"},{"$error":"#N/A"},{"$error":"#N/A"},{"$error":"#N/A"},{"$error":"#N/A"},{"$error":"#N/A"},{"$error":"#N/A"},{"$error":"#N/A"},{"$error":"#N/A"},{"$error":"#N/A"}]
[null,null,null,null,null,"Option 2 London Plan",{"$f":"INDEX($AE$3:$AE$4,MATCH(G4,$AD$3:$AD$4,0))","v":{"$error":"#N/A"}},{"$error":"#N/A"},{"$error":"#N/A"},{"$error":"#N/A"},{"$error":"#N/A"},{"$error":"#N/A"},{"$error":"#N/A"},{"$error":"#N/A"},{"$error":"#N/A"},{"$error":"#N/A"},"+",{"$error":"#N/A"},{"$error":"#N/A"},{"$error":"#N/A"},{"$error":"#N/A"},{"$error":"#N/A"},{"$error":"#N/A"},"+ +","+","+"]

{"sheet":"Summary","index":9,"n_rows":662,"n_cols":11,"rows_kept":662,"cut":false,"hidden":true,"merged":[]}
[]
[null,"Site Name","SA Obj.","Significant Positive","Significant Negative","Minor Positive","Minor Negative","Neutral","Uncertain","Overall ",0]
[null,"North Chingford",1,{"$f":"COUNTIF(INDIRECT(\"'\"&$B3&\"'!\"&$J3),\"Significant Positive\")","v":{"$error":"#VALUE!"}},{"$f":"COUNTIF(INDIRECT(\"'\"&$B3&\"'!\"&$J3),\"Significant Negative\")","v":{"$error":"#VALUE!"}},{"$f":"COUNTIF(INDIRECT(\"'\"&$B3&\"'!\"&$J3),\"Minor Positive\")","v":{"$error":"#VALUE!"}},{"$f":"COUNTIF(INDIRECT(\"'\"&$B3&\"'!\"&$J3),\"Minor Negative\")","v":{"$error":"#VALUE!"}},{"$f":"COUNTIF(INDIRECT(\"'\"&$B3&\"'!\"&$J3),\"Neutral\")","v":{"$error":"#VALUE!"}},{"$f":"COUNTIF(INDIRECT(\"'\"&$B3&\"'!\"&$J3),\"Uncertain\")","v":{"$error":"#VALUE!"}},"J8",{"$f":"IF(B3=B2,K2,K2+1)","v":1}]
[null,"North Chingford",2,{"$f":"COUNTIF(INDIRECT(\"'\"&$B4&\"'!\"&$J4),\"Significant Positive\")","v":{"$error":"#VALUE!"}},{"$f":"COUNTIF(INDIRECT(\"'\"&$B4&\"'!\"&$J4),\"Significant Negative\")","v":{"$error":"#VALUE!"}},{"$f":"COUNTIF(INDIRECT(\"'\"&$B4&\"'!\"&$J4),\"Minor Positive\")","v":{"$error":"#VALUE!"}},{"$error":"#VALUE!"},{"$f":"COUNTIF(INDIRECT(\"'\"&$B4&\"'!\"&$J4),\"Neutral\")","v":{"$error":"#VALUE!"}},{"$f":"COUNTIF(INDIRECT(\"'\"&$B4&\"'!\"&$J4),\"Uncertain\")","v":{"$error":"#VALUE!"}},"j9",{"$f":"IF(B4=B3,K3,K3+1)","v":1}]
[null,"North Chingford",3,{"$f":"COUNTIF(INDIRECT(\"'\"&$B5&\"'!\"&$J5),\"Significant Positive\")","v":{"$error":"#VALUE!"}},{"$error":"#VALUE!"},{"$error":"#VALUE!"},{"$error":"#VALUE!"},{"$error":"#VALUE!"},{"$error":"#VALUE!"},"j10",{"$f":"IF(B5=B4,K4,K4+1)","v":1}]
[null,"North Chingford",4,{"$error":"#VALUE!"},{"$error":"#VALUE!"},{"$error":"#VALUE!"},{"$error":"#VALUE!"},{"$error":"#VALUE!"},{"$error":"#VALUE!"},"j11",{"$f":"IF(B6=B5,K5,K5+1)","v":1}]
[null,"North Chingford",5,{"$error":"#VALUE!"},{"$error":"#VALUE!"},{"$error":"#VALUE!"},{"$error":"#VALUE!"},{"$error":"#VALUE!"},{"$error":"#VALUE!"},"j12",1]
[null,"North Chingford",6,{"$error":"#VALUE!"},{"$error":"#VALUE!"},{"$error":"#VALUE!"},{"$error":"#VALUE!"},{"$error":"#VALUE!"},{"$error":"#VALUE!"},"j13",1]
[null,"North Chingford",7,{"$error":"#VALUE!"},{"$error":"#VALUE!"},{"$error":"#VALUE!"},{"$error":"#VALUE!"},{"$error":"#VALUE!"},{"$error":"#VALUE!"},"j14",1]
[null,"North Chingford",8,{"$error":"#VALUE!"},{"$error":"#VALUE!"},{"$error":"#VALUE!"},{"$error":"#VALUE!"},{"$error":"#VALUE!"},{"$error":"#VALUE!"},"j15",1]
[null,"North Chingford",9,{"$error":"#VALUE!"},{"$error":"#VALUE!"},{"$error":"#VALUE!"},{"$error":"#VALUE!"},{"$error":"#VALUE!"},{"$error":"#VALUE!"},"j16",1]
[null,"North Chingford",10,{"$error":"#VALUE!"},{"$error":"#VALUE!"},{"$error":"#VALUE!"},{"$error":"#VALUE!"},{"$error":"#VALUE!"},{"$error":"#VALUE!"},"j17",1]
[null,"North Chingford",11,{"$error":"#VALUE!"},{"$error":"#VALUE!"},{"$error":"#VALUE!"},{"$error":"#VALUE!"},{"$error":"#VALUE!"},{"$error":"#VALUE!"},"j18",1]
[null,"North Chingford",12,{"$error":"#VALUE!"},{"$error":"#VALUE!"},{"$error":"#VALUE!"},{"$error":"#VALUE!"},{"$error":"#VALUE!"},{"$error":"#VALUE!"},"j19",1]
[null,"North Chingford",13,{"$error":"#VALUE!"},{"$error":"#VALUE!"},{"$error":"#VALUE!"},{"$error":"#VALUE!"},{"$error":"#VALUE!"},{"$error":"#VALUE!"},"j20",1]
[null,"North Chingford",14,{"$error":"#VALUE!"},{"$error":"#VALUE!"},{"$error":"#VALUE!"},{"$error":"#VALUE!"},{"$error":"#VALUE!"},{"$error":"#VALUE!"},"j21",1]
[null,"North Chingford",15,{"$error":"#VALUE!"},{"$error":"#VALUE!"},{"$error":"#VALUE!"},{"$error":"#VALUE!"},{"$error":"#VALUE!"},{"$error":"#VALUE!"},"j22",1]
[null,"North Chingford",16,{"$error":"#VALUE!"},{"$error":"#VALUE!"},{"$error":"#VALUE!"},{"$error":"#VALUE!"},{"$error":"#VALUE!"},{"$error":"#VALUE!"},"j23",1]
[null,"North Chingford",17,{"$error":"#VALUE!"},{"$error":"#VALUE!"},{"$error":"#VALUE!"},{"$error":"#VALUE!"},{"$error":"#VALUE!"},{"$error":"#VALUE!"},"j24",1]
[null,"North Chingford",18,{"$error":"#VALUE!"},{"$error":"#VALUE!"},{"$error":"#VALUE!"},{"$error":"#VALUE!"},{"$error":"#VALUE!"},{"$error":"#VALUE!"},"j25",1]
[null,"North Chingford",19,{"$error":"#VALUE!"},{"$error":"#VALUE!"},{"$error":"#VALUE!"},{"$error":"#VALUE!"},{"$error":"#VALUE!"},{"$error":"#VALUE!"},"j26",1]
[null,"North Chingford",20,{"$error":"#VALUE!"},{"$error":"#VALUE!"},{"$error":"#VALUE!"},{"$error":"#VALUE!"},{"$error":"#VALUE!"},{"$error":"#VALUE!"},"j27",1]
[null,"Sewardstone Road",1,{"$error":"#VALUE!"},{"$error":"#VALUE!"},{"$error":"#VALUE!"},{"$f":"COUNTIF(INDIRECT(\"'\"&$B23&\"'!\"&$J23),\"Minor Negative\")","v":{"$error":"#VALUE!"}},{"$error":"#VALUE!"},{"$error":"#VALUE!"},"J8",2]
[null,"Sewardstone Road",2,{"$error":"#VALUE!"},{"$error":"#VALUE!"},{"$error":"#VALUE!"},{"$f":"COUNTIF(INDIRECT(\"'\"&$B24&\"'!\"&$J24),\"Minor Negative\")","v":{"$error":"#VALUE!"}},{"$error":"#VALUE!"},{"$error":"#VALUE!"},"j9",{"$f":"IF(B24=B23,K23,K23+1)","v":2}]
[null,"Sewardstone Road",3,{"$error":"#VALUE!"},{"$error":"#VALUE!"},{"$error":"#VALUE!"},{"$error":"#VALUE!"},{"$error":"#VALUE!"},{"$error":"#VALUE!"},"j10",{"$f":"IF(B25=B24,K24,K24+1)","v":2}]
[null,"Sewardstone Road",4,{"$error":"#VALUE!"},{"$error":"#VALUE!"},{"$error":"#VALUE!"},{"$error":"#VALUE!"},{"$error":"#VALUE!"},{"$error":"#VALUE!"},"j11",2]
[null,"Sewardstone Road",5,{"$error":"#VALUE!"},{"$error":"#VALUE!"},{"$error":"#VALUE!"},{"$error":"#VALUE!"},{"$error":"#VALUE!"},{"$error":"#VALUE!"},"j12",2]
[null,"Sewardstone Road",6,{"$error":"#VALUE!"},{"$error":"#VALUE!"},{"$error":"#VALUE!"},{"$error":"#VALUE!"},{"$error":"#VALUE!"},{"$error":"#VALUE!"},"j13",2]
[null,"Sewardstone Road",7,{"$error":"#VALUE!"},{"$error":"#VALUE!"},{"$error":"#VALUE!"},{"$error":"#VALUE!"},{"$error":"#VALUE!"},{"$error":"#VALUE!"},"j14",2]
[null,"Sewardstone Road",8,{"$error":"#VALUE!"},{"$error":"#VALUE!"},{"$error":"#VALUE!"},{"$error":"#VALUE!"},{"$error":"#VALUE!"},{"$error":"#VALUE!"},"j15",2]
[null,"Sewardstone Road",9,{"$error":"#VALUE!"},{"$error":"#VALUE!"},{"$error":"#VALUE!"},{"$error":"#VALUE!"},{"$error":"#VALUE!"},{"$error":"#VALUE!"},"j16",2]
[null,"Sewardstone Road",10,{"$error":"#VALUE!"},{"$error":"#VALUE!"},{"$error":"#VALUE!"},{"$error":"#VALUE!"},{"$error":"#VALUE!"},{"$error":"#VALUE!"},"j17",2]
[null,"Sewardstone Road",11,{"$error":"#VALUE!"},{"$error":"#VALUE!"},{"$error":"#VALUE!"},{"$error":"#VALUE!"},{"$error":"#VALUE!"},{"$error":"#VALUE!"},"j18",2]
[null,"Sewardstone Road",12,{"$error":"#VALUE!"},{"$error":"#VALUE!"},{"$error":"#VALUE!"},{"$error":"#VALUE!"},{"$error":"#VALUE!"},{"$error":"#VALUE!"},"j19",2]
[null,"Sewardstone Road",13,{"$error":"#VALUE!"},{"$error":"#VALUE!"},{"$error":"#VALUE!"},{"$error":"#VALUE!"},{"$error":"#VALUE!"},{"$error":"#VALUE!"},"j20",2]
[null,"Sewardstone Road",14,{"$error":"#VALUE!"},{"$error":"#VALUE!"},{"$error":"#VALUE!"},{"$error":"#VALUE!"},{"$error":"#VALUE!"},{"$error":"#VALUE!"},"j21",2]
[null,"Sewardstone Road",15,{"$error":"#VALUE!"},{"$error":"#VALUE!"},{"$error":"#VALUE!"},{"$error":"#VALUE!"},{"$error":"#VALUE!"},{"$error":"#VALUE!"},"j22",2]
[null,"Sewardstone Road",16,{"$error":"#VALUE!"},{"$error":"#VALUE!"},{"$error":"#VALUE!"},{"$error":"#VALUE!"},{"$error":"#VALUE!"},{"$error":"#VALUE!"},"j23",2]
[null,"Sewardstone Road",17,{"$error":"#VALUE!"},{"$error":"#VALUE!"},{"$error":"#VALUE!"},{"$error":"#VALUE!"},{"$error":"#VALUE!"},{"$error":"#VALUE!"},"j24",2]
[null,"Sewardstone Road",18,{"$error":"#VALUE!"},{"$error":"#VALUE!"},{"$error":"#VALUE!"},{"$error":"#VALUE!"},{"$error":"#VALUE!"},{"$error":"#VALUE!"},"j25",2]
[null,"Sewardstone Road",19,{"$error":"#VALUE!"},{"$error":"#VALUE!"},{"$error":"#VALUE!"},{"$error":"#VALUE!"},{"$error":"#VALUE!"},{"$error":"#VALUE!"},"j26",2]
[null,"Sewardstone Road",20,{"$error":"#VALUE!"},{"$error":"#VALUE!"},{"$error":"#VALUE!"},{"$error":"#VALUE!"},{"$error":"#VALUE!"},{"$error":"#VALUE!"},"j27",2]
[null,"North Circular Corridor Maridia",1,{"$error":"#VALUE!"},{"$error":"#VALUE!"},{"$error":"#VALUE!"},{"$f":"COUNTIF(INDIRECT(\"'\"&$B43&\"'!\"&$J43),\"Minor Negative\")","v":{"$error":"#VALUE!"}},{"$error":"#VALUE!"},{"$error":"#VALUE!"},"J8",3]
[null,"North Circular Corridor Maridia",2,{"$error":"#VALUE!"},{"$error":"#VALUE!"},{"$error":"#VALUE!"},{"$f":"COUNTIF(INDIRECT(\"'\"&$B44&\"'!\"&$J44),\"Minor Negative\")","v":{"$error":"#VALUE!"}},{"$error":"#VALUE!"},{"$error":"#VALUE!"},"j9",3]
[null,"North Circular Corridor Maridia",3,{"$error":"#VALUE!"},{"$error":"#VALUE!"},{"$error":"#VALUE!"},{"$error":"#VALUE!"},{"$error":"#VALUE!"},{"$error":"#VALUE!"},"j10",3]
[null,"North Circular Corridor Maridia",4,{"$error":"#VALUE!"},{"$error":"#VALUE!"},{"$error":"#VALUE!"},{"$error":"#VALUE!"},{"$error":"#VALUE!"},{"$error":"#VALUE!"},"j11",3]
[null,"North Circular Corridor Maridia",5,{"$error":"#VALUE!"},{"$error":"#VALUE!"},{"$error":"#VALUE!"},{"$error":"#VALUE!"},{"$error":"#VALUE!"},{"$error":"#VALUE!"},"j12",3]
[null,"North Circular Corridor Maridia",6,{"$error":"#VALUE!"},{"$error":"#VALUE!"},{"$error":"#VALUE!"},{"$error":"#VALUE!"},{"$error":"#VALUE!"},{"$error":"#VALUE!"},"j13",3]
[null,"North Circular Corridor Maridia",7,{"$error":"#VALUE!"},{"$error":"#VALUE!"},{"$error":"#VALUE!"},{"$error":"#VALUE!"},{"$error":"#VALUE!"},{"$error":"#VALUE!"},"j14",3]
[null,"North Circular Corridor Maridia",8,{"$error":"#VALUE!"},{"$error":"#VALUE!"},{"$error":"#VALUE!"},{"$error":"#VALUE!"},{"$error":"#VALUE!"},{"$error":"#VALUE!"},"j15",3]
[null,"North Circular Corridor Maridia",9,{"$error":"#VALUE!"},{"$error":"#VALUE!"},{"$error":"#VALUE!"},{"$error":"#VALUE!"},{"$error":"#VALUE!"},{"$error":"#VALUE!"},"j16",3]
[null,"North Circular Corridor Maridia",10,{"$error":"#VALUE!"},{"$error":"#VALUE!"},{"$error":"#VALUE!"},{"$error":"#VALUE!"},{"$error":"#VALUE!"},{"$error":"#VALUE!"},"j17",3]
[null,"North Circular Corridor Maridia",11,{"$error":"#VALUE!"},{"$error":"#VALUE!"},{"$error":"#VALUE!"},{"$error":"#VALUE!"},{"$error":"#VALUE!"},{"$error":"#VALUE!"},"j18",3]
[null,"North Circular Corridor Maridia",12,{"$error":"#VALUE!"},{"$error":"#VALUE!"},{"$error":"#VALUE!"},{"$error":"#VALUE!"},{"$error":"#VALUE!"},{"$error":"#VALUE!"},"j19",3]
[null,"North Circular Corridor Maridia",13,{"$error":"#VALUE!"},{"$error":"#VALUE!"},{"$error":"#VALUE!"},{"$error":"#VALUE!"},{"$error":"#VALUE!"},{"$error":"#VALUE!"},"j20",3]
[null,"North Circular Corridor Maridia",14,{"$error":"#VALUE!"},{"$error":"#VALUE!"},{"$error":"#VALUE!"},{"$error":"#VALUE!"},{"$error":"#VALUE!"},{"$error":"#VALUE!"},"j21",3]
[null,"North Circular Corridor Maridia",15,{"$error":"#VALUE!"},{"$error":"#VALUE!"},{"$error":"#VALUE!"},{"$error":"#VALUE!"},{"$error":"#VALUE!"},{"$error":"#VALUE!"},"j22",3]
[null,"North Circular Corridor Maridia",16,{"$error":"#VALUE!"},{"$error":"#VALUE!"},{"$error":"#VALUE!"},{"$error":"#VALUE!"},{"$error":"#VALUE!"},{"$error":"#VALUE!"},"j23",3]
[null,"North Circular Corridor Maridia",17,{"$error":"#VALUE!"},{"$error":"#VALUE!"},{"$error":"#VALUE!"},{"$error":"#VALUE!"},{"$error":"#VALUE!"},{"$error":"#VALUE!"},"j24",3]
[null,"North Circular Corridor Maridia",18,{"$error":"#VALUE!"},{"$error":"#VALUE!"},{"$error":"#VALUE!"},{"$error":"#VALUE!"},{"$error":"#VALUE!"},{"$error":"#VALUE!"},"j25",3]
[null,"North Circular Corridor Maridia",19,{"$error":"#VALUE!"},{"$error":"#VALUE!"},{"$error":"#VALUE!"},{"$error":"#VALUE!"},{"$error":"#VALUE!"},{"$error":"#VALUE!"},"j26",3]
[null,"North Circular Corridor Maridia",20,{"$f":"COUNTIF(INDIRECT(\"'\"&$B62&\"'!\"&$J62),\"Significant Positive\")","v":{"$error":"#VALUE!"}},{"$error":"#VALUE!"},{"$error":"#VALUE!"},{"$error":"#VALUE!"},{"$error":"#VALUE!"},{"$error":"#VALUE!"},"j27",3]
[null,"Highams Park",1,{"$f":"COUNTIF(INDIRECT(\"'\"&$B63&\"'!\"&$J63),\"Significant Positive\")","v":{"$error":"#VALUE!"}},{"$f":"COUNTIF(INDIRECT(\"'\"&$B63&\"'!\"&$J63),\"Significant Negative\")","v":{"$error":"#VALUE!"}},{"$f":"COUNTIF(INDIRECT(\"'\"&$B63&\"'!\"&$J63),\"Minor Positive\")","v":{"$error":"#VALUE!"}},{"$f":"COUNTIF(INDIRECT(\"'\"&$B63&\"'!\"&$J63),\"Minor Negative\")","v":{"$error":"#VALUE!"}},{"$f":"COUNTIF(INDIRECT(\"'\"&$B63&\"'!\"&$J63),\"Neutral\")","v":{"$error":"#VALUE!"}},{"$f":"COUNTIF(INDIRECT(\"'\"&$B63&\"'!\"&$J63),\"Uncertain\")","v":{"$error":"#VALUE!"}},"J8",4]
[null,"Highams Park",2,{"$f":"COUNTIF(INDIRECT(\"'\"&$B64&\"'!\"&$J64),\"Significant Positive\")","v":{"$error":"#VALUE!"}},{"$error":"#VALUE!"},{"$error":"#VALUE!"},{"$error":"#VALUE!"},{"$error":"#VALUE!"},{"$error":"#VALUE!"},"j9",4]
[null,"Highams Park",3,{"$error":"#VALUE!"},{"$error":"#VALUE!"},{"$error":"#VALUE!"},{"$error":"#VALUE!"},{"$error":"#VALUE!"},{"$error":"#VALUE!"},"j10",4]
[null,"Highams Park",4,{"$error":"#VALUE!"},{"$error":"#VALUE!"},{"$error":"#VALUE!"},{"$error":"#VALUE!"},{"$error":"#VALUE!"},{"$error":"#VALUE!"},"j11",4]
[null,"Highams Park",5,{"$f":"COUNTIF(INDIRECT(\"'\"&$B67&\"'!\"&$J67),\"Significant Positive\")","v":{"$error":"#VALUE!"}},{"$f":"COUNTIF(INDIRECT(\"'\"&$B67&\"'!\"&$J67),\"Significant Negative\")","v":{"$error":"#VALUE!"}},{"$f":"COUNTIF(INDIRECT(\"'\"&$B67&\"'!\"&$J67),\"Minor Positive\")","v":{"$error":"#VALUE!"}},{"$f":"COUNTIF(INDIRECT(\"'\"&$B67&\"'!\"&$J67),\"Minor Negative\")","v":{"$error":"#VALUE!"}},{"$f":"COUNTIF(INDIRECT(\"'\"&$B67&\"'!\"&$J67),\"Neutral\")","v":{"$error":"#VALUE!"}},{"$f":"COUNTIF(INDIRECT(\"'\"&$B67&\"'!\"&$J67),\"Uncertain\")","v":{"$error":"#VALUE!"}},"j12",4]
[null,"Highams Park",6,{"$error":"#VALUE!"},{"$error":"#VALUE!"},{"$error":"#VALUE!"},{"$error":"#VALUE!"},{"$error":"#VALUE!"},{"$error":"#VALUE!"},"j13",4]
[null,"Highams Park",7,{"$error":"#VALUE!"},{"$error":"#VALUE!"},{"$error":"#VALUE!"},{"$error":"#VALUE!"},{"$error":"#VALUE!"},{"$error":"#VALUE!"},"j14",4]
[null,"Highams Park",8,{"$error":"#VALUE!"},{"$error":"#VALUE!"},{"$error":"#VALUE!"},{"$error":"#VALUE!"},{"$error":"#VALUE!"},{"$error":"#VALUE!"},"j15",4]
[null,"Highams Park",9,{"$error":"#VALUE!"},{"$error":"#VALUE!"},{"$error":"#VALUE!"},{"$error":"#VALUE!"},{"$error":"#VALUE!"},{"$error":"#VALUE!"},"j16",4]
[null,"Highams Park",10,{"$error":"#VALUE!"},{"$error":"#VALUE!"},{"$error":"#VALUE!"},{"$error":"#VALUE!"},{"$error":"#VALUE!"},{"$error":"#VALUE!"},"j17",4]
[null,"Highams Park",11,{"$error":"#VALUE!"},{"$error":"#VALUE!"},{"$error":"#VALUE!"},{"$error":"#VALUE!"},{"$error":"#VALUE!"},{"$error":"#VALUE!"},"j18",4]
[null,"Highams Park",12,{"$error":"#VALUE!"},{"$error":"#VALUE!"},{"$error":"#VALUE!"},{"$error":"#VALUE!"},{"$error":"#VALUE!"},{"$error":"#VALUE!"},"j19",4]
[null,"Highams Park",13,{"$error":"#VALUE!"},{"$error":"#VALUE!"},{"$error":"#VALUE!"},{"$error":"#VALUE!"},{"$error":"#VALUE!"},{"$error":"#VALUE!"},"j20",4]
[null,"Highams Park",14,{"$error":"#VALUE!"},{"$error":"#VALUE!"},{"$error":"#VALUE!"},{"$error":"#VALUE!"},{"$error":"#VALUE!"},{"$error":"#VALUE!"},"j21",4]
[null,"Highams Park",15,{"$error":"#VALUE!"},{"$error":"#VALUE!"},{"$error":"#VALUE!"},{"$error":"#VALUE!"},{"$error":"#VALUE!"},{"$error":"#VALUE!"},"j22",4]
[null,"Highams Park",16,{"$error":"#VALUE!"},{"$error":"#VALUE!"},{"$error":"#VALUE!"},{"$error":"#VALUE!"},{"$error":"#VALUE!"},{"$error":"#VALUE!"},"j23",4]
[null,"Highams Park",17,{"$error":"#VALUE!"},{"$error":"#VALUE!"},{"$error":"#VALUE!"},{"$error":"#VALUE!"},{"$error":"#VALUE!"},{"$error":"#VALUE!"},"j24",4]
[null,"Highams Park",18,{"$error":"#VALUE!"},{"$error":"#VALUE!"},{"$error":"#VALUE!"},{"$error":"#VALUE!"},{"$error":"#VALUE!"},{"$error":"#VALUE!"},"j25",4]
[null,"Highams Park",19,{"$error":"#VALUE!"},{"$error":"#VALUE!"},{"$error":"#VALUE!"},{"$error":"#VALUE!"},{"$error":"#VALUE!"},{"$error":"#VALUE!"},"j26",4]
[null,"Highams Park",20,{"$error":"#VALUE!"},{"$error":"#VALUE!"},{"$error":"#VALUE!"},{"$error":"#VALUE!"},{"$error":"#VALUE!"},{"$error":"#VALUE!"},"j27",4]
[null,"Blackhorse Lane",1,{"$error":"#VALUE!"},{"$error":"#VALUE!"},{"$error":"#VALUE!"},{"$error":"#VALUE!"},{"$error":"#VALUE!"},{"$error":"#VALUE!"},"J8",5]
[null,"Blackhorse Lane",2,{"$error":"#VALUE!"},{"$error":"#VALUE!"},{"$error":"#VALUE!"},{"$error":"#VALUE!"},{"$error":"#VALUE!"},{"$error":"#VALUE!"},"j9",5]
[null,"Blackhorse Lane",3,{"$error":"#VALUE!"},{"$error":"#VALUE!"},{"$error":"#VALUE!"},{"$error":"#VALUE!"},{"$error":"#VALUE!"},{"$error":"#VALUE!"},"j10",5]
[null,"Blackhorse Lane",4,{"$error":"#VALUE!"},{"$error":"#VALUE!"},{"$error":"#VALUE!"},{"$error":"#VALUE!"},{"$error":"#VALUE!"},{"$error":"#VALUE!"},"j11",5]
[null,"Blackhorse Lane",5,{"$error":"#VALUE!"},{"$error":"#VALUE!"},{"$error":"#VALUE!"},{"$error":"#VALUE!"},{"$error":"#VALUE!"},{"$error":"#VALUE!"},"j12",5]
[null,"Blackhorse Lane",6,{"$error":"#VALUE!"},{"$error":"#VALUE!"},{"$error":"#VALUE!"},{"$error":"#VALUE!"},{"$error":"#VALUE!"},{"$error":"#VALUE!"},"j13",5]
[null,"Blackhorse Lane",7,{"$error":"#VALUE!"},{"$error":"#VALUE!"},{"$error":"#VALUE!"},{"$error":"#VALUE!"},{"$error":"#VALUE!"},{"$error":"#VALUE!"},"j14",5]
[null,"Blackhorse Lane",8,{"$error":"#VALUE!"},{"$error":"#VALUE!"},{"$error":"#VALUE!"},{"$error":"#VALUE!"},{"$error":"#VALUE!"},{"$error":"#VALUE!"},"j15",5]
[null,"Blackhorse Lane",9,{"$error":"#VALUE!"},{"$error":"#VALUE!"},{"$error":"#VALUE!"},{"$error":"#VALUE!"},{"$error":"#VALUE!"},{"$error":"#VALUE!"},"j16",5]
[null,"Blackhorse Lane",10,{"$error":"#VALUE!"},{"$error":"#VALUE!"},{"$error":"#VALUE!"},{"$error":"#VALUE!"},{"$error":"#VALUE!"},{"$error":"#VALUE!"},"j17",5]
[null,"Blackhorse Lane",11,{"$error":"#VALUE!"},{"$error":"#VALUE!"},{"$error":"#VALUE!"},{"$error":"#VALUE!"},{"$error":"#VALUE!"},{"$error":"#VALUE!"},"j18",5]
[null,"Blackhorse Lane",12,{"$error":"#VALUE!"},{"$error":"#VALUE!"},{"$error":"#VALUE!"},{"$error":"#VALUE!"},{"$error":"#VALUE!"},{"$error":"#VALUE!"},"j19",5]
[null,"Blackhorse Lane",13,{"$error":"#VALUE!"},{"$error":"#VALUE!"},{"$error":"#VALUE!"},{"$error":"#VALUE!"},{"$error":"#VALUE!"},{"$error":"#VALUE!"},"j20",5]
[null,"Blackhorse Lane",14,{"$error":"#VALUE!"},{"$error":"#VALUE!"},{"$error":"#VALUE!"},{"$error":"#VALUE!"},{"$error":"#VALUE!"},{"$error":"#VALUE!"},"j21",5]
[null,"Blackhorse Lane",15,{"$error":"#VALUE!"},{"$error":"#VALUE!"},{"$error":"#VALUE!"},{"$error":"#VALUE!"},{"$error":"#VALUE!"},{"$error":"#VALUE!"},"j22",5]
[null,"Blackhorse Lane",16,{"$error":"#VALUE!"},{"$error":"#VALUE!"},{"$error":"#VALUE!"},{"$error":"#VALUE!"},{"$error":"#VALUE!"},{"$error":"#VALUE!"},"j23",5]
[null,"Blackhorse Lane",17,{"$error":"#VALUE!"},{"$error":"#VALUE!"},{"$error":"#VALUE!"},{"$error":"#VALUE!"},{"$error":"#VALUE!"},{"$error":"#VALUE!"},"j24",5]
[null,"Blackhorse Lane",18,{"$error":"#VALUE!"},{"$error":"#VALUE!"},{"$error":"#VALUE!"},{"$error":"#VALUE!"},{"$error":"#VALUE!"},{"$error":"#VALUE!"},"j25",5]
[null,"Blackhorse Lane",19,{"$error":"#VALUE!"},{"$error":"#VALUE!"},{"$error":"#VALUE!"},{"$error":"#VALUE!"},{"$error":"#VALUE!"},{"$error":"#VALUE!"},"j26",5]
[null,"Blackhorse Lane",20,{"$error":"#VALUE!"},{"$error":"#VALUE!"},{"$error":"#VALUE!"},{"$error":"#VALUE!"},{"$error":"#VALUE!"},{"$error":"#VALUE!"},"j27",5]
[null,"Chapel End Forest Road Corridor",1,{"$error":"#VALUE!"},{"$error":"#VALUE!"},{"$error":"#VALUE!"},{"$error":"#VALUE!"},{"$error":"#VALUE!"},{"$error":"#VALUE!"},"J8",6]
[null,"Chapel End Forest Road Corridor",2,{"$error":"#VALUE!"},{"$error":"#VALUE!"},{"$error":"#VALUE!"},{"$error":"#VALUE!"},{"$error":"#VALUE!"},{"$error":"#VALUE!"},"j9",6]
[null,"Chapel End Forest Road Corridor",3,{"$error":"#VALUE!"},{"$error":"#VALUE!"},{"$error":"#VALUE!"},{"$error":"#VALUE!"},{"$error":"#VALUE!"},{"$error":"#VALUE!"},"j10",6]
[null,"Chapel End Forest Road Corridor",4,{"$error":"#VALUE!"},{"$error":"#VALUE!"},{"$error":"#VALUE!"},{"$error":"#VALUE!"},{"$error":"#VALUE!"},{"$error":"#VALUE!"},"j11",6]
[null,"Chapel End Forest Road Corridor",5,{"$error":"#VALUE!"},{"$error":"#VALUE!"},{"$error":"#VALUE!"},{"$error":"#VALUE!"},{"$error":"#VALUE!"},{"$error":"#VALUE!"},"j12",6]
[null,"Chapel End Forest Road Corridor",6,{"$error":"#VALUE!"},{"$error":"#VALUE!"},{"$error":"#VALUE!"},{"$error":"#VALUE!"},{"$error":"#VALUE!"},{"$error":"#VALUE!"},"j13",6]
[null,"Chapel End Forest Road Corridor",7,{"$error":"#VALUE!"},{"$error":"#VALUE!"},{"$error":"#VALUE!"},{"$error":"#VALUE!"},{"$error":"#VALUE!"},{"$error":"#VALUE!"},"j14",6]
[null,"Chapel End Forest Road Corridor",8,{"$error":"#VALUE!"},{"$error":"#VALUE!"},{"$error":"#VALUE!"},{"$error":"#VALUE!"},{"$error":"#VALUE!"},{"$error":"#VALUE!"},"j15",6]
[null,"Chapel End Forest Road Corridor",9,{"$error":"#VALUE!"},{"$error":"#VALUE!"},{"$error":"#VALUE!"},{"$error":"#VALUE!"},{"$error":"#VALUE!"},{"$error":"#VALUE!"},"j16",6]
[null,"Chapel End Forest Road Corridor",10,{"$f":"COUNTIF(INDIRECT(\"'\"&$B112&\"'!\"&$J112),\"Significant Positive\")","v":{"$error":"#VALUE!"}},{"$f":"COUNTIF(INDIRECT(\"'\"&$B112&\"'!\"&$J112),\"Significant Negative\")","v":{"$error":"#VALUE!"}},{"$f":"COUNTIF(INDIRECT(\"'\"&$B112&\"'!\"&$J112),\"Minor Positive\")","v":{"$error":"#VALUE!"}},{"$f":"COUNTIF(INDIRECT(\"'\"&$B112&\"'!\"&$J112),\"Minor Negative\")","v":{"$error":"#VALUE!"}},{"$f":"COUNTIF(INDIRECT(\"'\"&$B112&\"'!\"&$J112),\"Neutral\")","v":{"$error":"#VALUE!"}},{"$f":"COUNTIF(INDIRECT(\"'\"&$B112&\"'!\"&$J112),\"Uncertain\")","v":{"$error":"#VALUE!"}},"j17",6]
[null,"Chapel End Forest Road Corridor",11,{"$error":"#VALUE!"},{"$error":"#VALUE!"},{"$error":"#VALUE!"},{"$error":"#VALUE!"},{"$error":"#VALUE!"},{"$error":"#VALUE!"},"j18",6]
[null,"Chapel End Forest Road Corridor",12,{"$error":"#VALUE!"},{"$error":"#VALUE!"},{"$error":"#VALUE!"},{"$error":"#VALUE!"},{"$error":"#VALUE!"},{"$error":"#VALUE!"},"j19",6]
[null,"Chapel End Forest Road Corridor",13,{"$error":"#VALUE!"},{"$error":"#VALUE!"},{"$error":"#VALUE!"},{"$error":"#VALUE!"},{"$error":"#VALUE!"},{"$error":"#VALUE!"},"j20",6]
[null,"Chapel End Forest Road Corridor",14,{"$error":"#VALUE!"},{"$error":"#VALUE!"},{"$error":"#VALUE!"},{"$error":"#VALUE!"},{"$error":"#VALUE!"},{"$error":"#VALUE!"},"j21",6]
[null,"Chapel End Forest Road Corridor",15,{"$error":"#VALUE!"},{"$error":"#VALUE!"},{"$error":"#VALUE!"},{"$error":"#VALUE!"},{"$error":"#VALUE!"},{"$error":"#VALUE!"},"j22",6]
[null,"Chapel End Forest Road Corridor",16,{"$error":"#VALUE!"},{"$error":"#VALUE!"},{"$error":"#VALUE!"},{"$error":"#VALUE!"},{"$error":"#VALUE!"},{"$error":"#VALUE!"},"j23",6]
[null,"Chapel End Forest Road Corridor",17,{"$error":"#VALUE!"},{"$error":"#VALUE!"},{"$error":"#VALUE!"},{"$error":"#VALUE!"},{"$error":"#VALUE!"},{"$error":"#VALUE!"},"j24",6]
[null,"Chapel End Forest Road Corridor",18,{"$error":"#VALUE!"},{"$error":"#VALUE!"},{"$error":"#VALUE!"},{"$error":"#VALUE!"},{"$error":"#VALUE!"},{"$error":"#VALUE!"},"j25",6]
[null,"Chapel End Forest Road Corridor",19,{"$error":"#VALUE!"},{"$error":"#VALUE!"},{"$error":"#VALUE!"},{"$error":"#VALUE!"},{"$error":"#VALUE!"},{"$error":"#VALUE!"},"j26",6]
[null,"Chapel End Forest Road Corridor",20,{"$error":"#VALUE!"},{"$error":"#VALUE!"},{"$error":"#VALUE!"},{"$error":"#VALUE!"},{"$error":"#VALUE!"},{"$error":"#VALUE!"},"j27",6]
[null,"Whipps Cross",1,{"$f":"COUNTIF(INDIRECT(\"'\"&$B123&\"'!\"&$J123),\"Significant Positive\")","v":{"$error":"#VALUE!"}},{"$f":"COUNTIF(INDIRECT(\"'\"&$B123&\"'!\"&$J123),\"Significant Negative\")","v":{"$error":"#VALUE!"}},{"$f":"COUNTIF(INDIRECT(\"'\"&$B123&\"'!\"&$J123),\"Minor Positive\")","v":{"$error":"#VALUE!"}},{"$f":"COUNTIF(INDIRECT(\"'\"&$B123&\"'!\"&$J123),\"Minor Negative\")","v":{"$error":"#VALUE!"}},{"$f":"COUNTIF(INDIRECT(\"'\"&$B123&\"'!\"&$J123),\"Neutral\")","v":{"$error":"#VALUE!"}},{"$f":"COUNTIF(INDIRECT(\"'\"&$B123&\"'!\"&$J123),\"Uncertain\")","v":{"$error":"#VALUE!"}},"J8",7]
[null,"Whipps Cross",2,{"$f":"COUNTIF(INDIRECT(\"'\"&$B124&\"'!\"&$J124),\"Significant Positive\")","v":{"$error":"#VALUE!"}},{"$f":"COUNTIF(INDIRECT(\"'\"&$B124&\"'!\"&$J124),\"Significant Negative\")","v":{"$error":"#VALUE!"}},{"$f":"COUNTIF(INDIRECT(\"'\"&$B124&\"'!\"&$J124),\"Minor Positive\")","v":{"$error":"#VALUE!"}},{"$f":"COUNTIF(INDIRECT(\"'\"&$B124&\"'!\"&$J124),\"Minor Negative\")","v":{"$error":"#VALUE!"}},{"$f":"COUNTIF(INDIRECT(\"'\"&$B124&\"'!\"&$J124),\"Neutral\")","v":{"$error":"#VALUE!"}},{"$f":"COUNTIF(INDIRECT(\"'\"&$B124&\"'!\"&$J124),\"Uncertain\")","v":{"$error":"#VALUE!"}},"j9",7]
[null,"Whipps Cross",3,{"$error":"#VALUE!"},{"$error":"#VALUE!"},{"$error":"#VALUE!"},{"$error":"#VALUE!"},{"$error":"#VALUE!"},{"$error":"#VALUE!"},"j10",7]
[null,"Whipps Cross",4,{"$error":"#VALUE!"},{"$error":"#VALUE!"},{"$error":"#VALUE!"},{"$error":"#VALUE!"},{"$error":"#VALUE!"},{"$error":"#VALUE!"},"j11",7]
[null,"Whipps Cross",5,{"$error":"#VALUE!"},{"$error":"#VALUE!"},{"$error":"#VALUE!"},{"$error":"#VALUE!"},{"$error":"#VALUE!"},{"$error":"#VALUE!"},"j12",7]
[null,"Whipps Cross",6,{"$error":"#VALUE!"},{"$error":"#VALUE!"},{"$error":"#VALUE!"},{"$error":"#VALUE!"},{"$error":"#VALUE!"},{"$error":"#VALUE!"},"j13",7]
[null,"Whipps Cross",7,{"$error":"#VALUE!"},{"$error":"#VALUE!"},{"$error":"#VALUE!"},{"$error":"#VALUE!"},{"$error":"#VALUE!"},{"$error":"#VALUE!"},"j14",7]
[null,"Whipps Cross",8,{"$error":"#VALUE!"},{"$error":"#VALUE!"},{"$error":"#VALUE!"},{"$error":"#VALUE!"},{"$error":"#VALUE!"},{"$error":"#VALUE!"},"j15",7]
[null,"Whipps Cross",9,{"$error":"#VALUE!"},{"$error":"#VALUE!"},{"$error":"#VALUE!"},{"$error":"#VALUE!"},{"$error":"#VALUE!"},{"$error":"#VALUE!"},"j16",7]
[null,"Whipps Cross",10,{"$error":"#VALUE!"},{"$error":"#VALUE!"},{"$error":"#VALUE!"},{"$error":"#VALUE!"},{"$error":"#VALUE!"},{"$error":"#VALUE!"},"j17",7]
[null,"Whipps Cross",11,{"$f":"COUNTIF(INDIRECT(\"'\"&$B133&\"'!\"&$J133),\"Significant Positive\")","v":{"$error":"#VALUE!"}},{"$f":"COUNTIF(INDIRECT(\"'\"&$B133&\"'!\"&$J133),\"Significant Negative\")","v":{"$error":"#VALUE!"}},{"$f":"COUNTIF(INDIRECT(\"'\"&$B133&\"'!\"&$J133),\"Minor Positive\")","v":{"$error":"#VALUE!"}},{"$f":"COUNTIF(INDIRECT(\"'\"&$B133&\"'!\"&$J133),\"Minor Negative\")","v":{"$error":"#VALUE!"}},{"$f":"COUNTIF(INDIRECT(\"'\"&$B133&\"'!\"&$J133),\"Neutral\")","v":{"$error":"#VALUE!"}},{"$f":"COUNTIF(INDIRECT(\"'\"&$B133&\"'!\"&$J133),\"Uncertain\")","v":{"$error":"#VALUE!"}},"j18",7]
[null,"Whipps Cross",12,{"$error":"#VALUE!"},{"$error":"#VALUE!"},{"$error":"#VALUE!"},{"$error":"#VALUE!"},{"$error":"#VALUE!"},{"$error":"#VALUE!"},"j19",7]
[null,"Whipps Cross",13,{"$error":"#VALUE!"},{"$error":"#VALUE!"},{"$error":"#VALUE!"},{"$error":"#VALUE!"},{"$error":"#VALUE!"},{"$error":"#VALUE!"},"j20",7]
[null,"Whipps Cross",14,{"$error":"#VALUE!"},{"$error":"#VALUE!"},{"$error":"#VALUE!"},{"$error":"#VALUE!"},{"$error":"#VALUE!"},{"$error":"#VALUE!"},"j21",7]
[null,"Whipps Cross",15,{"$f":"COUNTIF(INDIRECT(\"'\"&$B137&\"'!\"&$J137),\"Significant Positive\")","v":{"$error":"#VALUE!"}},{"$f":"COUNTIF(INDIRECT(\"'\"&$B137&\"'!\"&$J137),\"Significant Negative\")","v":{"$error":"#VALUE!"}},{"$f":"COUNTIF(INDIRECT(\"'\"&$B137&\"'!\"&$J137),\"Minor Positive\")","v":{"$error":"#VALUE!"}},{"$f":"COUNTIF(INDIRECT(\"'\"&$B137&\"'!\"&$J137),\"Minor Negative\")","v":{"$error":"#VALUE!"}},{"$f":"COUNTIF(INDIRECT(\"'\"&$B137&\"'!\"&$J137),\"Neutral\")","v":{"$error":"#VALUE!"}},{"$f":"COUNTIF(INDIRECT(\"'\"&$B137&\"'!\"&$J137),\"Uncertain\")","v":{"$error":"#VALUE!"}},"j22",7]
[null,"Whipps Cross",16,{"$error":"#VALUE!"},{"$error":"#VALUE!"},{"$error":"#VALUE!"},{"$error":"#VALUE!"},{"$error":"#VALUE!"},{"$error":"#VALUE!"},"j23",7]
[null,"Whipps Cross",17,{"$error":"#VALUE!"},{"$error":"#VALUE!"},{"$error":"#VALUE!"},{"$error":"#VALUE!"},{"$error":"#VALUE!"},{"$error":"#VALUE!"},"j24",7]
[null,"Whipps Cross",18,{"$error":"#VALUE!"},{"$error":"#VALUE!"},{"$error":"#VALUE!"},{"$error":"#VALUE!"},{"$error":"#VALUE!"},{"$error":"#VALUE!"},"j25",7]
[null,"Whipps Cross",19,{"$error":"#VALUE!"},{"$error":"#VALUE!"},{"$error":"#VALUE!"},{"$error":"#VALUE!"},{"$error":"#VALUE!"},{"$error":"#VALUE!"},"j26",7]
[null,"Whipps Cross",20,{"$f":"COUNTIF(INDIRECT(\"'\"&$B142&\"'!\"&$J142),\"Significant Positive\")","v":{"$error":"#VALUE!"}},{"$f":"COUNTIF(INDIRECT(\"'\"&$B142&\"'!\"&$J142),\"Significant Negative\")","v":{"$error":"#VALUE!"}},{"$f":"COUNTIF(INDIRECT(\"'\"&$B142&\"'!\"&$J142),\"Minor Positive\")","v":{"$error":"#VALUE!"}},{"$f":"COUNTIF(INDIRECT(\"'\"&$B142&\"'!\"&$J142),\"Minor Negative\")","v":{"$error":"#VALUE!"}},{"$f":"COUNTIF(INDIRECT(\"'\"&$B142&\"'!\"&$J142),\"Neutral\")","v":{"$error":"#VALUE!"}},{"$f":"COUNTIF(INDIRECT(\"'\"&$B142&\"'!\"&$J142),\"Uncertain\")","v":{"$error":"#VALUE!"}},"j27",7]
[null,"Walthamstow Town centre",1,{"$f":"COUNTIF(INDIRECT(\"'\"&$B143&\"'!\"&$J143),\"Significant Positive\")","v":{"$error":"#VALUE!"}},{"$f":"COUNTIF(INDIRECT(\"'\"&$B143&\"'!\"&$J143),\"Significant Negative\")","v":{"$error":"#VALUE!"}},{"$f":"COUNTIF(INDIRECT(\"'\"&$B143&\"'!\"&$J143),\"Minor Positive\")","v":{"$error":"#VALUE!"}},{"$f":"COUNTIF(INDIRECT(\"'\"&$B143&\"'!\"&$J143),\"Minor Negative\")","v":{"$error":"#VALUE!"}},{"$f":"COUNTIF(INDIRECT(\"'\"&$B143&\"'!\"&$J143),\"Neutral\")","v":{"$error":"#VALUE!"}},{"$f":"COUNTIF(INDIRECT(\"'\"&$B143&\"'!\"&$J143),\"Uncertain\")","v":{"$error":"#VALUE!"}},"J8",8]
[null,"Walthamstow Town centre",2,{"$f":"COUNTIF(INDIRECT(\"'\"&$B144&\"'!\"&$J144),\"Significant Positive\")","v":{"$error":"#VALUE!"}},{"$f":"COUNTIF(INDIRECT(\"'\"&$B144&\"'!\"&$J144),\"Significant Negative\")","v":{"$error":"#VALUE!"}},{"$f":"COUNTIF(INDIRECT(\"'\"&$B144&\"'!\"&$J144),\"Minor Positive\")","v":{"$error":"#VALUE!"}},{"$f":"COUNTIF(INDIRECT(\"'\"&$B144&\"'!\"&$J144),\"Minor Negative\")","v":{"$error":"#VALUE!"}},{"$f":"COUNTIF(INDIRECT(\"'\"&$B144&\"'!\"&$J144),\"Neutral\")","v":{"$error":"#VALUE!"}},{"$f":"COUNTIF(INDIRECT(\"'\"&$B144&\"'!\"&$J144),\"Uncertain\")","v":{"$error":"#VALUE!"}},"j9",8]
[null,"Walthamstow Town centre",3,{"$error":"#VALUE!"},{"$error":"#VALUE!"},{"$error":"#VALUE!"},{"$error":"#VALUE!"},{"$error":"#VALUE!"},{"$error":"#VALUE!"},"j10",8]
[null,"Walthamstow Town centre",4,{"$error":"#VALUE!"},{"$error":"#VALUE!"},{"$error":"#VALUE!"},{"$error":"#VALUE!"},{"$error":"#VALUE!"},{"$error":"#VALUE!"},"j11",8]
[null,"Walthamstow Town centre",5,{"$error":"#VALUE!"},{"$error":"#VALUE!"},{"$error":"#VALUE!"},{"$error":"#VALUE!"},{"$error":"#VALUE!"},{"$error":"#VALUE!"},"j12",8]
[null,"Walthamstow Town centre",6,{"$error":"#VALUE!"},{"$error":"#VALUE!"},{"$error":"#VALUE!"},{"$error":"#VALUE!"},{"$error":"#VALUE!"},{"$error":"#VALUE!"},"j13",8]
[null,"Walthamstow Town centre",7,{"$error":"#VALUE!"},{"$error":"#VALUE!"},{"$error":"#VALUE!"},{"$error":"#VALUE!"},{"$error":"#VALUE!"},{"$error":"#VALUE!"},"j14",8]
[null,"Walthamstow Town centre",8,{"$error":"#VALUE!"},{"$error":"#VALUE!"},{"$error":"#VALUE!"},{"$error":"#VALUE!"},{"$error":"#VALUE!"},{"$error":"#VALUE!"},"j15",8]
[null,"Walthamstow Town centre",9,{"$error":"#VALUE!"},{"$error":"#VALUE!"},{"$error":"#VALUE!"},{"$error":"#VALUE!"},{"$error":"#VALUE!"},{"$error":"#VALUE!"},"j16",8]
[null,"Walthamstow Town centre",10,{"$error":"#VALUE!"},{"$error":"#VALUE!"},{"$error":"#VALUE!"},{"$error":"#VALUE!"},{"$error":"#VALUE!"},{"$error":"#VALUE!"},"j17",8]
[null,"Walthamstow Town centre",11,{"$error":"#VALUE!"},{"$error":"#VALUE!"},{"$error":"#VALUE!"},{"$error":"#VALUE!"},{"$error":"#VALUE!"},{"$error":"#VALUE!"},"j18",8]
[null,"Walthamstow Town centre",12,{"$error":"#VALUE!"},{"$error":"#VALUE!"},{"$error":"#VALUE!"},{"$error":"#VALUE!"},{"$error":"#VALUE!"},{"$error":"#VALUE!"},"j19",8]
[null,"Walthamstow Town centre",13,{"$error":"#VALUE!"},{"$error":"#VALUE!"},{"$error":"#VALUE!"},{"$error":"#VALUE!"},{"$error":"#VALUE!"},{"$error":"#VALUE!"},"j20",8]
[null,"Walthamstow Town centre",14,{"$error":"#VALUE!"},{"$error":"#VALUE!"},{"$error":"#VALUE!"},{"$error":"#VALUE!"},{"$error":"#VALUE!"},{"$error":"#VALUE!"},"j21",8]
[null,"Walthamstow Town centre",15,{"$error":"#VALUE!"},{"$error":"#VALUE!"},{"$error":"#VALUE!"},{"$error":"#VALUE!"},{"$error":"#VALUE!"},{"$error":"#VALUE!"},"j22",8]
[null,"Walthamstow Town centre",16,{"$error":"#VALUE!"},{"$error":"#VALUE!"},{"$error":"#VALUE!"},{"$error":"#VALUE!"},{"$error":"#VALUE!"},{"$error":"#VALUE!"},"j23",8]
[null,"Walthamstow Town centre",17,{"$error":"#VALUE!"},{"$error":"#VALUE!"},{"$error":"#VALUE!"},{"$error":"#VALUE!"},{"$error":"#VALUE!"},{"$error":"#VALUE!"},"j24",8]
[null,"Walthamstow Town centre",18,{"$error":"#VALUE!"},{"$error":"#VALUE!"},{"$error":"#VALUE!"},{"$error":"#VALUE!"},{"$error":"#VALUE!"},{"$error":"#VALUE!"},"j25",8]
[null,"Walthamstow Town centre",19,{"$error":"#VALUE!"},{"$error":"#VALUE!"},{"$error":"#VALUE!"},{"$error":"#VALUE!"},{"$error":"#VALUE!"},{"$error":"#VALUE!"},"j26",8]
[null,"Walthamstow Town centre",20,{"$error":"#VALUE!"},{"$error":"#VALUE!"},{"$error":"#VALUE!"},{"$error":"#VALUE!"},{"$error":"#VALUE!"},{"$error":"#VALUE!"},"j27",8]
[null,"Bakers Arms Leyton Green",1,{"$f":"COUNTIF(INDIRECT(\"'\"&$B163&\"'!\"&$J163),\"Significant Positive\")","v":{"$error":"#VALUE!"}},{"$f":"COUNTIF(INDIRECT(\"'\"&$B163&\"'!\"&$J163),\"Significant Negative\")","v":{"$error":"#VALUE!"}},{"$f":"COUNTIF(INDIRECT(\"'\"&$B163&\"'!\"&$J163),\"Minor Positive\")","v":{"$error":"#VALUE!"}},{"$f":"COUNTIF(INDIRECT(\"'\"&$B163&\"'!\"&$J163),\"Minor Negative\")","v":{"$error":"#VALUE!"}},{"$f":"COUNTIF(INDIRECT(\"'\"&$B163&\"'!\"&$J163),\"Neutral\")","v":{"$error":"#VALUE!"}},{"$f":"COUNTIF(INDIRECT(\"'\"&$B163&\"'!\"&$J163),\"Uncertain\")","v":{"$error":"#VALUE!"}},"J8",9]
[null,"Bakers Arms Leyton Green",2,{"$f":"COUNTIF(INDIRECT(\"'\"&$B164&\"'!\"&$J164),\"Significant Positive\")","v":{"$error":"#VALUE!"}},{"$f":"COUNTIF(INDIRECT(\"'\"&$B164&\"'!\"&$J164),\"Significant Negative\")","v":{"$error":"#VALUE!"}},{"$f":"COUNTIF(INDIRECT(\"'\"&$B164&\"'!\"&$J164),\"Minor Positive\")","v":{"$error":"#VALUE!"}},{"$f":"COUNTIF(INDIRECT(\"'\"&$B164&\"'!\"&$J164),\"Minor Negative\")","v":{"$error":"#VALUE!"}},{"$f":"COUNTIF(INDIRECT(\"'\"&$B164&\"'!\"&$J164),\"Neutral\")","v":{"$error":"#VALUE!"}},{"$f":"COUNTIF(INDIRECT(\"'\"&$B164&\"'!\"&$J164),\"Uncertain\")","v":{"$error":"#VALUE!"}},"j9",9]
[null,"Bakers Arms Leyton Green",3,{"$error":"#VALUE!"},{"$error":"#VALUE!"},{"$error":"#VALUE!"},{"$error":"#VALUE!"},{"$error":"#VALUE!"},{"$error":"#VALUE!"},"j10",9]
[null,"Bakers Arms Leyton Green",4,{"$error":"#VALUE!"},{"$error":"#VALUE!"},{"$error":"#VALUE!"},{"$error":"#VALUE!"},{"$error":"#VALUE!"},{"$error":"#VALUE!"},"j11",9]
[null,"Bakers Arms Leyton Green",5,{"$error":"#VALUE!"},{"$error":"#VALUE!"},{"$error":"#VALUE!"},{"$error":"#VALUE!"},{"$error":"#VALUE!"},{"$error":"#VALUE!"},"j12",9]
[null,"Bakers Arms Leyton Green",6,{"$error":"#VALUE!"},{"$error":"#VALUE!"},{"$error":"#VALUE!"},{"$error":"#VALUE!"},{"$error":"#VALUE!"},{"$error":"#VALUE!"},"j13",9]
[null,"Bakers Arms Leyton Green",7,{"$error":"#VALUE!"},{"$error":"#VALUE!"},{"$error":"#VALUE!"},{"$error":"#VALUE!"},{"$error":"#VALUE!"},{"$error":"#VALUE!"},"j14",9]
[null,"Bakers Arms Leyton Green",8,{"$error":"#VALUE!"},{"$error":"#VALUE!"},{"$error":"#VALUE!"},{"$error":"#VALUE!"},{"$error":"#VALUE!"},{"$error":"#VALUE!"},"j15",9]
[null,"Bakers Arms Leyton Green",9,{"$error":"#VALUE!"},{"$error":"#VALUE!"},{"$error":"#VALUE!"},{"$error":"#VALUE!"},{"$error":"#VALUE!"},{"$error":"#VALUE!"},"j16",9]
[null,"Bakers Arms Leyton Green",10,{"$error":"#VALUE!"},{"$error":"#VALUE!"},{"$error":"#VALUE!"},{"$error":"#VALUE!"},{"$error":"#VALUE!"},{"$error":"#VALUE!"},"j17",9]
[null,"Bakers Arms Leyton Green",11,{"$error":"#VALUE!"},{"$error":"#VALUE!"},{"$error":"#VALUE!"},{"$error":"#VALUE!"},{"$error":"#VALUE!"},{"$error":"#VALUE!"},"j18",9]
[null,"Bakers Arms Leyton Green",12,{"$error":"#VALUE!"},{"$error":"#VALUE!"},{"$error":"#VALUE!"},{"$error":"#VALUE!"},{"$error":"#VALUE!"},{"$error":"#VALUE!"},"j19",9]
[null,"Bakers Arms Leyton Green",13,{"$error":"#VALUE!"},{"$error":"#VALUE!"},{"$error":"#VALUE!"},{"$error":"#VALUE!"},{"$error":"#VALUE!"},{"$error":"#VALUE!"},"j20",9]
[null,"Bakers Arms Leyton Green",14,{"$error":"#VALUE!"},{"$error":"#VALUE!"},{"$error":"#VALUE!"},{"$error":"#VALUE!"},{"$error":"#VALUE!"},{"$error":"#VALUE!"},"j21",9]
[null,"Bakers Arms Leyton Green",15,{"$error":"#VALUE!"},{"$error":"#VALUE!"},{"$error":"#VALUE!"},{"$error":"#VALUE!"},{"$error":"#VALUE!"},{"$error":"#VALUE!"},"j22",9]
[null,"Bakers Arms Leyton Green",16,{"$error":"#VALUE!"},{"$error":"#VALUE!"},{"$error":"#VALUE!"},{"$error":"#VALUE!"},{"$error":"#VALUE!"},{"$error":"#VALUE!"},"j23",9]
[null,"Bakers Arms Leyton Green",17,{"$error":"#VALUE!"},{"$error":"#VALUE!"},{"$error":"#VALUE!"},{"$error":"#VALUE!"},{"$error":"#VALUE!"},{"$error":"#VALUE!"},"j24",9]
[null,"Bakers Arms Leyton Green",18,{"$error":"#VALUE!"},{"$error":"#VALUE!"},{"$error":"#VALUE!"},{"$error":"#VALUE!"},{"$error":"#VALUE!"},{"$error":"#VALUE!"},"j25",9]
[null,"Bakers Arms Leyton Green",19,{"$error":"#VALUE!"},{"$error":"#VALUE!"},{"$error":"#VALUE!"},{"$error":"#VALUE!"},{"$error":"#VALUE!"},{"$error":"#VALUE!"},"j26",9]
[null,"Bakers Arms Leyton Green",20,{"$error":"#VALUE!"},{"$error":"#VALUE!"},{"$error":"#VALUE!"},{"$error":"#VALUE!"},{"$error":"#VALUE!"},{"$error":"#VALUE!"},"j27",9]
[null,"Lea Bridge Corridor",1,{"$f":"COUNTIF(INDIRECT(\"'\"&$B183&\"'!\"&$J183),\"Significant Positive\")","v":{"$error":"#VALUE!"}},{"$f":"COUNTIF(INDIRECT(\"'\"&$B183&\"'!\"&$J183),\"Significant Negative\")","v":{"$error":"#VALUE!"}},{"$f":"COUNTIF(INDIRECT(\"'\"&$B183&\"'!\"&$J183),\"Minor Positive\")","v":{"$error":"#VALUE!"}},{"$f":"COUNTIF(INDIRECT(\"'\"&$B183&\"'!\"&$J183),\"Minor Negative\")","v":{"$error":"#VALUE!"}},{"$f":"COUNTIF(INDIRECT(\"'\"&$B183&\"'!\"&$J183),\"Neutral\")","v":{"$error":"#VALUE!"}},{"$f":"COUNTIF(INDIRECT(\"'\"&$B183&\"'!\"&$J183),\"Uncertain\")","v":{"$error":"#VALUE!"}},"J8",10]
[null,"Lea Bridge Corridor",2,{"$f":"COUNTIF(INDIRECT(\"'\"&$B184&\"'!\"&$J184),\"Significant Positive\")","v":{"$error":"#VALUE!"}},{"$f":"COUNTIF(INDIRECT(\"'\"&$B184&\"'!\"&$J184),\"Significant Negative\")","v":{"$error":"#VALUE!"}},{"$f":"COUNTIF(INDIRECT(\"'\"&$B184&\"'!\"&$J184),\"Minor Positive\")","v":{"$error":"#VALUE!"}},{"$f":"COUNTIF(INDIRECT(\"'\"&$B184&\"'!\"&$J184),\"Minor Negative\")","v":{"$error":"#VALUE!"}},{"$f":"COUNTIF(INDIRECT(\"'\"&$B184&\"'!\"&$J184),\"Neutral\")","v":{"$error":"#VALUE!"}},{"$f":"COUNTIF(INDIRECT(\"'\"&$B184&\"'!\"&$J184),\"Uncertain\")","v":{"$error":"#VALUE!"}},"j9",10]
[null,"Lea Bridge Corridor",3,{"$error":"#VALUE!"},{"$error":"#VALUE!"},{"$error":"#VALUE!"},{"$error":"#VALUE!"},{"$error":"#VALUE!"},{"$error":"#VALUE!"},"j10",10]
[null,"Lea Bridge Corridor",4,{"$error":"#VALUE!"},{"$error":"#VALUE!"},{"$error":"#VALUE!"},{"$error":"#VALUE!"},{"$error":"#VALUE!"},{"$error":"#VALUE!"},"j11",10]
[null,"Lea Bridge Corridor",5,{"$error":"#VALUE!"},{"$error":"#VALUE!"},{"$error":"#VALUE!"},{"$error":"#VALUE!"},{"$error":"#VALUE!"},{"$error":"#VALUE!"},"j12",10]
[null,"Lea Bridge Corridor",6,{"$error":"#VALUE!"},{"$error":"#VALUE!"},{"$error":"#VALUE!"},{"$error":"#VALUE!"},{"$error":"#VALUE!"},{"$error":"#VALUE!"},"j13",10]
[null,"Lea Bridge Corridor",7,{"$error":"#VALUE!"},{"$error":"#VALUE!"},{"$error":"#VALUE!"},{"$error":"#VALUE!"},{"$error":"#VALUE!"},{"$error":"#VALUE!"},"j14",10]
[null,"Lea Bridge Corridor",8,{"$error":"#VALUE!"},{"$error":"#VALUE!"},{"$error":"#VALUE!"},{"$error":"#VALUE!"},{"$error":"#VALUE!"},{"$error":"#VALUE!"},"j15",10]
[null,"Lea Bridge Corridor",9,{"$error":"#VALUE!"},{"$error":"#VALUE!"},{"$error":"#VALUE!"},{"$error":"#VALUE!"},{"$error":"#VALUE!"},{"$error":"#VALUE!"},"j16",10]
[null,"Lea Bridge Corridor",10,{"$error":"#VALUE!"},{"$error":"#VALUE!"},{"$error":"#VALUE!"},{"$error":"#VALUE!"},{"$error":"#VALUE!"},{"$error":"#VALUE!"},"j17",10]
[null,"Lea Bridge Corridor",11,{"$error":"#VALUE!"},{"$error":"#VALUE!"},{"$error":"#VALUE!"},{"$error":"#VALUE!"},{"$error":"#VALUE!"},{"$error":"#VALUE!"},"j18",10]
[null,"Lea Bridge Corridor",12,{"$error":"#VALUE!"},{"$error":"#VALUE!"},{"$error":"#VALUE!"},{"$error":"#VALUE!"},{"$error":"#VALUE!"},{"$error":"#VALUE!"},"j19",10]
[null,"Lea Bridge Corridor",13,{"$error":"#VALUE!"},{"$error":"#VALUE!"},{"$error":"#VALUE!"},{"$error":"#VALUE!"},{"$error":"#VALUE!"},{"$error":"#VALUE!"},"j20",10]
[null,"Lea Bridge Corridor",14,{"$error":"#VALUE!"},{"$error":"#VALUE!"},{"$error":"#VALUE!"},{"$error":"#VALUE!"},{"$error":"#VALUE!"},{"$error":"#VALUE!"},"j21",10]
[null,"Lea Bridge Corridor",15,{"$error":"#VALUE!"},{"$error":"#VALUE!"},{"$error":"#VALUE!"},{"$error":"#VALUE!"},{"$error":"#VALUE!"},{"$error":"#VALUE!"},"j22",10]
[null,"Lea Bridge Corridor",16,{"$error":"#VALUE!"},{"$error":"#VALUE!"},{"$error":"#VALUE!"},{"$error":"#VALUE!"},{"$error":"#VALUE!"},{"$error":"#VALUE!"},"j23",10]
[null,"Lea Bridge Corridor",17,{"$error":"#VALUE!"},{"$error":"#VALUE!"},{"$error":"#VALUE!"},{"$error":"#VALUE!"},{"$error":"#VALUE!"},{"$error":"#VALUE!"},"j24",10]
[null,"Lea Bridge Corridor",18,{"$error":"#VALUE!"},{"$error":"#VALUE!"},{"$error":"#VALUE!"},{"$error":"#VALUE!"},{"$error":"#VALUE!"},{"$error":"#VALUE!"},"j25",10]
[null,"Lea Bridge Corridor",19,{"$error":"#VALUE!"},{"$error":"#VALUE!"},{"$error":"#VALUE!"},{"$error":"#VALUE!"},{"$error":"#VALUE!"},{"$error":"#VALUE!"},"j26",10]
[null,"Lea Bridge Corridor",20,{"$error":"#VALUE!"},{"$error":"#VALUE!"},{"$error":"#VALUE!"},{"$error":"#VALUE!"},{"$error":"#VALUE!"},{"$error":"#VALUE!"},"j27",10]
[null,"Leytonstone",1,{"$f":"COUNTIF(INDIRECT(\"'\"&$B203&\"'!\"&$J203),\"Significant Positive\")","v":{"$error":"#VALUE!"}},{"$f":"COUNTIF(INDIRECT(\"'\"&$B203&\"'!\"&$J203),\"Significant Negative\")","v":{"$error":"#VALUE!"}},{"$f":"COUNTIF(INDIRECT(\"'\"&$B203&\"'!\"&$J203),\"Minor Positive\")","v":{"$error":"#VALUE!"}},{"$f":"COUNTIF(INDIRECT(\"'\"&$B203&\"'!\"&$J203),\"Minor Negative\")","v":{"$error":"#VALUE!"}},{"$f":"COUNTIF(INDIRECT(\"'\"&$B203&\"'!\"&$J203),\"Neutral\")","v":{"$error":"#VALUE!"}},{"$f":"COUNTIF(INDIRECT(\"'\"&$B203&\"'!\"&$J203),\"Uncertain\")","v":{"$error":"#VALUE!"}},"J8",11]
[null,"Leytonstone",2,{"$f":"COUNTIF(INDIRECT(\"'\"&$B204&\"'!\"&$J204),\"Significant Positive\")","v":{"$error":"#VALUE!"}},{"$f":"COUNTIF(INDIRECT(\"'\"&$B204&\"'!\"&$J204),\"Significant Negative\")","v":{"$error":"#VALUE!"}},{"$f":"COUNTIF(INDIRECT(\"'\"&$B204&\"'!\"&$J204),\"Minor Positive\")","v":{"$error":"#VALUE!"}},{"$f":"COUNTIF(INDIRECT(\"'\"&$B204&\"'!\"&$J204),\"Minor Negative\")","v":{"$error":"#VALUE!"}},{"$f":"COUNTIF(INDIRECT(\"'\"&$B204&\"'!\"&$J204),\"Neutral\")","v":{"$error":"#VALUE!"}},{"$f":"COUNTIF(INDIRECT(\"'\"&$B204&\"'!\"&$J204),\"Uncertain\")","v":{"$error":"#VALUE!"}},"j9",11]
[null,"Leytonstone",3,{"$error":"#VALUE!"},{"$error":"#VALUE!"},{"$error":"#VALUE!"},{"$error":"#VALUE!"},{"$error":"#VALUE!"},{"$error":"#VALUE!"},"j10",11]
[null,"Leytonstone",4,{"$error":"#VALUE!"},{"$error":"#VALUE!"},{"$error":"#VALUE!"},{"$error":"#VALUE!"},{"$error":"#VALUE!"},{"$error":"#VALUE!"},"j11",11]
[null,"Leytonstone",5,{"$error":"#VALUE!"},{"$error":"#VALUE!"},{"$error":"#VALUE!"},{"$error":"#VALUE!"},{"$error":"#VALUE!"},{"$error":"#VALUE!"},"j12",11]
[null,"Leytonstone",6,{"$error":"#VALUE!"},{"$error":"#VALUE!"},{"$error":"#VALUE!"},{"$error":"#VALUE!"},{"$error":"#VALUE!"},{"$error":"#VALUE!"},"j13",11]
[null,"Leytonstone",7,{"$error":"#VALUE!"},{"$error":"#VALUE!"},{"$error":"#VALUE!"},{"$error":"#VALUE!"},{"$error":"#VALUE!"},{"$error":"#VALUE!"},"j14",11]
[null,"Leytonstone",8,{"$error":"#VALUE!"},{"$error":"#VALUE!"},{"$error":"#VALUE!"},{"$error":"#VALUE!"},{"$error":"#VALUE!"},{"$error":"#VALUE!"},"j15",11]
[null,"Leytonstone",9,{"$error":"#VALUE!"},{"$error":"#VALUE!"},{"$error":"#VALUE!"},{"$error":"#VALUE!"},{"$error":"#VALUE!"},{"$error":"#VALUE!"},"j16",11]
[null,"Leytonstone",10,{"$error":"#VALUE!"},{"$error":"#VALUE!"},{"$error":"#VALUE!"},{"$error":"#VALUE!"},{"$error":"#VALUE!"},{"$error":"#VALUE!"},"j17",11]
[null,"Leytonstone",11,{"$error":"#VALUE!"},{"$error":"#VALUE!"},{"$error":"#VALUE!"},{"$error":"#VALUE!"},{"$error":"#VALUE!"},{"$error":"#VALUE!"},"j18",11]
[null,"Leytonstone",12,{"$error":"#VALUE!"},{"$error":"#VALUE!"},{"$error":"#VALUE!"},{"$error":"#VALUE!"},{"$error":"#VALUE!"},{"$error":"#VALUE!"},"j19",11]
[null,"Leytonstone",13,{"$error":"#VALUE!"},{"$error":"#VALUE!"},{"$error":"#VALUE!"},{"$error":"#VALUE!"},{"$error":"#VALUE!"},{"$error":"#VALUE!"},"j20",11]
[null,"Leytonstone",14,{"$error":"#VALUE!"},{"$error":"#VALUE!"},{"$error":"#VALUE!"},{"$error":"#VALUE!"},{"$error":"#VALUE!"},{"$error":"#VALUE!"},"j21",11]
[null,"Leytonstone",15,{"$error":"#VALUE!"},{"$error":"#VALUE!"},{"$error":"#VALUE!"},{"$error":"#VALUE!"},{"$error":"#VALUE!"},{"$error":"#VALUE!"},"j22",11]
[null,"Leytonstone",16,{"$error":"#VALUE!"},{"$error":"#VALUE!"},{"$error":"#VALUE!"},{"$error":"#VALUE!"},{"$error":"#VALUE!"},{"$error":"#VALUE!"},"j23",11]
[null,"Leytonstone",17,{"$error":"#VALUE!"},{"$error":"#VALUE!"},{"$error":"#VALUE!"},{"$error":"#VALUE!"},{"$error":"#VALUE!"},{"$error":"#VALUE!"},"j24",11]
[null,"Leytonstone",18,{"$error":"#VALUE!"},{"$error":"#VALUE!"},{"$error":"#VALUE!"},{"$error":"#VALUE!"},{"$error":"#VALUE!"},{"$error":"#VALUE!"},"j25",11]
[null,"Leytonstone",19,{"$error":"#VALUE!"},{"$error":"#VALUE!"},{"$error":"#VALUE!"},{"$error":"#VALUE!"},{"$error":"#VALUE!"},{"$error":"#VALUE!"},"j26",11]
[null,"Leytonstone",20,{"$error":"#VALUE!"},{"$error":"#VALUE!"},{"$error":"#VALUE!"},{"$error":"#VALUE!"},{"$error":"#VALUE!"},{"$error":"#VALUE!"},"j27",11]
[null,"Norlington Strip",1,{"$f":"COUNTIF(INDIRECT(\"'\"&$B223&\"'!\"&$J223),\"Significant Positive\")","v":{"$error":"#VALUE!"}},{"$f":"COUNTIF(INDIRECT(\"'\"&$B223&\"'!\"&$J223),\"Significant Negative\")","v":{"$error":"#VALUE!"}},{"$f":"COUNTIF(INDIRECT(\"'\"&$B223&\"'!\"&$J223),\"Minor Positive\")","v":{"$error":"#VALUE!"}},{"$f":"COUNTIF(INDIRECT(\"'\"&$B223&\"'!\"&$J223),\"Minor Negative\")","v":{"$error":"#VALUE!"}},{"$f":"COUNTIF(INDIRECT(\"'\"&$B223&\"'!\"&$J223),\"Neutral\")","v":{"$error":"#VALUE!"}},{"$f":"COUNTIF(INDIRECT(\"'\"&$B223&\"'!\"&$J223),\"Uncertain\")","v":{"$error":"#VALUE!"}},"J8",12]
[null,"Norlington Strip",2,{"$f":"COUNTIF(INDIRECT(\"'\"&$B224&\"'!\"&$J224),\"Significant Positive\")","v":{"$error":"#VALUE!"}},{"$f":"COUNTIF(INDIRECT(\"'\"&$B224&\"'!\"&$J224),\"Significant Negative\")","v":{"$error":"#VALUE!"}},{"$f":"COUNTIF(INDIRECT(\"'\"&$B224&\"'!\"&$J224),\"Minor Positive\")","v":{"$error":"#VALUE!"}},{"$f":"COUNTIF(INDIRECT(\"'\"&$B224&\"'!\"&$J224),\"Minor Negative\")","v":{"$error":"#VALUE!"}},{"$f":"COUNTIF(INDIRECT(\"'\"&$B224&\"'!\"&$J224),\"Neutral\")","v":{"$error":"#VALUE!"}},{"$f":"COUNTIF(INDIRECT(\"'\"&$B224&\"'!\"&$J224),\"Uncertain\")","v":{"$error":"#VALUE!"}},"j9",12]
[null,"Norlington Strip",3,{"$error":"#VALUE!"},{"$error":"#VALUE!"},{"$error":"#VALUE!"},{"$error":"#VALUE!"},{"$error":"#VALUE!"},{"$error":"#VALUE!"},"j10",12]
[null,"Norlington Strip",4,{"$error":"#VALUE!"},{"$error":"#VALUE!"},{"$error":"#VALUE!"},{"$error":"#VALUE!"},{"$error":"#VALUE!"},{"$error":"#VALUE!"},"j11",12]
[null,"Norlington Strip",5,{"$error":"#VALUE!"},{"$error":"#VALUE!"},{"$error":"#VALUE!"},{"$error":"#VALUE!"},{"$error":"#VALUE!"},{"$error":"#VALUE!"},"j12",12]
[null,"Norlington Strip",6,{"$error":"#VALUE!"},{"$error":"#VALUE!"},{"$error":"#VALUE!"},{"$error":"#VALUE!"},{"$error":"#VALUE!"},{"$error":"#VALUE!"},"j13",12]
[null,"Norlington Strip",7,{"$error":"#VALUE!"},{"$error":"#VALUE!"},{"$error":"#VALUE!"},{"$error":"#VALUE!"},{"$error":"#VALUE!"},{"$error":"#VALUE!"},"j14",12]
[null,"Norlington Strip",8,{"$error":"#VALUE!"},{"$error":"#VALUE!"},{"$error":"#VALUE!"},{"$error":"#VALUE!"},{"$error":"#VALUE!"},{"$error":"#VALUE!"},"j15",12]
[null,"Norlington Strip",9,{"$error":"#VALUE!"},{"$error":"#VALUE!"},{"$error":"#VALUE!"},{"$error":"#VALUE!"},{"$error":"#VALUE!"},{"$error":"#VALUE!"},"j16",12]
[null,"Norlington Strip",10,{"$error":"#VALUE!"},{"$error":"#VALUE!"},{"$error":"#VALUE!"},{"$error":"#VALUE!"},{"$error":"#VALUE!"},{"$error":"#VALUE!"},"j17",12]
[null,"Norlington Strip",11,{"$error":"#VALUE!"},{"$error":"#VALUE!"},{"$error":"#VALUE!"},{"$error":"#VALUE!"},{"$error":"#VALUE!"},{"$error":"#VALUE!"},"j18",12]
[null,"Norlington Strip",12,{"$error":"#VALUE!"},{"$error":"#VALUE!"},{"$error":"#VALUE!"},{"$error":"#VALUE!"},{"$error":"#VALUE!"},{"$error":"#VALUE!"},"j19",12]
[null,"Norlington Strip",13,{"$error":"#VALUE!"},{"$error":"#VALUE!"},{"$error":"#VALUE!"},{"$error":"#VALUE!"},{"$error":"#VALUE!"},{"$error":"#VALUE!"},"j20",12]
[null,"Norlington Strip",14,{"$error":"#VALUE!"},{"$error":"#VALUE!"},{"$error":"#VALUE!"},{"$error":"#VALUE!"},{"$error":"#VALUE!"},{"$error":"#VALUE!"},"j21",12]
[null,"Norlington Strip",15,{"$error":"#VALUE!"},{"$error":"#VALUE!"},{"$error":"#VALUE!"},{"$error":"#VALUE!"},{"$error":"#VALUE!"},{"$error":"#VALUE!"},"j22",12]
[null,"Norlington Strip",16,{"$error":"#VALUE!"},{"$error":"#VALUE!"},{"$error":"#VALUE!"},{"$error":"#VALUE!"},{"$error":"#VALUE!"},{"$error":"#VALUE!"},"j23",12]
[null,"Norlington Strip",17,{"$error":"#VALUE!"},{"$error":"#VALUE!"},{"$error":"#VALUE!"},{"$error":"#VALUE!"},{"$error":"#VALUE!"},{"$error":"#VALUE!"},"j24",12]
[null,"Norlington Strip",18,{"$error":"#VALUE!"},{"$error":"#VALUE!"},{"$error":"#VALUE!"},{"$error":"#VALUE!"},{"$error":"#VALUE!"},{"$error":"#VALUE!"},"j25",12]
[null,"Norlington Strip",19,{"$error":"#VALUE!"},{"$error":"#VALUE!"},{"$error":"#VALUE!"},{"$error":"#VALUE!"},{"$error":"#VALUE!"},{"$error":"#VALUE!"},"j26",12]
[null,"Norlington Strip",20,{"$error":"#VALUE!"},{"$error":"#VALUE!"},{"$error":"#VALUE!"},{"$error":"#VALUE!"},{"$error":"#VALUE!"},{"$error":"#VALUE!"},"j27",12]
[null,"South Leytonstone",1,{"$f":"COUNTIF(INDIRECT(\"'\"&$B243&\"'!\"&$J243),\"Significant Positive\")","v":{"$error":"#VALUE!"}},{"$f":"COUNTIF(INDIRECT(\"'\"&$B243&\"'!\"&$J243),\"Significant Negative\")","v":{"$error":"#VALUE!"}},{"$f":"COUNTIF(INDIRECT(\"'\"&$B243&\"'!\"&$J243),\"Minor Positive\")","v":{"$error":"#VALUE!"}},{"$f":"COUNTIF(INDIRECT(\"'\"&$B243&\"'!\"&$J243),\"Minor Negative\")","v":{"$error":"#VALUE!"}},{"$f":"COUNTIF(INDIRECT(\"'\"&$B243&\"'!\"&$J243),\"Neutral\")","v":{"$error":"#VALUE!"}},{"$f":"COUNTIF(INDIRECT(\"'\"&$B243&\"'!\"&$J243),\"Uncertain\")","v":{"$error":"#VALUE!"}},"J8",13]
[null,"South Leytonstone",2,{"$f":"COUNTIF(INDIRECT(\"'\"&$B244&\"'!\"&$J244),\"Significant Positive\")","v":{"$error":"#VALUE!"}},{"$f":"COUNTIF(INDIRECT(\"'\"&$B244&\"'!\"&$J244),\"Significant Negative\")","v":{"$error":"#VALUE!"}},{"$f":"COUNTIF(INDIRECT(\"'\"&$B244&\"'!\"&$J244),\"Minor Positive\")","v":{"$error":"#VALUE!"}},{"$f":"COUNTIF(INDIRECT(\"'\"&$B244&\"'!\"&$J244),\"Minor Negative\")","v":{"$error":"#VALUE!"}},{"$f":"COUNTIF(INDIRECT(\"'\"&$B244&\"'!\"&$J244),\"Neutral\")","v":{"$error":"#VALUE!"}},{"$f":"COUNTIF(INDIRECT(\"'\"&$B244&\"'!\"&$J244),\"Uncertain\")","v":{"$error":"#VALUE!"}},"j9",13]
[null,"South Leytonstone",3,{"$error":"#VALUE!"},{"$error":"#VALUE!"},{"$error":"#VALUE!"},{"$error":"#VALUE!"},{"$error":"#VALUE!"},{"$error":"#VALUE!"},"j10",13]
[null,"South Leytonstone",4,{"$error":"#VALUE!"},{"$error":"#VALUE!"},{"$error":"#VALUE!"},{"$error":"#VALUE!"},{"$error":"#VALUE!"},{"$error":"#VALUE!"},"j11",13]
[null,"South Leytonstone",5,{"$error":"#VALUE!"},{"$error":"#VALUE!"},{"$error":"#VALUE!"},{"$error":"#VALUE!"},{"$error":"#VALUE!"},{"$error":"#VALUE!"},"j12",13]
[null,"South Leytonstone",6,{"$error":"#VALUE!"},{"$error":"#VALUE!"},{"$error":"#VALUE!"},{"$error":"#VALUE!"},{"$error":"#VALUE!"},{"$error":"#VALUE!"},"j13",13]
[null,"South Leytonstone",7,{"$error":"#VALUE!"},{"$error":"#VALUE!"},{"$error":"#VALUE!"},{"$error":"#VALUE!"},{"$error":"#VALUE!"},{"$error":"#VALUE!"},"j14",13]
[null,"South Leytonstone",8,{"$error":"#VALUE!"},{"$error":"#VALUE!"},{"$error":"#VALUE!"},{"$error":"#VALUE!"},{"$error":"#VALUE!"},{"$error":"#VALUE!"},"j15",13]
[null,"South Leytonstone",9,{"$error":"#VALUE!"},{"$error":"#VALUE!"},{"$error":"#VALUE!"},{"$error":"#VALUE!"},{"$error":"#VALUE!"},{"$error":"#VALUE!"},"j16",13]
[null,"South Leytonstone",10,{"$error":"#VALUE!"},{"$error":"#VALUE!"},{"$error":"#VALUE!"},{"$error":"#VALUE!"},{"$error":"#VALUE!"},{"$error":"#VALUE!"},"j17",13]
[null,"South Leytonstone",11,{"$error":"#VALUE!"},{"$error":"#VALUE!"},{"$error":"#VALUE!"},{"$error":"#VALUE!"},{"$error":"#VALUE!"},{"$error":"#VALUE!"},"j18",13]
[null,"South Leytonstone",12,{"$error":"#VALUE!"},{"$error":"#VALUE!"},{"$error":"#VALUE!"},{"$error":"#VALUE!"},{"$error":"#VALUE!"},{"$error":"#VALUE!"},"j19",13]
[null,"South Leytonstone",13,{"$error":"#VALUE!"},{"$error":"#VALUE!"},{"$error":"#VALUE!"},{"$error":"#VALUE!"},{"$error":"#VALUE!"},{"$error":"#VALUE!"},"j20",13]
[null,"South Leytonstone",14,{"$error":"#VALUE!"},{"$error":"#VALUE!"},{"$error":"#VALUE!"},{"$error":"#VALUE!"},{"$error":"#VALUE!"},{"$error":"#VALUE!"},"j21",13]
[null,"South Leytonstone",15,{"$error":"#VALUE!"},{"$error":"#VALUE!"},{"$error":"#VALUE!"},{"$error":"#VALUE!"},{"$error":"#VALUE!"},{"$error":"#VALUE!"},"j22",13]
[null,"South Leytonstone",16,{"$error":"#VALUE!"},{"$error":"#VALUE!"},{"$error":"#VALUE!"},{"$error":"#VALUE!"},{"$error":"#VALUE!"},{"$error":"#VALUE!"},"j23",13]
[null,"South Leytonstone",17,{"$error":"#VALUE!"},{"$error":"#VALUE!"},{"$error":"#VALUE!"},{"$error":"#VALUE!"},{"$error":"#VALUE!"},{"$error":"#VALUE!"},"j24",13]
[null,"South Leytonstone",18,{"$error":"#VALUE!"},{"$error":"#VALUE!"},{"$error":"#VALUE!"},{"$error":"#VALUE!"},{"$error":"#VALUE!"},{"$error":"#VALUE!"},"j25",13]
[null,"South Leytonstone",19,{"$error":"#VALUE!"},{"$error":"#VALUE!"},{"$error":"#VALUE!"},{"$error":"#VALUE!"},{"$error":"#VALUE!"},{"$error":"#VALUE!"},"j26",13]
[null,"South Leytonstone",20,{"$error":"#VALUE!"},{"$error":"#VALUE!"},{"$error":"#VALUE!"},{"$error":"#VALUE!"},{"$error":"#VALUE!"},{"$error":"#VALUE!"},"j27",13]
[null,"Leyton ",1,{"$f":"COUNTIF(INDIRECT(\"'\"&$B263&\"'!\"&$J263),\"Significant Positive\")","v":{"$error":"#VALUE!"}},{"$f":"COUNTIF(INDIRECT(\"'\"&$B263&\"'!\"&$J263),\"Significant Negative\")","v":{"$error":"#VALUE!"}},{"$f":"COUNTIF(INDIRECT(\"'\"&$B263&\"'!\"&$J263),\"Minor Positive\")","v":{"$error":"#VALUE!"}},{"$f":"COUNTIF(INDIRECT(\"'\"&$B263&\"'!\"&$J263),\"Minor Negative\")","v":{"$error":"#VALUE!"}},{"$f":"COUNTIF(INDIRECT(\"'\"&$B263&\"'!\"&$J263),\"Neutral\")","v":{"$error":"#VALUE!"}},{"$f":"COUNTIF(INDIRECT(\"'\"&$B263&\"'!\"&$J263),\"Uncertain\")","v":{"$error":"#VALUE!"}},"J8",14]
[null,"Leyton ",2,{"$f":"COUNTIF(INDIRECT(\"'\"&$B264&\"'!\"&$J264),\"Significant Positive\")","v":{"$error":"#VALUE!"}},{"$f":"COUNTIF(INDIRECT(\"'\"&$B264&\"'!\"&$J264),\"Significant Negative\")","v":{"$error":"#VALUE!"}},{"$f":"COUNTIF(INDIRECT(\"'\"&$B264&\"'!\"&$J264),\"Minor Positive\")","v":{"$error":"#VALUE!"}},{"$f":"COUNTIF(INDIRECT(\"'\"&$B264&\"'!\"&$J264),\"Minor Negative\")","v":{"$error":"#VALUE!"}},{"$f":"COUNTIF(INDIRECT(\"'\"&$B264&\"'!\"&$J264),\"Neutral\")","v":{"$error":"#VALUE!"}},{"$f":"COUNTIF(INDIRECT(\"'\"&$B264&\"'!\"&$J264),\"Uncertain\")","v":{"$error":"#VALUE!"}},"j9",14]
[null,"Leyton ",3,{"$error":"#VALUE!"},{"$error":"#VALUE!"},{"$error":"#VALUE!"},{"$error":"#VALUE!"},{"$error":"#VALUE!"},{"$error":"#VALUE!"},"j10",14]
[null,"Leyton ",4,{"$error":"#VALUE!"},{"$error":"#VALUE!"},{"$error":"#VALUE!"},{"$error":"#VALUE!"},{"$error":"#VALUE!"},{"$error":"#VALUE!"},"j11",14]
[null,"Leyton ",5,{"$error":"#VALUE!"},{"$error":"#VALUE!"},{"$error":"#VALUE!"},{"$error":"#VALUE!"},{"$error":"#VALUE!"},{"$error":"#VALUE!"},"j12",14]
[null,"Leyton ",6,{"$error":"#VALUE!"},{"$error":"#VALUE!"},{"$error":"#VALUE!"},{"$error":"#VALUE!"},{"$error":"#VALUE!"},{"$error":"#VALUE!"},"j13",14]
[null,"Leyton ",7,{"$error":"#VALUE!"},{"$error":"#VALUE!"},{"$error":"#VALUE!"},{"$error":"#VALUE!"},{"$error":"#VALUE!"},{"$error":"#VALUE!"},"j14",14]
[null,"Leyton ",8,{"$error":"#VALUE!"},{"$error":"#VALUE!"},{"$error":"#VALUE!"},{"$error":"#VALUE!"},{"$error":"#VALUE!"},{"$error":"#VALUE!"},"j15",14]
[null,"Leyton ",9,{"$error":"#VALUE!"},{"$error":"#VALUE!"},{"$error":"#VALUE!"},{"$error":"#VALUE!"},{"$error":"#VALUE!"},{"$error":"#VALUE!"},"j16",14]
[null,"Leyton ",10,{"$error":"#VALUE!"},{"$error":"#VALUE!"},{"$error":"#VALUE!"},{"$error":"#VALUE!"},{"$error":"#VALUE!"},{"$error":"#VALUE!"},"j17",14]
[null,"Leyton ",11,{"$error":"#VALUE!"},{"$error":"#VALUE!"},{"$error":"#VALUE!"},{"$error":"#VALUE!"},{"$error":"#VALUE!"},{"$error":"#VALUE!"},"j18",14]
[null,"Leyton ",12,{"$error":"#VALUE!"},{"$error":"#VALUE!"},{"$error":"#VALUE!"},{"$error":"#VALUE!"},{"$error":"#VALUE!"},{"$error":"#VALUE!"},"j19",14]
[null,"Leyton ",13,{"$error":"#VALUE!"},{"$error":"#VALUE!"},{"$error":"#VALUE!"},{"$error":"#VALUE!"},{"$error":"#VALUE!"},{"$error":"#VALUE!"},"j20",14]
[null,"Leyton ",14,{"$error":"#VALUE!"},{"$error":"#VALUE!"},{"$error":"#VALUE!"},{"$error":"#VALUE!"},{"$error":"#VALUE!"},{"$error":"#VALUE!"},"j21",14]
[null,"Leyton ",15,{"$error":"#VALUE!"},{"$error":"#VALUE!"},{"$error":"#VALUE!"},{"$error":"#VALUE!"},{"$error":"#VALUE!"},{"$error":"#VALUE!"},"j22",14]
[null,"Leyton ",16,{"$error":"#VALUE!"},{"$error":"#VALUE!"},{"$error":"#VALUE!"},{"$error":"#VALUE!"},{"$error":"#VALUE!"},{"$error":"#VALUE!"},"j23",14]
[null,"Leyton ",17,{"$error":"#VALUE!"},{"$error":"#VALUE!"},{"$error":"#VALUE!"},{"$error":"#VALUE!"},{"$error":"#VALUE!"},{"$error":"#VALUE!"},"j24",14]
[null,"Leyton ",18,{"$error":"#VALUE!"},{"$error":"#VALUE!"},{"$error":"#VALUE!"},{"$error":"#VALUE!"},{"$error":"#VALUE!"},{"$error":"#VALUE!"},"j25",14]
[null,"Leyton ",19,{"$error":"#VALUE!"},{"$error":"#VALUE!"},{"$error":"#VALUE!"},{"$error":"#VALUE!"},{"$error":"#VALUE!"},{"$error":"#VALUE!"},"j26",14]
[null,"Leyton ",20,{"$error":"#VALUE!"},{"$error":"#VALUE!"},{"$error":"#VALUE!"},{"$error":"#VALUE!"},{"$error":"#VALUE!"},{"$error":"#VALUE!"},"j27",14]
[null,"New Spitalfields",1,{"$f":"COUNTIF(INDIRECT(\"'\"&$B283&\"'!\"&$J283),\"Significant Positive\")","v":{"$error":"#VALUE!"}},{"$f":"COUNTIF(INDIRECT(\"'\"&$B283&\"'!\"&$J283),\"Significant Negative\")","v":{"$error":"#VALUE!"}},{"$f":"COUNTIF(INDIRECT(\"'\"&$B283&\"'!\"&$J283),\"Minor Positive\")","v":{"$error":"#VALUE!"}},{"$f":"COUNTIF(INDIRECT(\"'\"&$B283&\"'!\"&$J283),\"Minor Negative\")","v":{"$error":"#VALUE!"}},{"$f":"COUNTIF(INDIRECT(\"'\"&$B283&\"'!\"&$J283),\"Neutral\")","v":{"$error":"#VALUE!"}},{"$f":"COUNTIF(INDIRECT(\"'\"&$B283&\"'!\"&$J283),\"Uncertain\")","v":{"$error":"#VALUE!"}},"J8",15]
[null,"New Spitalfields",2,{"$f":"COUNTIF(INDIRECT(\"'\"&$B284&\"'!\"&$J284),\"Significant Positive\")","v":{"$error":"#VALUE!"}},{"$f":"COUNTIF(INDIRECT(\"'\"&$B284&\"'!\"&$J284),\"Significant Negative\")","v":{"$error":"#VALUE!"}},{"$f":"COUNTIF(INDIRECT(\"'\"&$B284&\"'!\"&$J284),\"Minor Positive\")","v":{"$error":"#VALUE!"}},{"$f":"COUNTIF(INDIRECT(\"'\"&$B284&\"'!\"&$J284),\"Minor Negative\")","v":{"$error":"#VALUE!"}},{"$f":"COUNTIF(INDIRECT(\"'\"&$B284&\"'!\"&$J284),\"Neutral\")","v":{"$error":"#VALUE!"}},{"$f":"COUNTIF(INDIRECT(\"'\"&$B284&\"'!\"&$J284),\"Uncertain\")","v":{"$error":"#VALUE!"}},"j9",15]
[null,"New Spitalfields",3,{"$error":"#VALUE!"},{"$error":"#VALUE!"},{"$error":"#VALUE!"},{"$error":"#VALUE!"},{"$error":"#VALUE!"},{"$error":"#VALUE!"},"j10",15]
[null,"New Spitalfields",4,{"$error":"#VALUE!"},{"$error":"#VALUE!"},{"$error":"#VALUE!"},{"$error":"#VALUE!"},{"$error":"#VALUE!"},{"$error":"#VALUE!"},"j11",15]
[null,"New Spitalfields",5,{"$error":"#VALUE!"},{"$error":"#VALUE!"},{"$error":"#VALUE!"},{"$error":"#VALUE!"},{"$error":"#VALUE!"},{"$error":"#VALUE!"},"j12",15]
[null,"New Spitalfields",6,{"$error":"#VALUE!"},{"$error":"#VALUE!"},{"$error":"#VALUE!"},{"$error":"#VALUE!"},{"$error":"#VALUE!"},{"$error":"#VALUE!"},"j13",15]
[null,"New Spitalfields",7,{"$error":"#VALUE!"},{"$error":"#VALUE!"},{"$error":"#VALUE!"},{"$error":"#VALUE!"},{"$error":"#VALUE!"},{"$error":"#VALUE!"},"j14",15]
[null,"New Spitalfields",8,{"$error":"#VALUE!"},{"$error":"#VALUE!"},{"$error":"#VALUE!"},{"$error":"#VALUE!"},{"$error":"#VALUE!"},{"$error":"#VALUE!"},"j15",15]
[null,"New Spitalfields",9,{"$error":"#VALUE!"},{"$error":"#VALUE!"},{"$error":"#VALUE!"},{"$error":"#VALUE!"},{"$error":"#VALUE!"},{"$error":"#VALUE!"},"j16",15]
[null,"New Spitalfields",10,{"$error":"#VALUE!"},{"$error":"#VALUE!"},{"$error":"#VALUE!"},{"$error":"#VALUE!"},{"$error":"#VALUE!"},{"$error":"#VALUE!"},"j17",15]
[null,"New Spitalfields",11,{"$error":"#VALUE!"},{"$error":"#VALUE!"},{"$error":"#VALUE!"},{"$error":"#VALUE!"},{"$error":"#VALUE!"},{"$error":"#VALUE!"},"j18",15]
[null,"New Spitalfields",12,{"$error":"#VALUE!"},{"$error":"#VALUE!"},{"$error":"#VALUE!"},{"$error":"#VALUE!"},{"$error":"#VALUE!"},{"$error":"#VALUE!"},"j19",15]
[null,"New Spitalfields",13,{"$error":"#VALUE!"},{"$error":"#VALUE!"},{"$error":"#VALUE!"},{"$error":"#VALUE!"},{"$error":"#VALUE!"},{"$error":"#VALUE!"},"j20",15]
[null,"New Spitalfields",14,{"$error":"#VALUE!"},{"$error":"#VALUE!"},{"$error":"#VALUE!"},{"$error":"#VALUE!"},{"$error":"#VALUE!"},{"$error":"#VALUE!"},"j21",15]
[null,"New Spitalfields",15,{"$error":"#VALUE!"},{"$error":"#VALUE!"},{"$error":"#VALUE!"},{"$error":"#VALUE!"},{"$error":"#VALUE!"},{"$error":"#VALUE!"},"j22",15]
[null,"New Spitalfields",16,{"$error":"#VALUE!"},{"$error":"#VALUE!"},{"$error":"#VALUE!"},{"$error":"#VALUE!"},{"$error":"#VALUE!"},{"$error":"#VALUE!"},"j23",15]
[null,"New Spitalfields",17,{"$error":"#VALUE!"},{"$error":"#VALUE!"},{"$error":"#VALUE!"},{"$error":"#VALUE!"},{"$error":"#VALUE!"},{"$error":"#VALUE!"},"j24",15]
[null,"New Spitalfields",18,{"$error":"#VALUE!"},{"$error":"#VALUE!"},{"$error":"#VALUE!"},{"$error":"#VALUE!"},{"$error":"#VALUE!"},{"$error":"#VALUE!"},"j25",15]
[null,"New Spitalfields",19,{"$error":"#VALUE!"},{"$error":"#VALUE!"},{"$error":"#VALUE!"},{"$error":"#VALUE!"},{"$error":"#VALUE!"},{"$error":"#VALUE!"},"j26",15]
[null,"New Spitalfields",20,{"$f":"COUNTIF(INDIRECT(\"'\"&$B302&\"'!\"&$J302),\"Significant Positive\")","v":{"$error":"#VALUE!"}},{"$f":"COUNTIF(INDIRECT(\"'\"&$B302&\"'!\"&$J302),\"Significant Negative\")","v":{"$error":"#VALUE!"}},{"$f":"COUNTIF(INDIRECT(\"'\"&$B302&\"'!\"&$J302),\"Minor Positive\")","v":{"$error":"#VALUE!"}},{"$f":"COUNTIF(INDIRECT(\"'\"&$B302&\"'!\"&$J302),\"Minor Negative\")","v":{"$error":"#VALUE!"}},{"$f":"COUNTIF(INDIRECT(\"'\"&$B302&\"'!\"&$J302),\"Neutral\")","v":{"$error":"#VALUE!"}},{"$f":"COUNTIF(INDIRECT(\"'\"&$B302&\"'!\"&$J302),\"Uncertain\")","v":{"$error":"#VALUE!"}},"j27",15]
[null,"Wood Street",1,{"$f":"COUNTIF(INDIRECT(\"'\"&$B303&\"'!\"&$J303),\"Significant Positive\")","v":{"$error":"#VALUE!"}},{"$f":"COUNTIF(INDIRECT(\"'\"&$B303&\"'!\"&$J303),\"Significant Negative\")","v":{"$error":"#VALUE!"}},{"$f":"COUNTIF(INDIRECT(\"'\"&$B303&\"'!\"&$J303),\"Minor Positive\")","v":{"$error":"#VALUE!"}},{"$f":"COUNTIF(INDIRECT(\"'\"&$B303&\"'!\"&$J303),\"Minor Negative\")","v":{"$error":"#VALUE!"}},{"$f":"COUNTIF(INDIRECT(\"'\"&$B303&\"'!\"&$J303),\"Neutral\")","v":{"$error":"#VALUE!"}},{"$f":"COUNTIF(INDIRECT(\"'\"&$B303&\"'!\"&$J303),\"Uncertain\")","v":{"$error":"#VALUE!"}},"J8",16]
[null,"Wood Street",2,{"$f":"COUNTIF(INDIRECT(\"'\"&$B304&\"'!\"&$J304),\"Significant Positive\")","v":{"$error":"#VALUE!"}},{"$f":"COUNTIF(INDIRECT(\"'\"&$B304&\"'!\"&$J304),\"Significant Negative\")","v":{"$error":"#VALUE!"}},{"$f":"COUNTIF(INDIRECT(\"'\"&$B304&\"'!\"&$J304),\"Minor Positive\")","v":{"$error":"#VALUE!"}},{"$f":"COUNTIF(INDIRECT(\"'\"&$B304&\"'!\"&$J304),\"Minor Negative\")","v":{"$error":"#VALUE!"}},{"$f":"COUNTIF(INDIRECT(\"'\"&$B304&\"'!\"&$J304),\"Neutral\")","v":{"$error":"#VALUE!"}},{"$f":"COUNTIF(INDIRECT(\"'\"&$B304&\"'!\"&$J304),\"Uncertain\")","v":{"$error":"#VALUE!"}},"j9",16]
[null,"Wood Street",3,{"$error":"#VALUE!"},{"$error":"#VALUE!"},{"$error":"#VALUE!"},{"$error":"#VALUE!"},{"$error":"#VALUE!"},{"$error":"#VALUE!"},"j10",16]
[null,"Wood Street",4,{"$error":"#VALUE!"},{"$error":"#VALUE!"},{"$error":"#VALUE!"},{"$error":"#VALUE!"},{"$error":"#VALUE!"},{"$error":"#VALUE!"},"j11",16]
[null,"Wood Street",5,{"$error":"#VALUE!"},{"$error":"#VALUE!"},{"$error":"#VALUE!"},{"$error":"#VALUE!"},{"$error":"#VALUE!"},{"$error":"#VALUE!"},"j12",16]
[null,"Wood Street",6,{"$error":"#VALUE!"},{"$error":"#VALUE!"},{"$error":"#VALUE!"},{"$error":"#VALUE!"},{"$error":"#VALUE!"},{"$error":"#VALUE!"},"j13",16]
[null,"Wood Street",7,{"$error":"#VALUE!"},{"$error":"#VALUE!"},{"$error":"#VALUE!"},{"$error":"#VALUE!"},{"$error":"#VALUE!"},{"$error":"#VALUE!"},"j14",16]
[null,"Wood Street",8,{"$error":"#VALUE!"},{"$error":"#VALUE!"},{"$error":"#VALUE!"},{"$error":"#VALUE!"},{"$error":"#VALUE!"},{"$error":"#VALUE!"},"j15",16]
[null,"Wood Street",9,{"$error":"#VALUE!"},{"$error":"#VALUE!"},{"$error":"#VALUE!"},{"$error":"#VALUE!"},{"$error":"#VALUE!"},{"$error":"#VALUE!"},"j16",16]
[null,"Wood Street",10,{"$error":"#VALUE!"},{"$error":"#VALUE!"},{"$error":"#VALUE!"},{"$error":"#VALUE!"},{"$error":"#VALUE!"},{"$error":"#VALUE!"},"j17",16]
[null,"Wood Street",11,{"$error":"#VALUE!"},{"$error":"#VALUE!"},{"$error":"#VALUE!"},{"$error":"#VALUE!"},{"$error":"#VALUE!"},{"$error":"#VALUE!"},"j18",16]
[null,"Wood Street",12,{"$error":"#VALUE!"},{"$error":"#VALUE!"},{"$error":"#VALUE!"},{"$error":"#VALUE!"},{"$error":"#VALUE!"},{"$error":"#VALUE!"},"j19",16]
[null,"Wood Street",13,{"$error":"#VALUE!"},{"$error":"#VALUE!"},{"$error":"#VALUE!"},{"$error":"#VALUE!"},{"$error":"#VALUE!"},{"$error":"#VALUE!"},"j20",16]
[null,"Wood Street",14,{"$error":"#VALUE!"},{"$error":"#VALUE!"},{"$error":"#VALUE!"},{"$error":"#VALUE!"},{"$error":"#VALUE!"},{"$error":"#VALUE!"},"j21",16]
[null,"Wood Street",15,{"$error":"#VALUE!"},{"$error":"#VALUE!"},{"$error":"#VALUE!"},{"$error":"#VALUE!"},{"$error":"#VALUE!"},{"$error":"#VALUE!"},"j22",16]
[null,"Wood Street",16,{"$error":"#VALUE!"},{"$error":"#VALUE!"},{"$error":"#VALUE!"},{"$error":"#VALUE!"},{"$error":"#VALUE!"},{"$error":"#VALUE!"},"j23",16]
[null,"Wood Street",17,{"$error":"#VALUE!"},{"$error":"#VALUE!"},{"$error":"#VALUE!"},{"$error":"#VALUE!"},{"$error":"#VALUE!"},{"$error":"#VALUE!"},"j24",16]
[null,"Wood Street",18,{"$error":"#VALUE!"},{"$error":"#VALUE!"},{"$error":"#VALUE!"},{"$error":"#VALUE!"},{"$error":"#VALUE!"},{"$error":"#VALUE!"},"j25",16]
[null,"Wood Street",19,{"$error":"#VALUE!"},{"$error":"#VALUE!"},{"$error":"#VALUE!"},{"$error":"#VALUE!"},{"$error":"#VALUE!"},{"$error":"#VALUE!"},"j26",16]
[null,"Wood Street",20,{"$error":"#VALUE!"},{"$error":"#VALUE!"},{"$error":"#VALUE!"},{"$error":"#VALUE!"},{"$error":"#VALUE!"},{"$error":"#VALUE!"},"j27",16]
[null,"Blackhorse Lane Growth Area",1,{"$f":"COUNTIF(INDIRECT(\"'\"&$B323&\"'!\"&$J323),\"Significant Positive\")","v":{"$error":"#VALUE!"}},{"$f":"COUNTIF(INDIRECT(\"'\"&$B323&\"'!\"&$J323),\"Significant Negative\")","v":{"$error":"#VALUE!"}},{"$f":"COUNTIF(INDIRECT(\"'\"&$B323&\"'!\"&$J323),\"Minor Positive\")","v":{"$error":"#VALUE!"}},{"$f":"COUNTIF(INDIRECT(\"'\"&$B323&\"'!\"&$J323),\"Minor Negative\")","v":{"$error":"#VALUE!"}},{"$f":"COUNTIF(INDIRECT(\"'\"&$B323&\"'!\"&$J323),\"Neutral\")","v":{"$error":"#VALUE!"}},{"$f":"COUNTIF(INDIRECT(\"'\"&$B323&\"'!\"&$J323),\"Uncertain\")","v":{"$error":"#VALUE!"}},"j6",17]
[null,"Blackhorse Lane Growth Area",2,{"$f":"COUNTIF(INDIRECT(\"'\"&$B324&\"'!\"&$J324),\"Significant Positive\")","v":{"$error":"#VALUE!"}},{"$f":"COUNTIF(INDIRECT(\"'\"&$B324&\"'!\"&$J324),\"Significant Negative\")","v":{"$error":"#VALUE!"}},{"$f":"COUNTIF(INDIRECT(\"'\"&$B324&\"'!\"&$J324),\"Minor Positive\")","v":{"$error":"#VALUE!"}},{"$f":"COUNTIF(INDIRECT(\"'\"&$B324&\"'!\"&$J324),\"Minor Negative\")","v":{"$error":"#VALUE!"}},{"$f":"COUNTIF(INDIRECT(\"'\"&$B324&\"'!\"&$J324),\"Neutral\")","v":{"$error":"#VALUE!"}},{"$f":"COUNTIF(INDIRECT(\"'\"&$B324&\"'!\"&$J324),\"Uncertain\")","v":{"$error":"#VALUE!"}},"j7",17]
[null,"Blackhorse Lane Growth Area",3,{"$error":"#VALUE!"},{"$error":"#VALUE!"},{"$error":"#VALUE!"},{"$error":"#VALUE!"},{"$error":"#VALUE!"},{"$error":"#VALUE!"},"j8",17]
[null,"Blackhorse Lane Growth Area",4,{"$error":"#VALUE!"},{"$error":"#VALUE!"},{"$error":"#VALUE!"},{"$error":"#VALUE!"},{"$error":"#VALUE!"},{"$error":"#VALUE!"},"j9",17]
[null,"Blackhorse Lane Growth Area",5,{"$error":"#VALUE!"},{"$error":"#VALUE!"},{"$error":"#VALUE!"},{"$error":"#VALUE!"},{"$error":"#VALUE!"},{"$error":"#VALUE!"},"j10",17]
[null,"Blackhorse Lane Growth Area",6,{"$error":"#VALUE!"},{"$error":"#VALUE!"},{"$error":"#VALUE!"},{"$error":"#VALUE!"},{"$error":"#VALUE!"},{"$error":"#VALUE!"},"j11",17]
[null,"Blackhorse Lane Growth Area",7,{"$error":"#VALUE!"},{"$error":"#VALUE!"},{"$error":"#VALUE!"},{"$error":"#VALUE!"},{"$error":"#VALUE!"},{"$error":"#VALUE!"},"j12",17]
[null,"Blackhorse Lane Growth Area",8,{"$error":"#VALUE!"},{"$error":"#VALUE!"},{"$error":"#VALUE!"},{"$error":"#VALUE!"},{"$error":"#VALUE!"},{"$error":"#VALUE!"},"j13",17]
[null,"Blackhorse Lane Growth Area",9,{"$error":"#VALUE!"},{"$error":"#VALUE!"},{"$error":"#VALUE!"},{"$error":"#VALUE!"},{"$error":"#VALUE!"},{"$error":"#VALUE!"},"j14",17]
[null,"Blackhorse Lane Growth Area",10,{"$error":"#VALUE!"},{"$error":"#VALUE!"},{"$error":"#VALUE!"},{"$error":"#VALUE!"},{"$error":"#VALUE!"},{"$error":"#VALUE!"},"j15",17]
[null,"Blackhorse Lane Growth Area",11,{"$error":"#VALUE!"},{"$error":"#VALUE!"},{"$error":"#VALUE!"},{"$error":"#VALUE!"},{"$error":"#VALUE!"},{"$error":"#VALUE!"},"j16",17]
[null,"Blackhorse Lane Growth Area",12,{"$error":"#VALUE!"},{"$error":"#VALUE!"},{"$error":"#VALUE!"},{"$error":"#VALUE!"},{"$error":"#VALUE!"},{"$error":"#VALUE!"},"j17",17]
[null,"Blackhorse Lane Growth Area",13,{"$error":"#VALUE!"},{"$error":"#VALUE!"},{"$error":"#VALUE!"},{"$error":"#VALUE!"},{"$error":"#VALUE!"},{"$error":"#VALUE!"},"j18",17]
[null,"Blackhorse Lane Growth Area",14,{"$error":"#VALUE!"},{"$error":"#VALUE!"},{"$error":"#VALUE!"},{"$error":"#VALUE!"},{"$error":"#VALUE!"},{"$error":"#VALUE!"},"j19",17]
[null,"Blackhorse Lane Growth Area",15,{"$error":"#VALUE!"},{"$error":"#VALUE!"},{"$error":"#VALUE!"},{"$error":"#VALUE!"},{"$error":"#VALUE!"},{"$error":"#VALUE!"},"j20",17]
[null,"Blackhorse Lane Growth Area",16,{"$error":"#VALUE!"},{"$error":"#VALUE!"},{"$error":"#VALUE!"},{"$error":"#VALUE!"},{"$error":"#VALUE!"},{"$error":"#VALUE!"},"j21",17]
[null,"Blackhorse Lane Growth Area",17,{"$error":"#VALUE!"},{"$error":"#VALUE!"},{"$error":"#VALUE!"},{"$error":"#VALUE!"},{"$error":"#VALUE!"},{"$error":"#VALUE!"},"j22",17]
[null,"Blackhorse Lane Growth Area",18,{"$error":"#VALUE!"},{"$error":"#VALUE!"},{"$error":"#VALUE!"},{"$error":"#VALUE!"},{"$error":"#VALUE!"},{"$error":"#VALUE!"},"j23",17]
[null,"Blackhorse Lane Growth Area",19,{"$error":"#VALUE!"},{"$error":"#VALUE!"},{"$error":"#VALUE!"},{"$error":"#VALUE!"},{"$error":"#VALUE!"},{"$error":"#VALUE!"},"j24",17]
[null,"Blackhorse Lane Growth Area",20,{"$error":"#VALUE!"},{"$error":"#VALUE!"},{"$error":"#VALUE!"},{"$error":"#VALUE!"},{"$error":"#VALUE!"},{"$error":"#VALUE!"},"j25",17]
[null,"Walthamstow TC Growth Area",1,{"$f":"COUNTIF(INDIRECT(\"'\"&$B343&\"'!\"&$J343),\"Significant Positive\")","v":{"$error":"#VALUE!"}},{"$f":"COUNTIF(INDIRECT(\"'\"&$B343&\"'!\"&$J343),\"Significant Negative\")","v":{"$error":"#VALUE!"}},{"$f":"COUNTIF(INDIRECT(\"'\"&$B343&\"'!\"&$J343),\"Minor Positive\")","v":{"$error":"#VALUE!"}},{"$f":"COUNTIF(INDIRECT(\"'\"&$B343&\"'!\"&$J343),\"Minor Negative\")","v":{"$error":"#VALUE!"}},{"$f":"COUNTIF(INDIRECT(\"'\"&$B343&\"'!\"&$J343),\"Neutral\")","v":{"$error":"#VALUE!"}},{"$f":"COUNTIF(INDIRECT(\"'\"&$B343&\"'!\"&$J343),\"Uncertain\")","v":{"$error":"#VALUE!"}},"j6",18]
[null,"Walthamstow TC Growth Area",2,{"$f":"COUNTIF(INDIRECT(\"'\"&$B344&\"'!\"&$J344),\"Significant Positive\")","v":{"$error":"#VALUE!"}},{"$f":"COUNTIF(INDIRECT(\"'\"&$B344&\"'!\"&$J344),\"Significant Negative\")","v":{"$error":"#VALUE!"}},{"$f":"COUNTIF(INDIRECT(\"'\"&$B344&\"'!\"&$J344),\"Minor Positive\")","v":{"$error":"#VALUE!"}},{"$f":"COUNTIF(INDIRECT(\"'\"&$B344&\"'!\"&$J344),\"Minor Negative\")","v":{"$error":"#VALUE!"}},{"$f":"COUNTIF(INDIRECT(\"'\"&$B344&\"'!\"&$J344),\"Neutral\")","v":{"$error":"#VALUE!"}},{"$f":"COUNTIF(INDIRECT(\"'\"&$B344&\"'!\"&$J344),\"Uncertain\")","v":{"$error":"#VALUE!"}},"j7",18]
[null,"Walthamstow TC Growth Area",3,{"$error":"#VALUE!"},{"$error":"#VALUE!"},{"$error":"#VALUE!"},{"$error":"#VALUE!"},{"$error":"#VALUE!"},{"$error":"#VALUE!"},"j8",18]
[null,"Walthamstow TC Growth Area",4,{"$error":"#VALUE!"},{"$error":"#VALUE!"},{"$error":"#VALUE!"},{"$error":"#VALUE!"},{"$error":"#VALUE!"},{"$error":"#VALUE!"},"j9",18]
[null,"Walthamstow TC Growth Area",5,{"$error":"#VALUE!"},{"$error":"#VALUE!"},{"$error":"#VALUE!"},{"$error":"#VALUE!"},{"$error":"#VALUE!"},{"$error":"#VALUE!"},"j10",18]
[null,"Walthamstow TC Growth Area",6,{"$error":"#VALUE!"},{"$error":"#VALUE!"},{"$error":"#VALUE!"},{"$error":"#VALUE!"},{"$error":"#VALUE!"},{"$error":"#VALUE!"},"j11",18]
[null,"Walthamstow TC Growth Area",7,{"$error":"#VALUE!"},{"$error":"#VALUE!"},{"$error":"#VALUE!"},{"$error":"#VALUE!"},{"$error":"#VALUE!"},{"$error":"#VALUE!"},"j12",18]
[null,"Walthamstow TC Growth Area",8,{"$error":"#VALUE!"},{"$error":"#VALUE!"},{"$error":"#VALUE!"},{"$error":"#VALUE!"},{"$error":"#VALUE!"},{"$error":"#VALUE!"},"j13",18]
[null,"Walthamstow TC Growth Area",9,{"$error":"#VALUE!"},{"$error":"#VALUE!"},{"$error":"#VALUE!"},{"$error":"#VALUE!"},{"$error":"#VALUE!"},{"$error":"#VALUE!"},"j14",18]
[null,"Walthamstow TC Growth Area",10,{"$error":"#VALUE!"},{"$error":"#VALUE!"},{"$error":"#VALUE!"},{"$error":"#VALUE!"},{"$error":"#VALUE!"},{"$error":"#VALUE!"},"j15",18]
[null,"Walthamstow TC Growth Area",11,{"$error":"#VALUE!"},{"$error":"#VALUE!"},{"$error":"#VALUE!"},{"$error":"#VALUE!"},{"$error":"#VALUE!"},{"$error":"#VALUE!"},"j16",18]
[null,"Walthamstow TC Growth Area",12,{"$error":"#VALUE!"},{"$error":"#VALUE!"},{"$error":"#VALUE!"},{"$error":"#VALUE!"},{"$error":"#VALUE!"},{"$error":"#VALUE!"},"j17",18]
[null,"Walthamstow TC Growth Area",13,{"$error":"#VALUE!"},{"$error":"#VALUE!"},{"$error":"#VALUE!"},{"$error":"#VALUE!"},{"$error":"#VALUE!"},{"$error":"#VALUE!"},"j18",18]
[null,"Walthamstow TC Growth Area",14,{"$error":"#VALUE!"},{"$error":"#VALUE!"},{"$error":"#VALUE!"},{"$error":"#VALUE!"},{"$error":"#VALUE!"},{"$error":"#VALUE!"},"j19",18]
[null,"Walthamstow TC Growth Area",15,{"$error":"#VALUE!"},{"$error":"#VALUE!"},{"$error":"#VALUE!"},{"$error":"#VALUE!"},{"$error":"#VALUE!"},{"$error":"#VALUE!"},"j20",18]
[null,"Walthamstow TC Growth Area",16,{"$error":"#VALUE!"},{"$error":"#VALUE!"},{"$error":"#VALUE!"},{"$error":"#VALUE!"},{"$error":"#VALUE!"},{"$error":"#VALUE!"},"j21",18]
[null,"Walthamstow TC Growth Area",17,{"$error":"#VALUE!"},{"$error":"#VALUE!"},{"$error":"#VALUE!"},{"$error":"#VALUE!"},{"$error":"#VALUE!"},{"$error":"#VALUE!"},"j22",18]
[null,"Walthamstow TC Growth Area",18,{"$error":"#VALUE!"},{"$error":"#VALUE!"},{"$error":"#VALUE!"},{"$error":"#VALUE!"},{"$error":"#VALUE!"},{"$error":"#VALUE!"},"j23",18]
[null,"Walthamstow TC Growth Area",19,{"$error":"#VALUE!"},{"$error":"#VALUE!"},{"$error":"#VALUE!"},{"$error":"#VALUE!"},{"$error":"#VALUE!"},{"$error":"#VALUE!"},"j24",18]
[null,"Walthamstow TC Growth Area",20,{"$error":"#VALUE!"},{"$error":"#VALUE!"},{"$error":"#VALUE!"},{"$error":"#VALUE!"},{"$error":"#VALUE!"},{"$error":"#VALUE!"},"j25",18]
[null,"Wood Street Growth Area",1,{"$f":"COUNTIF(INDIRECT(\"'\"&$B363&\"'!\"&$J363),\"Significant Positive\")","v":{"$error":"#VALUE!"}},{"$f":"COUNTIF(INDIRECT(\"'\"&$B363&\"'!\"&$J363),\"Significant Negative\")","v":{"$error":"#VALUE!"}},{"$f":"COUNTIF(INDIRECT(\"'\"&$B363&\"'!\"&$J363),\"Minor Positive\")","v":{"$error":"#VALUE!"}},{"$f":"COUNTIF(INDIRECT(\"'\"&$B363&\"'!\"&$J363),\"Minor Negative\")","v":{"$error":"#VALUE!"}},{"$f":"COUNTIF(INDIRECT(\"'\"&$B363&\"'!\"&$J363),\"Neutral\")","v":{"$error":"#VALUE!"}},{"$f":"COUNTIF(INDIRECT(\"'\"&$B363&\"'!\"&$J363),\"Uncertain\")","v":{"$error":"#VALUE!"}},"j6",19]
[null,"Wood Street Growth Area",2,{"$f":"COUNTIF(INDIRECT(\"'\"&$B364&\"'!\"&$J364),\"Significant Positive\")","v":{"$error":"#VALUE!"}},{"$f":"COUNTIF(INDIRECT(\"'\"&$B364&\"'!\"&$J364),\"Significant Negative\")","v":{"$error":"#VALUE!"}},{"$f":"COUNTIF(INDIRECT(\"'\"&$B364&\"'!\"&$J364),\"Minor Positive\")","v":{"$error":"#VALUE!"}},{"$f":"COUNTIF(INDIRECT(\"'\"&$B364&\"'!\"&$J364),\"Minor Negative\")","v":{"$error":"#VALUE!"}},{"$f":"COUNTIF(INDIRECT(\"'\"&$B364&\"'!\"&$J364),\"Neutral\")","v":{"$error":"#VALUE!"}},{"$f":"COUNTIF(INDIRECT(\"'\"&$B364&\"'!\"&$J364),\"Uncertain\")","v":{"$error":"#VALUE!"}},"j7",19]
[null,"Wood Street Growth Area",3,{"$error":"#VALUE!"},{"$error":"#VALUE!"},{"$error":"#VALUE!"},{"$error":"#VALUE!"},{"$error":"#VALUE!"},{"$error":"#VALUE!"},"j8",19]
[null,"Wood Street Growth Area",4,{"$error":"#VALUE!"},{"$error":"#VALUE!"},{"$error":"#VALUE!"},{"$error":"#VALUE!"},{"$error":"#VALUE!"},{"$error":"#VALUE!"},"j9",19]
[null,"Wood Street Growth Area",5,{"$error":"#VALUE!"},{"$error":"#VALUE!"},{"$error":"#VALUE!"},{"$error":"#VALUE!"},{"$error":"#VALUE!"},{"$error":"#VALUE!"},"j10",19]
[null,"Wood Street Growth Area",6,{"$error":"#VALUE!"},{"$error":"#VALUE!"},{"$error":"#VALUE!"},{"$error":"#VALUE!"},{"$error":"#VALUE!"},{"$error":"#VALUE!"},"j11",19]
[null,"Wood Street Growth Area",7,{"$error":"#VALUE!"},{"$error":"#VALUE!"},{"$error":"#VALUE!"},{"$error":"#VALUE!"},{"$error":"#VALUE!"},{"$error":"#VALUE!"},"j12",19]
[null,"Wood Street Growth Area",8,{"$error":"#VALUE!"},{"$error":"#VALUE!"},{"$error":"#VALUE!"},{"$error":"#VALUE!"},{"$error":"#VALUE!"},{"$error":"#VALUE!"},"j13",19]
[null,"Wood Street Growth Area",9,{"$error":"#VALUE!"},{"$error":"#VALUE!"},{"$error":"#VALUE!"},{"$error":"#VALUE!"},{"$error":"#VALUE!"},{"$error":"#VALUE!"},"j14",19]
[null,"Wood Street Growth Area",10,{"$error":"#VALUE!"},{"$error":"#VALUE!"},{"$error":"#VALUE!"},{"$error":"#VALUE!"},{"$error":"#VALUE!"},{"$error":"#VALUE!"},"j15",19]
[null,"Wood Street Growth Area",11,{"$error":"#VALUE!"},{"$error":"#VALUE!"},{"$error":"#VALUE!"},{"$error":"#VALUE!"},{"$error":"#VALUE!"},{"$error":"#VALUE!"},"j16",19]
[null,"Wood Street Growth Area",12,{"$error":"#VALUE!"},{"$error":"#VALUE!"},{"$error":"#VALUE!"},{"$error":"#VALUE!"},{"$error":"#VALUE!"},{"$error":"#VALUE!"},"j17",19]
[null,"Wood Street Growth Area",13,{"$error":"#VALUE!"},{"$error":"#VALUE!"},{"$error":"#VALUE!"},{"$error":"#VALUE!"},{"$error":"#VALUE!"},{"$error":"#VALUE!"},"j18",19]
[null,"Wood Street Growth Area",14,{"$error":"#VALUE!"},{"$error":"#VALUE!"},{"$error":"#VALUE!"},{"$error":"#VALUE!"},{"$error":"#VALUE!"},{"$error":"#VALUE!"},"j19",19]
[null,"Wood Street Growth Area",15,{"$error":"#VALUE!"},{"$error":"#VALUE!"},{"$error":"#VALUE!"},{"$error":"#VALUE!"},{"$error":"#VALUE!"},{"$error":"#VALUE!"},"j20",19]
[null,"Wood Street Growth Area",16,{"$error":"#VALUE!"},{"$error":"#VALUE!"},{"$error":"#VALUE!"},{"$error":"#VALUE!"},{"$error":"#VALUE!"},{"$error":"#VALUE!"},"j21",19]
[null,"Wood Street Growth Area",17,{"$error":"#VALUE!"},{"$error":"#VALUE!"},{"$error":"#VALUE!"},{"$error":"#VALUE!"},{"$error":"#VALUE!"},{"$error":"#VALUE!"},"j22",19]
[null,"Wood Street Growth Area",18,{"$error":"#VALUE!"},{"$error":"#VALUE!"},{"$error":"#VALUE!"},{"$error":"#VALUE!"},{"$error":"#VALUE!"},{"$error":"#VALUE!"},"j23",19]
[null,"Wood Street Growth Area",19,{"$error":"#VALUE!"},{"$error":"#VALUE!"},{"$error":"#VALUE!"},{"$error":"#VALUE!"},{"$error":"#VALUE!"},{"$error":"#VALUE!"},"j24",19]
[null,"Wood Street Growth Area",20,{"$error":"#VALUE!"},{"$error":"#VALUE!"},{"$error":"#VALUE!"},{"$error":"#VALUE!"},{"$error":"#VALUE!"},{"$error":"#VALUE!"},"j25",19]
[null,"Northern Olympic Fringe ",1,{"$f":"COUNTIF(INDIRECT(\"'\"&$B383&\"'!\"&$J383),\"Significant Positive\")","v":{"$error":"#VALUE!"}},{"$f":"COUNTIF(INDIRECT(\"'\"&$B383&\"'!\"&$J383),\"Significant Negative\")","v":{"$error":"#VALUE!"}},{"$f":"COUNTIF(INDIRECT(\"'\"&$B383&\"'!\"&$J383),\"Minor Positive\")","v":{"$error":"#VALUE!"}},{"$f":"COUNTIF(INDIRECT(\"'\"&$B383&\"'!\"&$J383),\"Minor Negative\")","v":{"$error":"#VALUE!"}},{"$f":"COUNTIF(INDIRECT(\"'\"&$B383&\"'!\"&$J383),\"Neutral\")","v":{"$error":"#VALUE!"}},{"$f":"COUNTIF(INDIRECT(\"'\"&$B383&\"'!\"&$J383),\"Uncertain\")","v":{"$error":"#VALUE!"}},"j6",20]
[null,"Northern Olympic Fringe ",2,{"$f":"COUNTIF(INDIRECT(\"'\"&$B384&\"'!\"&$J384),\"Significant Positive\")","v":{"$error":"#VALUE!"}},{"$f":"COUNTIF(INDIRECT(\"'\"&$B384&\"'!\"&$J384),\"Significant Negative\")","v":{"$error":"#VALUE!"}},{"$f":"COUNTIF(INDIRECT(\"'\"&$B384&\"'!\"&$J384),\"Minor Positive\")","v":{"$error":"#VALUE!"}},{"$f":"COUNTIF(INDIRECT(\"'\"&$B384&\"'!\"&$J384),\"Minor Negative\")","v":{"$error":"#VALUE!"}},{"$f":"COUNTIF(INDIRECT(\"'\"&$B384&\"'!\"&$J384),\"Neutral\")","v":{"$error":"#VALUE!"}},{"$f":"COUNTIF(INDIRECT(\"'\"&$B384&\"'!\"&$J384),\"Uncertain\")","v":{"$error":"#VALUE!"}},"j7",20]
[null,"Northern Olympic Fringe ",3,{"$error":"#VALUE!"},{"$error":"#VALUE!"},{"$error":"#VALUE!"},{"$error":"#VALUE!"},{"$error":"#VALUE!"},{"$error":"#VALUE!"},"j8",20]
[null,"Northern Olympic Fringe ",4,{"$error":"#VALUE!"},{"$error":"#VALUE!"},{"$error":"#VALUE!"},{"$error":"#VALUE!"},{"$error":"#VALUE!"},{"$error":"#VALUE!"},"j9",20]
[null,"Northern Olympic Fringe ",5,{"$error":"#VALUE!"},{"$error":"#VALUE!"},{"$error":"#VALUE!"},{"$error":"#VALUE!"},{"$error":"#VALUE!"},{"$error":"#VALUE!"},"j10",20]
[null,"Northern Olympic Fringe ",6,{"$error":"#VALUE!"},{"$error":"#VALUE!"},{"$error":"#VALUE!"},{"$error":"#VALUE!"},{"$error":"#VALUE!"},{"$error":"#VALUE!"},"j11",20]
[null,"Northern Olympic Fringe ",7,{"$error":"#VALUE!"},{"$error":"#VALUE!"},{"$error":"#VALUE!"},{"$error":"#VALUE!"},{"$error":"#VALUE!"},{"$error":"#VALUE!"},"j12",20]
[null,"Northern Olympic Fringe ",8,{"$error":"#VALUE!"},{"$error":"#VALUE!"},{"$error":"#VALUE!"},{"$error":"#VALUE!"},{"$error":"#VALUE!"},{"$error":"#VALUE!"},"j13",20]
[null,"Northern Olympic Fringe ",9,{"$error":"#VALUE!"},{"$error":"#VALUE!"},{"$error":"#VALUE!"},{"$error":"#VALUE!"},{"$error":"#VALUE!"},{"$error":"#VALUE!"},"j14",20]
[null,"Northern Olympic Fringe ",10,{"$error":"#VALUE!"},{"$error":"#VALUE!"},{"$error":"#VALUE!"},{"$error":"#VALUE!"},{"$error":"#VALUE!"},{"$error":"#VALUE!"},"j15",20]
[null,"Northern Olympic Fringe ",11,{"$error":"#VALUE!"},{"$error":"#VALUE!"},{"$error":"#VALUE!"},{"$error":"#VALUE!"},{"$error":"#VALUE!"},{"$error":"#VALUE!"},"j16",20]
[null,"Northern Olympic Fringe ",12,{"$error":"#VALUE!"},{"$error":"#VALUE!"},{"$error":"#VALUE!"},{"$error":"#VALUE!"},{"$error":"#VALUE!"},{"$error":"#VALUE!"},"j17",20]
[null,"Northern Olympic Fringe ",13,{"$error":"#VALUE!"},{"$error":"#VALUE!"},{"$error":"#VALUE!"},{"$error":"#VALUE!"},{"$error":"#VALUE!"},{"$error":"#VALUE!"},"j18",20]
[null,"Northern Olympic Fringe ",14,{"$error":"#VALUE!"},{"$error":"#VALUE!"},{"$error":"#VALUE!"},{"$error":"#VALUE!"},{"$error":"#VALUE!"},{"$error":"#VALUE!"},"j19",20]
[null,"Northern Olympic Fringe ",15,{"$error":"#VALUE!"},{"$error":"#VALUE!"},{"$error":"#VALUE!"},{"$error":"#VALUE!"},{"$error":"#VALUE!"},{"$error":"#VALUE!"},"j20",20]
[null,"Northern Olympic Fringe ",16,{"$error":"#VALUE!"},{"$error":"#VALUE!"},{"$error":"#VALUE!"},{"$error":"#VALUE!"},{"$error":"#VALUE!"},{"$error":"#VALUE!"},"j21",20]
[null,"Northern Olympic Fringe ",17,{"$error":"#VALUE!"},{"$error":"#VALUE!"},{"$error":"#VALUE!"},{"$error":"#VALUE!"},{"$error":"#VALUE!"},{"$error":"#VALUE!"},"j22",20]
[null,"Northern Olympic Fringe ",18,{"$error":"#VALUE!"},{"$error":"#VALUE!"},{"$error":"#VALUE!"},{"$error":"#VALUE!"},{"$error":"#VALUE!"},{"$error":"#VALUE!"},"j23",20]
[null,"Northern Olympic Fringe ",19,{"$error":"#VALUE!"},{"$error":"#VALUE!"},{"$error":"#VALUE!"},{"$error":"#VALUE!"},{"$error":"#VALUE!"},{"$error":"#VALUE!"},"j24",20]
[null,"Northern Olympic Fringe ",20,{"$error":"#VALUE!"},{"$error":"#VALUE!"},{"$error":"#VALUE!"},{"$error":"#VALUE!"},{"$error":"#VALUE!"},{"$error":"#VALUE!"},"j25",20]
[null,"Walthamstow Major Centre",1,{"$f":"COUNTIF(INDIRECT(\"'\"&$B403&\"'!\"&$J403),\"Significant Positive\")","v":{"$error":"#VALUE!"}},{"$f":"COUNTIF(INDIRECT(\"'\"&$B403&\"'!\"&$J403),\"Significant Negative\")","v":{"$error":"#VALUE!"}},{"$f":"COUNTIF(INDIRECT(\"'\"&$B403&\"'!\"&$J403),\"Minor Positive\")","v":{"$error":"#VALUE!"}},{"$f":"COUNTIF(INDIRECT(\"'\"&$B403&\"'!\"&$J403),\"Minor Negative\")","v":{"$error":"#VALUE!"}},{"$f":"COUNTIF(INDIRECT(\"'\"&$B403&\"'!\"&$J403),\"Neutral\")","v":{"$error":"#VALUE!"}},{"$f":"COUNTIF(INDIRECT(\"'\"&$B403&\"'!\"&$J403),\"Uncertain\")","v":{"$error":"#VALUE!"}},"j5",21]
[null,"Walthamstow Major Centre",2,{"$f":"COUNTIF(INDIRECT(\"'\"&$B404&\"'!\"&$J404),\"Significant Positive\")","v":{"$error":"#VALUE!"}},{"$f":"COUNTIF(INDIRECT(\"'\"&$B404&\"'!\"&$J404),\"Significant Negative\")","v":{"$error":"#VALUE!"}},{"$f":"COUNTIF(INDIRECT(\"'\"&$B404&\"'!\"&$J404),\"Minor Positive\")","v":{"$error":"#VALUE!"}},{"$f":"COUNTIF(INDIRECT(\"'\"&$B404&\"'!\"&$J404),\"Minor Negative\")","v":{"$error":"#VALUE!"}},{"$f":"COUNTIF(INDIRECT(\"'\"&$B404&\"'!\"&$J404),\"Neutral\")","v":{"$error":"#VALUE!"}},{"$f":"COUNTIF(INDIRECT(\"'\"&$B404&\"'!\"&$J404),\"Uncertain\")","v":{"$error":"#VALUE!"}},"j6",21]
[null,"Walthamstow Major Centre",3,{"$error":"#VALUE!"},{"$error":"#VALUE!"},{"$error":"#VALUE!"},{"$error":"#VALUE!"},{"$error":"#VALUE!"},{"$error":"#VALUE!"},"j7",21]
[null,"Walthamstow Major Centre",4,{"$error":"#VALUE!"},{"$error":"#VALUE!"},{"$error":"#VALUE!"},{"$error":"#VALUE!"},{"$error":"#VALUE!"},{"$error":"#VALUE!"},"j8",21]
[null,"Walthamstow Major Centre",5,{"$error":"#VALUE!"},{"$error":"#VALUE!"},{"$error":"#VALUE!"},{"$error":"#VALUE!"},{"$error":"#VALUE!"},{"$error":"#VALUE!"},"j9",21]
[null,"Walthamstow Major Centre",6,{"$error":"#VALUE!"},{"$error":"#VALUE!"},{"$error":"#VALUE!"},{"$error":"#VALUE!"},{"$error":"#VALUE!"},{"$error":"#VALUE!"},"j10",21]
[null,"Walthamstow Major Centre",7,{"$error":"#VALUE!"},{"$error":"#VALUE!"},{"$error":"#VALUE!"},{"$error":"#VALUE!"},{"$error":"#VALUE!"},{"$error":"#VALUE!"},"j11",21]
[null,"Walthamstow Major Centre",8,{"$error":"#VALUE!"},{"$error":"#VALUE!"},{"$error":"#VALUE!"},{"$error":"#VALUE!"},{"$error":"#VALUE!"},{"$error":"#VALUE!"},"j12",21]
[null,"Walthamstow Major Centre",9,{"$error":"#VALUE!"},{"$error":"#VALUE!"},{"$error":"#VALUE!"},{"$error":"#VALUE!"},{"$error":"#VALUE!"},{"$error":"#VALUE!"},"j13",21]
[null,"Walthamstow Major Centre",10,{"$error":"#VALUE!"},{"$error":"#VALUE!"},{"$error":"#VALUE!"},{"$error":"#VALUE!"},{"$error":"#VALUE!"},{"$error":"#VALUE!"},"j14",21]
[null,"Walthamstow Major Centre",11,{"$error":"#VALUE!"},{"$error":"#VALUE!"},{"$error":"#VALUE!"},{"$error":"#VALUE!"},{"$error":"#VALUE!"},{"$error":"#VALUE!"},"j15",21]
[null,"Walthamstow Major Centre",12,{"$error":"#VALUE!"},{"$error":"#VALUE!"},{"$error":"#VALUE!"},{"$error":"#VALUE!"},{"$error":"#VALUE!"},{"$error":"#VALUE!"},"j16",21]
[null,"Walthamstow Major Centre",13,{"$error":"#VALUE!"},{"$error":"#VALUE!"},{"$error":"#VALUE!"},{"$error":"#VALUE!"},{"$error":"#VALUE!"},{"$error":"#VALUE!"},"j17",21]
[null,"Walthamstow Major Centre",14,{"$f":"COUNTIF(INDIRECT(\"'\"&$B416&\"'!\"&$J416),\"Significant Positive\")","v":{"$error":"#VALUE!"}},{"$f":"COUNTIF(INDIRECT(\"'\"&$B416&\"'!\"&$J416),\"Significant Negative\")","v":{"$error":"#VALUE!"}},{"$f":"COUNTIF(INDIRECT(\"'\"&$B416&\"'!\"&$J416),\"Minor Positive\")","v":{"$error":"#VALUE!"}},{"$f":"COUNTIF(INDIRECT(\"'\"&$B416&\"'!\"&$J416),\"Minor Negative\")","v":{"$error":"#VALUE!"}},{"$f":"COUNTIF(INDIRECT(\"'\"&$B416&\"'!\"&$J416),\"Neutral\")","v":{"$error":"#VALUE!"}},{"$f":"COUNTIF(INDIRECT(\"'\"&$B416&\"'!\"&$J416),\"Uncertain\")","v":{"$error":"#VALUE!"}},"j18",21]
[null,"Walthamstow Major Centre",15,{"$error":"#VALUE!"},{"$error":"#VALUE!"},{"$error":"#VALUE!"},{"$error":"#VALUE!"},{"$error":"#VALUE!"},{"$error":"#VALUE!"},"j19",21]
[null,"Walthamstow Major Centre",16,{"$error":"#VALUE!"},{"$error":"#VALUE!"},{"$error":"#VALUE!"},{"$error":"#VALUE!"},{"$error":"#VALUE!"},{"$error":"#VALUE!"},"j20",21]
[null,"Walthamstow Major Centre",17,{"$error":"#VALUE!"},{"$error":"#VALUE!"},{"$error":"#VALUE!"},{"$error":"#VALUE!"},{"$error":"#VALUE!"},{"$error":"#VALUE!"},"j21",21]
[null,"Walthamstow Major Centre",18,{"$error":"#VALUE!"},{"$error":"#VALUE!"},{"$error":"#VALUE!"},{"$error":"#VALUE!"},{"$error":"#VALUE!"},{"$error":"#VALUE!"},"j22",21]
[null,"Walthamstow Major Centre",19,{"$error":"#VALUE!"},{"$error":"#VALUE!"},{"$error":"#VALUE!"},{"$error":"#VALUE!"},{"$error":"#VALUE!"},{"$error":"#VALUE!"},"j23",21]
[null,"Walthamstow Major Centre",20,{"$error":"#VALUE!"},{"$error":"#VALUE!"},{"$error":"#VALUE!"},{"$error":"#VALUE!"},{"$error":"#VALUE!"},{"$error":"#VALUE!"},"j24",21]
[null,"Chingford DC",1,{"$f":"COUNTIF(INDIRECT(\"'\"&$B423&\"'!\"&$J423),\"Significant Positive\")","v":{"$error":"#VALUE!"}},{"$f":"COUNTIF(INDIRECT(\"'\"&$B423&\"'!\"&$J423),\"Significant Negative\")","v":{"$error":"#VALUE!"}},{"$f":"COUNTIF(INDIRECT(\"'\"&$B423&\"'!\"&$J423),\"Minor Positive\")","v":{"$error":"#VALUE!"}},{"$f":"COUNTIF(INDIRECT(\"'\"&$B423&\"'!\"&$J423),\"Minor Negative\")","v":{"$error":"#VALUE!"}},{"$f":"COUNTIF(INDIRECT(\"'\"&$B423&\"'!\"&$J423),\"Neutral\")","v":{"$error":"#VALUE!"}},{"$f":"COUNTIF(INDIRECT(\"'\"&$B423&\"'!\"&$J423),\"Uncertain\")","v":{"$error":"#VALUE!"}},"j5",22]
[null,"Chingford DC",2,{"$f":"COUNTIF(INDIRECT(\"'\"&$B424&\"'!\"&$J424),\"Significant Positive\")","v":{"$error":"#VALUE!"}},{"$f":"COUNTIF(INDIRECT(\"'\"&$B424&\"'!\"&$J424),\"Significant Negative\")","v":{"$error":"#VALUE!"}},{"$f":"COUNTIF(INDIRECT(\"'\"&$B424&\"'!\"&$J424),\"Minor Positive\")","v":{"$error":"#VALUE!"}},{"$f":"COUNTIF(INDIRECT(\"'\"&$B424&\"'!\"&$J424),\"Minor Negative\")","v":{"$error":"#VALUE!"}},{"$f":"COUNTIF(INDIRECT(\"'\"&$B424&\"'!\"&$J424),\"Neutral\")","v":{"$error":"#VALUE!"}},{"$f":"COUNTIF(INDIRECT(\"'\"&$B424&\"'!\"&$J424),\"Uncertain\")","v":{"$error":"#VALUE!"}},"j6",22]
[null,"Chingford DC",3,{"$error":"#VALUE!"},{"$error":"#VALUE!"},{"$error":"#VALUE!"},{"$error":"#VALUE!"},{"$error":"#VALUE!"},{"$error":"#VALUE!"},"j7",22]
[null,"Chingford DC",4,{"$error":"#VALUE!"},{"$error":"#VALUE!"},{"$error":"#VALUE!"},{"$error":"#VALUE!"},{"$error":"#VALUE!"},{"$error":"#VALUE!"},"j8",22]
[null,"Chingford DC",5,{"$error":"#VALUE!"},{"$error":"#VALUE!"},{"$error":"#VALUE!"},{"$error":"#VALUE!"},{"$error":"#VALUE!"},{"$error":"#VALUE!"},"j9",22]
[null,"Chingford DC",6,{"$error":"#VALUE!"},{"$error":"#VALUE!"},{"$error":"#VALUE!"},{"$error":"#VALUE!"},{"$error":"#VALUE!"},{"$error":"#VALUE!"},"j10",22]
[null,"Chingford DC",7,{"$error":"#VALUE!"},{"$error":"#VALUE!"},{"$error":"#VALUE!"},{"$error":"#VALUE!"},{"$error":"#VALUE!"},{"$error":"#VALUE!"},"j11",22]
[null,"Chingford DC",8,{"$error":"#VALUE!"},{"$error":"#VALUE!"},{"$error":"#VALUE!"},{"$error":"#VALUE!"},{"$error":"#VALUE!"},{"$error":"#VALUE!"},"j12",22]
[null,"Chingford DC",9,{"$error":"#VALUE!"},{"$error":"#VALUE!"},{"$error":"#VALUE!"},{"$error":"#VALUE!"},{"$error":"#VALUE!"},{"$error":"#VALUE!"},"j13",22]
[null,"Chingford DC",10,{"$error":"#VALUE!"},{"$error":"#VALUE!"},{"$error":"#VALUE!"},{"$error":"#VALUE!"},{"$error":"#VALUE!"},{"$error":"#VALUE!"},"j14",22]
[null,"Chingford DC",11,{"$error":"#VALUE!"},{"$error":"#VALUE!"},{"$error":"#VALUE!"},{"$error":"#VALUE!"},{"$error":"#VALUE!"},{"$error":"#VALUE!"},"j15",22]
[null,"Chingford DC",12,{"$error":"#VALUE!"},{"$error":"#VALUE!"},{"$error":"#VALUE!"},{"$error":"#VALUE!"},{"$error":"#VALUE!"},{"$error":"#VALUE!"},"j16",22]
[null,"Chingford DC",13,{"$error":"#VALUE!"},{"$error":"#VALUE!"},{"$error":"#VALUE!"},{"$error":"#VALUE!"},{"$error":"#VALUE!"},{"$error":"#VALUE!"},"j17",22]
[null,"Chingford DC",14,{"$error":"#VALUE!"},{"$error":"#VALUE!"},{"$error":"#VALUE!"},{"$error":"#VALUE!"},{"$error":"#VALUE!"},{"$error":"#VALUE!"},"j18",22]
[null,"Chingford DC",15,{"$error":"#VALUE!"},{"$error":"#VALUE!"},{"$error":"#VALUE!"},{"$error":"#VALUE!"},{"$error":"#VALUE!"},{"$error":"#VALUE!"},"j19",22]
[null,"Chingford DC",16,{"$error":"#VALUE!"},{"$error":"#VALUE!"},{"$error":"#VALUE!"},{"$error":"#VALUE!"},{"$error":"#VALUE!"},{"$error":"#VALUE!"},"j20",22]
[null,"Chingford DC",17,{"$error":"#VALUE!"},{"$error":"#VALUE!"},{"$error":"#VALUE!"},{"$error":"#VALUE!"},{"$error":"#VALUE!"},{"$error":"#VALUE!"},"j21",22]
[null,"Chingford DC",18,{"$f":"COUNTIF(INDIRECT(\"'\"&$B440&\"'!\"&$J440),\"Significant Positive\")","v":{"$error":"#VALUE!"}},{"$f":"COUNTIF(INDIRECT(\"'\"&$B440&\"'!\"&$J440),\"Significant Negative\")","v":{"$error":"#VALUE!"}},{"$f":"COUNTIF(INDIRECT(\"'\"&$B440&\"'!\"&$J440),\"Minor Positive\")","v":{"$error":"#VALUE!"}},{"$f":"COUNTIF(INDIRECT(\"'\"&$B440&\"'!\"&$J440),\"Minor Negative\")","v":{"$error":"#VALUE!"}},{"$f":"COUNTIF(INDIRECT(\"'\"&$B440&\"'!\"&$J440),\"Neutral\")","v":{"$error":"#VALUE!"}},{"$f":"COUNTIF(INDIRECT(\"'\"&$B440&\"'!\"&$J440),\"Uncertain\")","v":{"$error":"#VALUE!"}},"j22",22]
[null,"Chingford DC",19,{"$error":"#VALUE!"},{"$error":"#VALUE!"},{"$error":"#VALUE!"},{"$error":"#VALUE!"},{"$error":"#VALUE!"},{"$error":"#VALUE!"},"j23",22]
[null,"Chingford DC",20,{"$error":"#VALUE!"},{"$error":"#VALUE!"},{"$error":"#VALUE!"},{"$error":"#VALUE!"},{"$error":"#VALUE!"},{"$error":"#VALUE!"},"j24",22]
[null,"Leyton DC",1,{"$error":"#VALUE!"},{"$error":"#VALUE!"},{"$error":"#VALUE!"},{"$error":"#VALUE!"},{"$error":"#VALUE!"},{"$error":"#VALUE!"},"j5",23]
[null,"Leyton DC",2,{"$f":"COUNTIF(INDIRECT(\"'\"&$B444&\"'!\"&$J444),\"Significant Positive\")","v":{"$error":"#VALUE!"}},{"$f":"COUNTIF(INDIRECT(\"'\"&$B444&\"'!\"&$J444),\"Significant Negative\")","v":{"$error":"#VALUE!"}},{"$f":"COUNTIF(INDIRECT(\"'\"&$B444&\"'!\"&$J444),\"Minor Positive\")","v":{"$error":"#VALUE!"}},{"$f":"COUNTIF(INDIRECT(\"'\"&$B444&\"'!\"&$J444),\"Minor Negative\")","v":{"$error":"#VALUE!"}},{"$f":"COUNTIF(INDIRECT(\"'\"&$B444&\"'!\"&$J444),\"Neutral\")","v":{"$error":"#VALUE!"}},{"$f":"COUNTIF(INDIRECT(\"'\"&$B444&\"'!\"&$J444),\"Uncertain\")","v":{"$error":"#VALUE!"}},"j6",23]
[null,"Leyton DC",3,{"$error":"#VALUE!"},{"$error":"#VALUE!"},{"$error":"#VALUE!"},{"$error":"#VALUE!"},{"$error":"#VALUE!"},{"$error":"#VALUE!"},"j7",23]
[null,"Leyton DC",4,{"$error":"#VALUE!"},{"$error":"#VALUE!"},{"$error":"#VALUE!"},{"$error":"#VALUE!"},{"$error":"#VALUE!"},{"$error":"#VALUE!"},"j8",23]
[null,"Leyton DC",5,{"$error":"#VALUE!"},{"$error":"#VALUE!"},{"$error":"#VALUE!"},{"$error":"#VALUE!"},{"$error":"#VALUE!"},{"$error":"#VALUE!"},"j9",23]
[null,"Leyton DC",6,{"$error":"#VALUE!"},{"$error":"#VALUE!"},{"$error":"#VALUE!"},{"$error":"#VALUE!"},{"$error":"#VALUE!"},{"$error":"#VALUE!"},"j10",23]
[null,"Leyton DC",7,{"$error":"#VALUE!"},{"$error":"#VALUE!"},{"$error":"#VALUE!"},{"$error":"#VALUE!"},{"$error":"#VALUE!"},{"$error":"#VALUE!"},"j11",23]
[null,"Leyton DC",8,{"$error":"#VALUE!"},{"$error":"#VALUE!"},{"$error":"#VALUE!"},{"$error":"#VALUE!"},{"$error":"#VALUE!"},{"$error":"#VALUE!"},"j12",23]
[null,"Leyton DC",9,{"$f":"COUNTIF(INDIRECT(\"'\"&$B451&\"'!\"&$J451),\"Significant Positive\")","v":{"$error":"#VALUE!"}},{"$f":"COUNTIF(INDIRECT(\"'\"&$B451&\"'!\"&$J451),\"Significant Negative\")","v":{"$error":"#VALUE!"}},{"$f":"COUNTIF(INDIRECT(\"'\"&$B451&\"'!\"&$J451),\"Minor Positive\")","v":{"$error":"#VALUE!"}},{"$f":"COUNTIF(INDIRECT(\"'\"&$B451&\"'!\"&$J451),\"Minor Negative\")","v":{"$error":"#VALUE!"}},{"$f":"COUNTIF(INDIRECT(\"'\"&$B451&\"'!\"&$J451),\"Neutral\")","v":{"$error":"#VALUE!"}},{"$f":"COUNTIF(INDIRECT(\"'\"&$B451&\"'!\"&$J451),\"Uncertain\")","v":{"$error":"#VALUE!"}},"j13",23]
[null,"Leyton DC",10,{"$error":"#VALUE!"},{"$error":"#VALUE!"},{"$error":"#VALUE!"},{"$error":"#VALUE!"},{"$error":"#VALUE!"},{"$error":"#VALUE!"},"j14",23]
[null,"Leyton DC",11,{"$error":"#VALUE!"},{"$error":"#VALUE!"},{"$error":"#VALUE!"},{"$error":"#VALUE!"},{"$error":"#VALUE!"},{"$error":"#VALUE!"},"j15",23]
[null,"Leyton DC",12,{"$error":"#VALUE!"},{"$error":"#VALUE!"},{"$error":"#VALUE!"},{"$error":"#VALUE!"},{"$error":"#VALUE!"},{"$error":"#VALUE!"},"j16",23]
[null,"Leyton DC",13,{"$error":"#VALUE!"},{"$error":"#VALUE!"},{"$error":"#VALUE!"},{"$error":"#VALUE!"},{"$error":"#VALUE!"},{"$error":"#VALUE!"},"j17",23]
[null,"Leyton DC",14,{"$error":"#VALUE!"},{"$error":"#VALUE!"},{"$error":"#VALUE!"},{"$error":"#VALUE!"},{"$error":"#VALUE!"},{"$error":"#VALUE!"},"j18",23]
[null,"Leyton DC",15,{"$error":"#VALUE!"},{"$error":"#VALUE!"},{"$error":"#VALUE!"},{"$error":"#VALUE!"},{"$error":"#VALUE!"},{"$error":"#VALUE!"},"j19",23]
[null,"Leyton DC",16,{"$error":"#VALUE!"},{"$error":"#VALUE!"},{"$error":"#VALUE!"},{"$error":"#VALUE!"},{"$error":"#VALUE!"},{"$error":"#VALUE!"},"j20",23]
[null,"Leyton DC",17,{"$error":"#VALUE!"},{"$error":"#VALUE!"},{"$error":"#VALUE!"},{"$error":"#VALUE!"},{"$error":"#VALUE!"},{"$error":"#VALUE!"},"j21",23]
[null,"Leyton DC",18,{"$f":"COUNTIF(INDIRECT(\"'\"&$B460&\"'!\"&$J460),\"Significant Positive\")","v":{"$error":"#VALUE!"}},{"$f":"COUNTIF(INDIRECT(\"'\"&$B460&\"'!\"&$J460),\"Significant Negative\")","v":{"$error":"#VALUE!"}},{"$f":"COUNTIF(INDIRECT(\"'\"&$B460&\"'!\"&$J460),\"Minor Positive\")","v":{"$error":"#VALUE!"}},{"$f":"COUNTIF(INDIRECT(\"'\"&$B460&\"'!\"&$J460),\"Minor Negative\")","v":{"$error":"#VALUE!"}},{"$f":"COUNTIF(INDIRECT(\"'\"&$B460&\"'!\"&$J460),\"Neutral\")","v":{"$error":"#VALUE!"}},{"$f":"COUNTIF(INDIRECT(\"'\"&$B460&\"'!\"&$J460),\"Uncertain\")","v":{"$error":"#VALUE!"}},"j22",23]
[null,"Leyton DC",19,{"$error":"#VALUE!"},{"$error":"#VALUE!"},{"$error":"#VALUE!"},{"$error":"#VALUE!"},{"$error":"#VALUE!"},{"$error":"#VALUE!"},"j23",23]
[null,"Leyton DC",20,{"$error":"#VALUE!"},{"$error":"#VALUE!"},{"$error":"#VALUE!"},{"$error":"#VALUE!"},{"$error":"#VALUE!"},{"$error":"#VALUE!"},"j24",23]
[null,"Leytonstone DC",1,{"$f":"COUNTIF(INDIRECT(\"'\"&$B463&\"'!\"&$J463),\"Significant Positive\")","v":{"$error":"#VALUE!"}},{"$f":"COUNTIF(INDIRECT(\"'\"&$B463&\"'!\"&$J463),\"Significant Negative\")","v":{"$error":"#VALUE!"}},{"$f":"COUNTIF(INDIRECT(\"'\"&$B463&\"'!\"&$J463),\"Minor Positive\")","v":{"$error":"#VALUE!"}},{"$f":"COUNTIF(INDIRECT(\"'\"&$B463&\"'!\"&$J463),\"Minor Negative\")","v":{"$error":"#VALUE!"}},{"$f":"COUNTIF(INDIRECT(\"'\"&$B463&\"'!\"&$J463),\"Neutral\")","v":{"$error":"#VALUE!"}},{"$f":"COUNTIF(INDIRECT(\"'\"&$B463&\"'!\"&$J463),\"Uncertain\")","v":{"$error":"#VALUE!"}},"j5",24]
[null,"Leytonstone DC",2,{"$f":"COUNTIF(INDIRECT(\"'\"&$B464&\"'!\"&$J464),\"Significant Positive\")","v":{"$error":"#VALUE!"}},{"$f":"COUNTIF(INDIRECT(\"'\"&$B464&\"'!\"&$J464),\"Significant Negative\")","v":{"$error":"#VALUE!"}},{"$f":"COUNTIF(INDIRECT(\"'\"&$B464&\"'!\"&$J464),\"Minor Positive\")","v":{"$error":"#VALUE!"}},{"$f":"COUNTIF(INDIRECT(\"'\"&$B464&\"'!\"&$J464),\"Minor Negative\")","v":{"$error":"#VALUE!"}},{"$f":"COUNTIF(INDIRECT(\"'\"&$B464&\"'!\"&$J464),\"Neutral\")","v":{"$error":"#VALUE!"}},{"$f":"COUNTIF(INDIRECT(\"'\"&$B464&\"'!\"&$J464),\"Uncertain\")","v":{"$error":"#VALUE!"}},"j6",24]
[null,"Leytonstone DC",3,{"$error":"#VALUE!"},{"$error":"#VALUE!"},{"$error":"#VALUE!"},{"$error":"#VALUE!"},{"$error":"#VALUE!"},{"$error":"#VALUE!"},"j7",24]
[null,"Leytonstone DC",4,{"$error":"#VALUE!"},{"$error":"#VALUE!"},{"$error":"#VALUE!"},{"$error":"#VALUE!"},{"$error":"#VALUE!"},{"$error":"#VALUE!"},"j8",24]
[null,"Leytonstone DC",5,{"$error":"#VALUE!"},{"$error":"#VALUE!"},{"$error":"#VALUE!"},{"$error":"#VALUE!"},{"$error":"#VALUE!"},{"$error":"#VALUE!"},"j9",24]
[null,"Leytonstone DC",6,{"$error":"#VALUE!"},{"$error":"#VALUE!"},{"$error":"#VALUE!"},{"$error":"#VALUE!"},{"$error":"#VALUE!"},{"$error":"#VALUE!"},"j10",24]
[null,"Leytonstone DC",7,{"$error":"#VALUE!"},{"$error":"#VALUE!"},{"$error":"#VALUE!"},{"$error":"#VALUE!"},{"$error":"#VALUE!"},{"$error":"#VALUE!"},"j11",24]
[null,"Leytonstone DC",8,{"$error":"#VALUE!"},{"$error":"#VALUE!"},{"$error":"#VALUE!"},{"$error":"#VALUE!"},{"$error":"#VALUE!"},{"$error":"#VALUE!"},"j12",24]
[null,"Leytonstone DC",9,{"$error":"#VALUE!"},{"$error":"#VALUE!"},{"$error":"#VALUE!"},{"$error":"#VALUE!"},{"$error":"#VALUE!"},{"$error":"#VALUE!"},"j13",24]
[null,"Leytonstone DC",10,{"$error":"#VALUE!"},{"$error":"#VALUE!"},{"$error":"#VALUE!"},{"$error":"#VALUE!"},{"$error":"#VALUE!"},{"$error":"#VALUE!"},"j14",24]
[null,"Leytonstone DC",11,{"$error":"#VALUE!"},{"$error":"#VALUE!"},{"$error":"#VALUE!"},{"$error":"#VALUE!"},{"$error":"#VALUE!"},{"$error":"#VALUE!"},"j15",24]
[null,"Leytonstone DC",12,{"$error":"#VALUE!"},{"$error":"#VALUE!"},{"$error":"#VALUE!"},{"$error":"#VALUE!"},{"$error":"#VALUE!"},{"$error":"#VALUE!"},"j16",24]
[null,"Leytonstone DC",13,{"$f":"COUNTIF(INDIRECT(\"'\"&$B475&\"'!\"&$J475),\"Significant Positive\")","v":{"$error":"#VALUE!"}},{"$f":"COUNTIF(INDIRECT(\"'\"&$B475&\"'!\"&$J475),\"Significant Negative\")","v":{"$error":"#VALUE!"}},{"$f":"COUNTIF(INDIRECT(\"'\"&$B475&\"'!\"&$J475),\"Minor Positive\")","v":{"$error":"#VALUE!"}},{"$f":"COUNTIF(INDIRECT(\"'\"&$B475&\"'!\"&$J475),\"Minor Negative\")","v":{"$error":"#VALUE!"}},{"$f":"COUNTIF(INDIRECT(\"'\"&$B475&\"'!\"&$J475),\"Neutral\")","v":{"$error":"#VALUE!"}},{"$f":"COUNTIF(INDIRECT(\"'\"&$B475&\"'!\"&$J475),\"Uncertain\")","v":{"$error":"#VALUE!"}},"j17",24]
[null,"Leytonstone DC",14,{"$error":"#VALUE!"},{"$error":"#VALUE!"},{"$error":"#VALUE!"},{"$error":"#VALUE!"},{"$error":"#VALUE!"},{"$error":"#VALUE!"},"j18",24]
[null,"Leytonstone DC",15,{"$error":"#VALUE!"},{"$error":"#VALUE!"},{"$error":"#VALUE!"},{"$error":"#VALUE!"},{"$error":"#VALUE!"},{"$error":"#VALUE!"},"j19",24]
[null,"Leytonstone DC",16,{"$error":"#VALUE!"},{"$error":"#VALUE!"},{"$error":"#VALUE!"},{"$error":"#VALUE!"},{"$error":"#VALUE!"},{"$error":"#VALUE!"},"j20",24]
[null,"Leytonstone DC",17,{"$error":"#VALUE!"},{"$error":"#VALUE!"},{"$error":"#VALUE!"},{"$error":"#VALUE!"},{"$error":"#VALUE!"},{"$error":"#VALUE!"},"j21",24]
[null,"Leytonstone DC",18,{"$error":"#VALUE!"},{"$error":"#VALUE!"},{"$error":"#VALUE!"},{"$error":"#VALUE!"},{"$error":"#VALUE!"},{"$error":"#VALUE!"},"j22",24]
[null,"Leytonstone DC",19,{"$error":"#VALUE!"},{"$error":"#VALUE!"},{"$error":"#VALUE!"},{"$error":"#VALUE!"},{"$error":"#VALUE!"},{"$error":"#VALUE!"},"j23",24]
[null,"Leytonstone DC",20,{"$error":"#VALUE!"},{"$error":"#VALUE!"},{"$error":"#VALUE!"},{"$error":"#VALUE!"},{"$error":"#VALUE!"},{"$error":"#VALUE!"},"j24",24]
[null,"Bakers Arms DC",1,{"$f":"COUNTIF(INDIRECT(\"'\"&$B483&\"'!\"&$J483),\"Significant Positive\")","v":{"$error":"#VALUE!"}},{"$f":"COUNTIF(INDIRECT(\"'\"&$B483&\"'!\"&$J483),\"Significant Negative\")","v":{"$error":"#VALUE!"}},{"$f":"COUNTIF(INDIRECT(\"'\"&$B483&\"'!\"&$J483),\"Minor Positive\")","v":{"$error":"#VALUE!"}},{"$f":"COUNTIF(INDIRECT(\"'\"&$B483&\"'!\"&$J483),\"Minor Negative\")","v":{"$error":"#VALUE!"}},{"$f":"COUNTIF(INDIRECT(\"'\"&$B483&\"'!\"&$J483),\"Neutral\")","v":{"$error":"#VALUE!"}},{"$f":"COUNTIF(INDIRECT(\"'\"&$B483&\"'!\"&$J483),\"Uncertain\")","v":{"$error":"#VALUE!"}},"j5",25]
[null,"Bakers Arms DC",2,{"$f":"COUNTIF(INDIRECT(\"'\"&$B484&\"'!\"&$J484),\"Significant Positive\")","v":{"$error":"#VALUE!"}},{"$f":"COUNTIF(INDIRECT(\"'\"&$B484&\"'!\"&$J484),\"Significant Negative\")","v":{"$error":"#VALUE!"}},{"$f":"COUNTIF(INDIRECT(\"'\"&$B484&\"'!\"&$J484),\"Minor Positive\")","v":{"$error":"#VALUE!"}},{"$f":"COUNTIF(INDIRECT(\"'\"&$B484&\"'!\"&$J484),\"Minor Negative\")","v":{"$error":"#VALUE!"}},{"$f":"COUNTIF(INDIRECT(\"'\"&$B484&\"'!\"&$J484),\"Neutral\")","v":{"$error":"#VALUE!"}},{"$f":"COUNTIF(INDIRECT(\"'\"&$B484&\"'!\"&$J484),\"Uncertain\")","v":{"$error":"#VALUE!"}},"j6",25]
[null,"Bakers Arms DC",3,{"$error":"#VALUE!"},{"$error":"#VALUE!"},{"$error":"#VALUE!"},{"$error":"#VALUE!"},{"$error":"#VALUE!"},{"$error":"#VALUE!"},"j7",25]
[null,"Bakers Arms DC",4,{"$error":"#VALUE!"},{"$error":"#VALUE!"},{"$error":"#VALUE!"},{"$error":"#VALUE!"},{"$error":"#VALUE!"},{"$error":"#VALUE!"},"j8",25]
[null,"Bakers Arms DC",5,{"$error":"#VALUE!"},{"$error":"#VALUE!"},{"$error":"#VALUE!"},{"$error":"#VALUE!"},{"$error":"#VALUE!"},{"$error":"#VALUE!"},"j9",25]
[null,"Bakers Arms DC",6,{"$error":"#VALUE!"},{"$error":"#VALUE!"},{"$error":"#VALUE!"},{"$error":"#VALUE!"},{"$error":"#VALUE!"},{"$error":"#VALUE!"},"j10",25]
[null,"Bakers Arms DC",7,{"$error":"#VALUE!"},{"$error":"#VALUE!"},{"$error":"#VALUE!"},{"$error":"#VALUE!"},{"$error":"#VALUE!"},{"$error":"#VALUE!"},"j11",25]
[null,"Bakers Arms DC",8,{"$error":"#VALUE!"},{"$error":"#VALUE!"},{"$error":"#VALUE!"},{"$error":"#VALUE!"},{"$error":"#VALUE!"},{"$error":"#VALUE!"},"j12",25]
[null,"Bakers Arms DC",9,{"$error":"#VALUE!"},{"$error":"#VALUE!"},{"$error":"#VALUE!"},{"$error":"#VALUE!"},{"$error":"#VALUE!"},{"$error":"#VALUE!"},"j13",25]
[null,"Bakers Arms DC",10,{"$error":"#VALUE!"},{"$error":"#VALUE!"},{"$error":"#VALUE!"},{"$error":"#VALUE!"},{"$error":"#VALUE!"},{"$error":"#VALUE!"},"j14",25]
[null,"Bakers Arms DC",11,{"$error":"#VALUE!"},{"$error":"#VALUE!"},{"$error":"#VALUE!"},{"$error":"#VALUE!"},{"$error":"#VALUE!"},{"$error":"#VALUE!"},"j15",25]
[null,"Bakers Arms DC",12,{"$error":"#VALUE!"},{"$error":"#VALUE!"},{"$error":"#VALUE!"},{"$error":"#VALUE!"},{"$error":"#VALUE!"},{"$error":"#VALUE!"},"j16",25]
[null,"Bakers Arms DC",13,{"$error":"#VALUE!"},{"$error":"#VALUE!"},{"$error":"#VALUE!"},{"$error":"#VALUE!"},{"$error":"#VALUE!"},{"$error":"#VALUE!"},"j17",25]
[null,"Bakers Arms DC",14,{"$f":"COUNTIF(INDIRECT(\"'\"&$B496&\"'!\"&$J496),\"Significant Positive\")","v":{"$error":"#VALUE!"}},{"$f":"COUNTIF(INDIRECT(\"'\"&$B496&\"'!\"&$J496),\"Significant Negative\")","v":{"$error":"#VALUE!"}},{"$f":"COUNTIF(INDIRECT(\"'\"&$B496&\"'!\"&$J496),\"Minor Positive\")","v":{"$error":"#VALUE!"}},{"$f":"COUNTIF(INDIRECT(\"'\"&$B496&\"'!\"&$J496),\"Minor Negative\")","v":{"$error":"#VALUE!"}},{"$f":"COUNTIF(INDIRECT(\"'\"&$B496&\"'!\"&$J496),\"Neutral\")","v":{"$error":"#VALUE!"}},{"$f":"COUNTIF(INDIRECT(\"'\"&$B496&\"'!\"&$J496),\"Uncertain\")","v":{"$error":"#VALUE!"}},"j18",25]
[null,"Bakers Arms DC",15,{"$error":"#VALUE!"},{"$error":"#VALUE!"},{"$error":"#VALUE!"},{"$error":"#VALUE!"},{"$error":"#VALUE!"},{"$error":"#VALUE!"},"j19",25]
[null,"Bakers Arms DC",16,{"$error":"#VALUE!"},{"$error":"#VALUE!"},{"$error":"#VALUE!"},{"$error":"#VALUE!"},{"$error":"#VALUE!"},{"$error":"#VALUE!"},"j20",25]
[null,"Bakers Arms DC",17,{"$error":"#VALUE!"},{"$error":"#VALUE!"},{"$error":"#VALUE!"},{"$error":"#VALUE!"},{"$error":"#VALUE!"},{"$error":"#VALUE!"},"j21",25]
[null,"Bakers Arms DC",18,{"$error":"#VALUE!"},{"$error":"#VALUE!"},{"$error":"#VALUE!"},{"$error":"#VALUE!"},{"$error":"#VALUE!"},{"$error":"#VALUE!"},"j22",25]
[null,"Bakers Arms DC",19,{"$error":"#VALUE!"},{"$error":"#VALUE!"},{"$error":"#VALUE!"},{"$error":"#VALUE!"},{"$error":"#VALUE!"},{"$error":"#VALUE!"},"j23",25]
[null,"Bakers Arms DC",20,{"$error":"#VALUE!"},{"$error":"#VALUE!"},{"$error":"#VALUE!"},{"$error":"#VALUE!"},{"$error":"#VALUE!"},{"$error":"#VALUE!"},"j24",25]
[null,"Highams Park DC",1,{"$f":"COUNTIF(INDIRECT(\"'\"&$B503&\"'!\"&$J503),\"Significant Positive\")","v":{"$error":"#VALUE!"}},{"$f":"COUNTIF(INDIRECT(\"'\"&$B503&\"'!\"&$J503),\"Significant Negative\")","v":{"$error":"#VALUE!"}},{"$f":"COUNTIF(INDIRECT(\"'\"&$B503&\"'!\"&$J503),\"Minor Positive\")","v":{"$error":"#VALUE!"}},{"$f":"COUNTIF(INDIRECT(\"'\"&$B503&\"'!\"&$J503),\"Minor Negative\")","v":{"$error":"#VALUE!"}},{"$f":"COUNTIF(INDIRECT(\"'\"&$B503&\"'!\"&$J503),\"Neutral\")","v":{"$error":"#VALUE!"}},{"$f":"COUNTIF(INDIRECT(\"'\"&$B503&\"'!\"&$J503),\"Uncertain\")","v":{"$error":"#VALUE!"}},"j5",26]
[null,"Highams Park DC",2,{"$f":"COUNTIF(INDIRECT(\"'\"&$B504&\"'!\"&$J504),\"Significant Positive\")","v":{"$error":"#VALUE!"}},{"$f":"COUNTIF(INDIRECT(\"'\"&$B504&\"'!\"&$J504),\"Significant Negative\")","v":{"$error":"#VALUE!"}},{"$f":"COUNTIF(INDIRECT(\"'\"&$B504&\"'!\"&$J504),\"Minor Positive\")","v":{"$error":"#VALUE!"}},{"$f":"COUNTIF(INDIRECT(\"'\"&$B504&\"'!\"&$J504),\"Minor Negative\")","v":{"$error":"#VALUE!"}},{"$f":"COUNTIF(INDIRECT(\"'\"&$B504&\"'!\"&$J504),\"Neutral\")","v":{"$error":"#VALUE!"}},{"$f":"COUNTIF(INDIRECT(\"'\"&$B504&\"'!\"&$J504),\"Uncertain\")","v":{"$error":"#VALUE!"}},"j6",26]
[null,"Highams Park DC",3,{"$error":"#VALUE!"},{"$error":"#VALUE!"},{"$error":"#VALUE!"},{"$error":"#VALUE!"},{"$error":"#VALUE!"},{"$error":"#VALUE!"},"j7",26]
[null,"Highams Park DC",4,{"$error":"#VALUE!"},{"$error":"#VALUE!"},{"$error":"#VALUE!"},{"$error":"#VALUE!"},{"$error":"#VALUE!"},{"$error":"#VALUE!"},"j8",26]
[null,"Highams Park DC",5,{"$error":"#VALUE!"},{"$error":"#VALUE!"},{"$error":"#VALUE!"},{"$error":"#VALUE!"},{"$error":"#VALUE!"},{"$error":"#VALUE!"},"j9",26]
[null,"Highams Park DC",6,{"$error":"#VALUE!"},{"$error":"#VALUE!"},{"$error":"#VALUE!"},{"$error":"#VALUE!"},{"$error":"#VALUE!"},{"$error":"#VALUE!"},"j10",26]
[null,"Highams Park DC",7,{"$error":"#VALUE!"},{"$error":"#VALUE!"},{"$error":"#VALUE!"},{"$error":"#VALUE!"},{"$error":"#VALUE!"},{"$error":"#VALUE!"},"j11",26]
[null,"Highams Park DC",8,{"$error":"#VALUE!"},{"$error":"#VALUE!"},{"$error":"#VALUE!"},{"$error":"#VALUE!"},{"$error":"#VALUE!"},{"$error":"#VALUE!"},"j12",26]
[null,"Highams Park DC",9,{"$error":"#VALUE!"},{"$error":"#VALUE!"},{"$error":"#VALUE!"},{"$error":"#VALUE!"},{"$error":"#VALUE!"},{"$error":"#VALUE!"},"j13",26]
[null,"Highams Park DC",10,{"$error":"#VALUE!"},{"$error":"#VALUE!"},{"$error":"#VALUE!"},{"$error":"#VALUE!"},{"$error":"#VALUE!"},{"$error":"#VALUE!"},"j14",26]
[null,"Highams Park DC",11,{"$f":"COUNTIF(INDIRECT(\"'\"&$B513&\"'!\"&$J513),\"Significant Positive\")","v":{"$error":"#VALUE!"}},{"$f":"COUNTIF(INDIRECT(\"'\"&$B513&\"'!\"&$J513),\"Significant Negative\")","v":{"$error":"#VALUE!"}},{"$f":"COUNTIF(INDIRECT(\"'\"&$B513&\"'!\"&$J513),\"Minor Positive\")","v":{"$error":"#VALUE!"}},{"$f":"COUNTIF(INDIRECT(\"'\"&$B513&\"'!\"&$J513),\"Minor Negative\")","v":{"$error":"#VALUE!"}},{"$f":"COUNTIF(INDIRECT(\"'\"&$B513&\"'!\"&$J513),\"Neutral\")","v":{"$error":"#VALUE!"}},{"$f":"COUNTIF(INDIRECT(\"'\"&$B513&\"'!\"&$J513),\"Uncertain\")","v":{"$error":"#VALUE!"}},"j15",26]
[null,"Highams Park DC",12,{"$error":"#VALUE!"},{"$error":"#VALUE!"},{"$error":"#VALUE!"},{"$error":"#VALUE!"},{"$error":"#VALUE!"},{"$error":"#VALUE!"},"j16",26]
[null,"Highams Park DC",13,{"$error":"#VALUE!"},{"$error":"#VALUE!"},{"$error":"#VALUE!"},{"$error":"#VALUE!"},{"$error":"#VALUE!"},{"$error":"#VALUE!"},"j17",26]
[null,"Highams Park DC",14,{"$error":"#VALUE!"},{"$error":"#VALUE!"},{"$error":"#VALUE!"},{"$error":"#VALUE!"},{"$error":"#VALUE!"},{"$error":"#VALUE!"},"j18",26]
[null,"Highams Park DC",15,{"$error":"#VALUE!"},{"$error":"#VALUE!"},{"$error":"#VALUE!"},{"$error":"#VALUE!"},{"$error":"#VALUE!"},{"$error":"#VALUE!"},"j19",26]
[null,"Highams Park DC",16,{"$error":"#VALUE!"},{"$error":"#VALUE!"},{"$error":"#VALUE!"},{"$error":"#VALUE!"},{"$error":"#VALUE!"},{"$error":"#VALUE!"},"j20",26]
[null,"Highams Park DC",17,{"$error":"#VALUE!"},{"$error":"#VALUE!"},{"$error":"#VALUE!"},{"$error":"#VALUE!"},{"$error":"#VALUE!"},{"$error":"#VALUE!"},"j21",26]
[null,"Highams Park DC",18,{"$error":"#VALUE!"},{"$error":"#VALUE!"},{"$error":"#VALUE!"},{"$error":"#VALUE!"},{"$error":"#VALUE!"},{"$error":"#VALUE!"},"j22",26]
[null,"Highams Park DC",19,{"$error":"#VALUE!"},{"$error":"#VALUE!"},{"$error":"#VALUE!"},{"$error":"#VALUE!"},{"$error":"#VALUE!"},{"$error":"#VALUE!"},"j23",26]
[null,"Highams Park DC",20,{"$error":"#VALUE!"},{"$error":"#VALUE!"},{"$error":"#VALUE!"},{"$error":"#VALUE!"},{"$error":"#VALUE!"},{"$error":"#VALUE!"},"j24",26]
[null,"Wood St DC",1,{"$f":"COUNTIF(INDIRECT(\"'\"&$B523&\"'!\"&$J523),\"Significant Positive\")","v":{"$error":"#VALUE!"}},{"$f":"COUNTIF(INDIRECT(\"'\"&$B523&\"'!\"&$J523),\"Significant Negative\")","v":{"$error":"#VALUE!"}},{"$f":"COUNTIF(INDIRECT(\"'\"&$B523&\"'!\"&$J523),\"Minor Positive\")","v":{"$error":"#VALUE!"}},{"$f":"COUNTIF(INDIRECT(\"'\"&$B523&\"'!\"&$J523),\"Minor Negative\")","v":{"$error":"#VALUE!"}},{"$f":"COUNTIF(INDIRECT(\"'\"&$B523&\"'!\"&$J523),\"Neutral\")","v":{"$error":"#VALUE!"}},{"$f":"COUNTIF(INDIRECT(\"'\"&$B523&\"'!\"&$J523),\"Uncertain\")","v":{"$error":"#VALUE!"}},"j5",27]
[null,"Wood St DC",2,{"$f":"COUNTIF(INDIRECT(\"'\"&$B524&\"'!\"&$J524),\"Significant Positive\")","v":{"$error":"#VALUE!"}},{"$f":"COUNTIF(INDIRECT(\"'\"&$B524&\"'!\"&$J524),\"Significant Negative\")","v":{"$error":"#VALUE!"}},{"$f":"COUNTIF(INDIRECT(\"'\"&$B524&\"'!\"&$J524),\"Minor Positive\")","v":{"$error":"#VALUE!"}},{"$f":"COUNTIF(INDIRECT(\"'\"&$B524&\"'!\"&$J524),\"Minor Negative\")","v":{"$error":"#VALUE!"}},{"$f":"COUNTIF(INDIRECT(\"'\"&$B524&\"'!\"&$J524),\"Neutral\")","v":{"$error":"#VALUE!"}},{"$f":"COUNTIF(INDIRECT(\"'\"&$B524&\"'!\"&$J524),\"Uncertain\")","v":{"$error":"#VALUE!"}},"j6",27]
[null,"Wood St DC",3,{"$error":"#VALUE!"},{"$error":"#VALUE!"},{"$error":"#VALUE!"},{"$error":"#VALUE!"},{"$error":"#VALUE!"},{"$error":"#VALUE!"},"j7",27]
[null,"Wood St DC",4,{"$error":"#VALUE!"},{"$error":"#VALUE!"},{"$error":"#VALUE!"},{"$error":"#VALUE!"},{"$error":"#VALUE!"},{"$error":"#VALUE!"},"j8",27]
[null,"Wood St DC",5,{"$error":"#VALUE!"},{"$error":"#VALUE!"},{"$error":"#VALUE!"},{"$error":"#VALUE!"},{"$error":"#VALUE!"},{"$error":"#VALUE!"},"j9",27]
[null,"Wood St DC",6,{"$error":"#VALUE!"},{"$error":"#VALUE!"},{"$error":"#VALUE!"},{"$error":"#VALUE!"},{"$error":"#VALUE!"},{"$error":"#VALUE!"},"j10",27]
[null,"Wood St DC",7,{"$error":"#VALUE!"},{"$error":"#VALUE!"},{"$error":"#VALUE!"},{"$error":"#VALUE!"},{"$error":"#VALUE!"},{"$error":"#VALUE!"},"j11",27]
[null,"Wood St DC",8,{"$error":"#VALUE!"},{"$error":"#VALUE!"},{"$error":"#VALUE!"},{"$error":"#VALUE!"},{"$error":"#VALUE!"},{"$error":"#VALUE!"},"j12",27]
[null,"Wood St DC",9,{"$error":"#VALUE!"},{"$error":"#VALUE!"},{"$error":"#VALUE!"},{"$error":"#VALUE!"},{"$error":"#VALUE!"},{"$error":"#VALUE!"},"j13",27]
[null,"Wood St DC",10,{"$error":"#VALUE!"},{"$error":"#VALUE!"},{"$error":"#VALUE!"},{"$error":"#VALUE!"},{"$error":"#VALUE!"},{"$error":"#VALUE!"},"j14",27]
[null,"Wood St DC",11,{"$error":"#VALUE!"},{"$error":"#VALUE!"},{"$error":"#VALUE!"},{"$error":"#VALUE!"},{"$error":"#VALUE!"},{"$error":"#VALUE!"},"j15",27]
[null,"Wood St DC",12,{"$error":"#VALUE!"},{"$error":"#VALUE!"},{"$error":"#VALUE!"},{"$error":"#VALUE!"},{"$error":"#VALUE!"},{"$error":"#VALUE!"},"j16",27]
[null,"Wood St DC",13,{"$error":"#VALUE!"},{"$error":"#VALUE!"},{"$error":"#VALUE!"},{"$error":"#VALUE!"},{"$error":"#VALUE!"},{"$error":"#VALUE!"},"j17",27]
[null,"Wood St DC",14,{"$error":"#VALUE!"},{"$error":"#VALUE!"},{"$error":"#VALUE!"},{"$error":"#VALUE!"},{"$error":"#VALUE!"},{"$error":"#VALUE!"},"j18",27]
[null,"Wood St DC",15,{"$error":"#VALUE!"},{"$error":"#VALUE!"},{"$error":"#VALUE!"},{"$error":"#VALUE!"},{"$error":"#VALUE!"},{"$error":"#VALUE!"},"j19",27]
[null,"Wood St DC",16,{"$f":"COUNTIF(INDIRECT(\"'\"&$B538&\"'!\"&$J538),\"Significant Positive\")","v":{"$error":"#VALUE!"}},{"$f":"COUNTIF(INDIRECT(\"'\"&$B538&\"'!\"&$J538),\"Significant Negative\")","v":{"$error":"#VALUE!"}},{"$f":"COUNTIF(INDIRECT(\"'\"&$B538&\"'!\"&$J538),\"Minor Positive\")","v":{"$error":"#VALUE!"}},{"$f":"COUNTIF(INDIRECT(\"'\"&$B538&\"'!\"&$J538),\"Minor Negative\")","v":{"$error":"#VALUE!"}},{"$f":"COUNTIF(INDIRECT(\"'\"&$B538&\"'!\"&$J538),\"Neutral\")","v":{"$error":"#VALUE!"}},{"$f":"COUNTIF(INDIRECT(\"'\"&$B538&\"'!\"&$J538),\"Uncertain\")","v":{"$error":"#VALUE!"}},"j20",27]
[null,"Wood St DC",17,{"$error":"#VALUE!"},{"$error":"#VALUE!"},{"$error":"#VALUE!"},{"$error":"#VALUE!"},{"$error":"#VALUE!"},{"$error":"#VALUE!"},"j21",27]
[null,"Wood St DC",18,{"$error":"#VALUE!"},{"$error":"#VALUE!"},{"$error":"#VALUE!"},{"$error":"#VALUE!"},{"$error":"#VALUE!"},{"$error":"#VALUE!"},"j22",27]
[null,"Wood St DC",19,{"$error":"#VALUE!"},{"$error":"#VALUE!"},{"$error":"#VALUE!"},{"$error":"#VALUE!"},{"$error":"#VALUE!"},{"$error":"#VALUE!"},"j23",27]
[null,"Wood St DC",20,{"$error":"#VALUE!"},{"$error":"#VALUE!"},{"$error":"#VALUE!"},{"$error":"#VALUE!"},{"$error":"#VALUE!"},{"$error":"#VALUE!"},"j24",27]
[null,"South Chingford DC",1,{"$f":"COUNTIF(INDIRECT(\"'\"&$B543&\"'!\"&$J543),\"Significant Positive\")","v":{"$error":"#VALUE!"}},{"$f":"COUNTIF(INDIRECT(\"'\"&$B543&\"'!\"&$J543),\"Significant Negative\")","v":{"$error":"#VALUE!"}},{"$f":"COUNTIF(INDIRECT(\"'\"&$B543&\"'!\"&$J543),\"Minor Positive\")","v":{"$error":"#VALUE!"}},{"$f":"COUNTIF(INDIRECT(\"'\"&$B543&\"'!\"&$J543),\"Minor Negative\")","v":{"$error":"#VALUE!"}},{"$f":"COUNTIF(INDIRECT(\"'\"&$B543&\"'!\"&$J543),\"Neutral\")","v":{"$error":"#VALUE!"}},{"$f":"COUNTIF(INDIRECT(\"'\"&$B543&\"'!\"&$J543),\"Uncertain\")","v":{"$error":"#VALUE!"}},"j5",28]
[null,"South Chingford DC",2,{"$f":"COUNTIF(INDIRECT(\"'\"&$B544&\"'!\"&$J544),\"Significant Positive\")","v":{"$error":"#VALUE!"}},{"$f":"COUNTIF(INDIRECT(\"'\"&$B544&\"'!\"&$J544),\"Significant Negative\")","v":{"$error":"#VALUE!"}},{"$f":"COUNTIF(INDIRECT(\"'\"&$B544&\"'!\"&$J544),\"Minor Positive\")","v":{"$error":"#VALUE!"}},{"$f":"COUNTIF(INDIRECT(\"'\"&$B544&\"'!\"&$J544),\"Minor Negative\")","v":{"$error":"#VALUE!"}},{"$f":"COUNTIF(INDIRECT(\"'\"&$B544&\"'!\"&$J544),\"Neutral\")","v":{"$error":"#VALUE!"}},{"$f":"COUNTIF(INDIRECT(\"'\"&$B544&\"'!\"&$J544),\"Uncertain\")","v":{"$error":"#VALUE!"}},"j6",28]
[null,"South Chingford DC",3,{"$error":"#VALUE!"},{"$error":"#VALUE!"},{"$error":"#VALUE!"},{"$error":"#VALUE!"},{"$error":"#VALUE!"},{"$error":"#VALUE!"},"j7",28]
[null,"South Chingford DC",4,{"$error":"#VALUE!"},{"$error":"#VALUE!"},{"$error":"#VALUE!"},{"$error":"#VALUE!"},{"$error":"#VALUE!"},{"$error":"#VALUE!"},"j8",28]
[null,"South Chingford DC",5,{"$error":"#VALUE!"},{"$error":"#VALUE!"},{"$error":"#VALUE!"},{"$error":"#VALUE!"},{"$error":"#VALUE!"},{"$error":"#VALUE!"},"j9",28]
[null,"South Chingford DC",6,{"$error":"#VALUE!"},{"$error":"#VALUE!"},{"$error":"#VALUE!"},{"$error":"#VALUE!"},{"$error":"#VALUE!"},{"$error":"#VALUE!"},"j10",28]
[null,"South Chingford DC",7,{"$error":"#VALUE!"},{"$error":"#VALUE!"},{"$error":"#VALUE!"},{"$error":"#VALUE!"},{"$error":"#VALUE!"},{"$error":"#VALUE!"},"j11",28]
[null,"South Chingford DC",8,{"$error":"#VALUE!"},{"$error":"#VALUE!"},{"$error":"#VALUE!"},{"$error":"#VALUE!"},{"$error":"#VALUE!"},{"$error":"#VALUE!"},"j12",28]
[null,"South Chingford DC",9,{"$error":"#VALUE!"},{"$error":"#VALUE!"},{"$error":"#VALUE!"},{"$error":"#VALUE!"},{"$error":"#VALUE!"},{"$error":"#VALUE!"},"j13",28]
[null,"South Chingford DC",10,{"$error":"#VALUE!"},{"$error":"#VALUE!"},{"$error":"#VALUE!"},{"$error":"#VALUE!"},{"$error":"#VALUE!"},{"$error":"#VALUE!"},"j14",28]
[null,"South Chingford DC",11,{"$error":"#VALUE!"},{"$error":"#VALUE!"},{"$error":"#VALUE!"},{"$error":"#VALUE!"},{"$error":"#VALUE!"},{"$error":"#VALUE!"},"j15",28]
[null,"South Chingford DC",12,{"$error":"#VALUE!"},{"$error":"#VALUE!"},{"$error":"#VALUE!"},{"$error":"#VALUE!"},{"$error":"#VALUE!"},{"$error":"#VALUE!"},"j16",28]
[null,"South Chingford DC",13,{"$error":"#VALUE!"},{"$error":"#VALUE!"},{"$error":"#VALUE!"},{"$error":"#VALUE!"},{"$error":"#VALUE!"},{"$error":"#VALUE!"},"j17",28]
[null,"South Chingford DC",14,{"$error":"#VALUE!"},{"$error":"#VALUE!"},{"$error":"#VALUE!"},{"$error":"#VALUE!"},{"$error":"#VALUE!"},{"$error":"#VALUE!"},"j18",28]
[null,"South Chingford DC",15,{"$f":"COUNTIF(INDIRECT(\"'\"&$B557&\"'!\"&$J557),\"Significant Positive\")","v":{"$error":"#VALUE!"}},{"$f":"COUNTIF(INDIRECT(\"'\"&$B557&\"'!\"&$J557),\"Significant Negative\")","v":{"$error":"#VALUE!"}},{"$f":"COUNTIF(INDIRECT(\"'\"&$B557&\"'!\"&$J557),\"Minor Positive\")","v":{"$error":"#VALUE!"}},{"$f":"COUNTIF(INDIRECT(\"'\"&$B557&\"'!\"&$J557),\"Minor Negative\")","v":{"$error":"#VALUE!"}},{"$f":"COUNTIF(INDIRECT(\"'\"&$B557&\"'!\"&$J557),\"Neutral\")","v":{"$error":"#VALUE!"}},{"$f":"COUNTIF(INDIRECT(\"'\"&$B557&\"'!\"&$J557),\"Uncertain\")","v":{"$error":"#VALUE!"}},"j19",28]
[null,"South Chingford DC",16,{"$error":"#VALUE!"},{"$error":"#VALUE!"},{"$error":"#VALUE!"},{"$error":"#VALUE!"},{"$error":"#VALUE!"},{"$error":"#VALUE!"},"j20",28]
[null,"South Chingford DC",17,{"$error":"#VALUE!"},{"$error":"#VALUE!"},{"$error":"#VALUE!"},{"$error":"#VALUE!"},{"$error":"#VALUE!"},{"$error":"#VALUE!"},"j21",28]
[null,"South Chingford DC",18,{"$error":"#VALUE!"},{"$error":"#VALUE!"},{"$error":"#VALUE!"},{"$error":"#VALUE!"},{"$error":"#VALUE!"},{"$error":"#VALUE!"},"j22",28]
[null,"South Chingford DC",19,{"$error":"#VALUE!"},{"$error":"#VALUE!"},{"$error":"#VALUE!"},{"$error":"#VALUE!"},{"$error":"#VALUE!"},{"$error":"#VALUE!"},"j23",28]
[null,"South Chingford DC",20,{"$error":"#VALUE!"},{"$error":"#VALUE!"},{"$error":"#VALUE!"},{"$error":"#VALUE!"},{"$error":"#VALUE!"},{"$error":"#VALUE!"},"j24",28]
[null,"Sewardstone Road NC",1,{"$f":"COUNTIF(INDIRECT(\"'\"&$B563&\"'!\"&$J563),\"Significant Positive\")","v":{"$error":"#VALUE!"}},{"$f":"COUNTIF(INDIRECT(\"'\"&$B563&\"'!\"&$J563),\"Significant Negative\")","v":{"$error":"#VALUE!"}},{"$f":"COUNTIF(INDIRECT(\"'\"&$B563&\"'!\"&$J563),\"Minor Positive\")","v":{"$error":"#VALUE!"}},{"$f":"COUNTIF(INDIRECT(\"'\"&$B563&\"'!\"&$J563),\"Minor Negative\")","v":{"$error":"#VALUE!"}},{"$f":"COUNTIF(INDIRECT(\"'\"&$B563&\"'!\"&$J563),\"Neutral\")","v":{"$error":"#VALUE!"}},{"$f":"COUNTIF(INDIRECT(\"'\"&$B563&\"'!\"&$J563),\"Uncertain\")","v":{"$error":"#VALUE!"}},"j5",29]
[null,"Sewardstone Road NC",2,{"$f":"COUNTIF(INDIRECT(\"'\"&$B564&\"'!\"&$J564),\"Significant Positive\")","v":{"$error":"#VALUE!"}},{"$f":"COUNTIF(INDIRECT(\"'\"&$B564&\"'!\"&$J564),\"Significant Negative\")","v":{"$error":"#VALUE!"}},{"$f":"COUNTIF(INDIRECT(\"'\"&$B564&\"'!\"&$J564),\"Minor Positive\")","v":{"$error":"#VALUE!"}},{"$f":"COUNTIF(INDIRECT(\"'\"&$B564&\"'!\"&$J564),\"Minor Negative\")","v":{"$error":"#VALUE!"}},{"$f":"COUNTIF(INDIRECT(\"'\"&$B564&\"'!\"&$J564),\"Neutral\")","v":{"$error":"#VALUE!"}},{"$f":"COUNTIF(INDIRECT(\"'\"&$B564&\"'!\"&$J564),\"Uncertain\")","v":{"$error":"#VALUE!"}},"j6",29]
[null,"Sewardstone Road NC",3,{"$error":"#VALUE!"},{"$error":"#VALUE!"},{"$error":"#VALUE!"},{"$error":"#VALUE!"},{"$error":"#VALUE!"},{"$error":"#VALUE!"},"j7",29]
[null,"Sewardstone Road NC",4,{"$error":"#VALUE!"},{"$error":"#VALUE!"},{"$error":"#VALUE!"},{"$error":"#VALUE!"},{"$error":"#VALUE!"},{"$error":"#VALUE!"},"j8",29]
[null,"Sewardstone Road NC",5,{"$error":"#VALUE!"},{"$error":"#VALUE!"},{"$error":"#VALUE!"},{"$error":"#VALUE!"},{"$error":"#VALUE!"},{"$error":"#VALUE!"},"j9",29]
[null,"Sewardstone Road NC",6,{"$error":"#VALUE!"},{"$error":"#VALUE!"},{"$error":"#VALUE!"},{"$error":"#VALUE!"},{"$error":"#VALUE!"},{"$error":"#VALUE!"},"j10",29]
[null,"Sewardstone Road NC",7,{"$error":"#VALUE!"},{"$error":"#VALUE!"},{"$error":"#VALUE!"},{"$error":"#VALUE!"},{"$error":"#VALUE!"},{"$error":"#VALUE!"},"j11",29]
[null,"Sewardstone Road NC",8,{"$error":"#VALUE!"},{"$error":"#VALUE!"},{"$error":"#VALUE!"},{"$error":"#VALUE!"},{"$error":"#VALUE!"},{"$error":"#VALUE!"},"j12",29]
[null,"Sewardstone Road NC",9,{"$error":"#VALUE!"},{"$error":"#VALUE!"},{"$error":"#VALUE!"},{"$error":"#VALUE!"},{"$error":"#VALUE!"},{"$error":"#VALUE!"},"j13",29]
[null,"Sewardstone Road NC",10,{"$error":"#VALUE!"},{"$error":"#VALUE!"},{"$error":"#VALUE!"},{"$error":"#VALUE!"},{"$error":"#VALUE!"},{"$error":"#VALUE!"},"j14",29]
[null,"Sewardstone Road NC",11,{"$error":"#VALUE!"},{"$error":"#VALUE!"},{"$error":"#VALUE!"},{"$error":"#VALUE!"},{"$error":"#VALUE!"},{"$error":"#VALUE!"},"j15",29]
[null,"Sewardstone Road NC",12,{"$error":"#VALUE!"},{"$error":"#VALUE!"},{"$error":"#VALUE!"},{"$error":"#VALUE!"},{"$error":"#VALUE!"},{"$error":"#VALUE!"},"j16",29]
[null,"Sewardstone Road NC",13,{"$error":"#VALUE!"},{"$error":"#VALUE!"},{"$error":"#VALUE!"},{"$error":"#VALUE!"},{"$error":"#VALUE!"},{"$error":"#VALUE!"},"j17",29]
[null,"Sewardstone Road NC",14,{"$error":"#VALUE!"},{"$error":"#VALUE!"},{"$error":"#VALUE!"},{"$error":"#VALUE!"},{"$error":"#VALUE!"},{"$error":"#VALUE!"},"j18",29]
[null,"Sewardstone Road NC",15,{"$error":"#VALUE!"},{"$error":"#VALUE!"},{"$error":"#VALUE!"},{"$error":"#VALUE!"},{"$error":"#VALUE!"},{"$error":"#VALUE!"},"j19",29]
[null,"Sewardstone Road NC",16,{"$error":"#VALUE!"},{"$error":"#VALUE!"},{"$error":"#VALUE!"},{"$error":"#VALUE!"},{"$error":"#VALUE!"},{"$error":"#VALUE!"},"j20",29]
[null,"Sewardstone Road NC",17,{"$error":"#VALUE!"},{"$error":"#VALUE!"},{"$error":"#VALUE!"},{"$error":"#VALUE!"},{"$error":"#VALUE!"},{"$error":"#VALUE!"},"j21",29]
[null,"Sewardstone Road NC",18,{"$error":"#VALUE!"},{"$error":"#VALUE!"},{"$error":"#VALUE!"},{"$error":"#VALUE!"},{"$error":"#VALUE!"},{"$error":"#VALUE!"},"j22",29]
[null,"Sewardstone Road NC",19,{"$f":"COUNTIF(INDIRECT(\"'\"&$B581&\"'!\"&$J581),\"Significant Positive\")","v":{"$error":"#VALUE!"}},{"$f":"COUNTIF(INDIRECT(\"'\"&$B581&\"'!\"&$J581),\"Significant Negative\")","v":{"$error":"#VALUE!"}},{"$f":"COUNTIF(INDIRECT(\"'\"&$B581&\"'!\"&$J581),\"Minor Positive\")","v":{"$error":"#VALUE!"}},{"$f":"COUNTIF(INDIRECT(\"'\"&$B581&\"'!\"&$J581),\"Minor Negative\")","v":{"$error":"#VALUE!"}},{"$f":"COUNTIF(INDIRECT(\"'\"&$B581&\"'!\"&$J581),\"Neutral\")","v":{"$error":"#VALUE!"}},{"$f":"COUNTIF(INDIRECT(\"'\"&$B581&\"'!\"&$J581),\"Uncertain\")","v":{"$error":"#VALUE!"}},"j23",29]
[null,"Sewardstone Road NC",20,{"$error":"#VALUE!"},{"$error":"#VALUE!"},{"$error":"#VALUE!"},{"$error":"#VALUE!"},{"$error":"#VALUE!"},{"$error":"#VALUE!"},"j24",29]
[null,"Markhouse Corner NC",1,{"$f":"COUNTIF(INDIRECT(\"'\"&$B585&\"'!\"&$J583),\"Significant Positive\")","v":{"$error":"#VALUE!"}},{"$f":"COUNTIF(INDIRECT(\"'\"&$B585&\"'!\"&$J583),\"Significant Negative\")","v":{"$error":"#VALUE!"}},{"$f":"COUNTIF(INDIRECT(\"'\"&$B585&\"'!\"&$J583),\"Minor Positive\")","v":{"$error":"#VALUE!"}},{"$f":"COUNTIF(INDIRECT(\"'\"&$B585&\"'!\"&$J583),\"Minor Negative\")","v":{"$error":"#VALUE!"}},{"$f":"COUNTIF(INDIRECT(\"'\"&$B585&\"'!\"&$J583),\"Neutral\")","v":{"$error":"#VALUE!"}},{"$f":"COUNTIF(INDIRECT(\"'\"&$B585&\"'!\"&$J583),\"Uncertain\")","v":{"$error":"#VALUE!"}},"j5",30]
[null,"Markhouse Corner NC",2,{"$f":"COUNTIF(INDIRECT(\"'\"&$B584&\"'!\"&$J584),\"Significant Positive\")","v":{"$error":"#VALUE!"}},{"$f":"COUNTIF(INDIRECT(\"'\"&$B584&\"'!\"&$J584),\"Significant Negative\")","v":{"$error":"#VALUE!"}},{"$f":"COUNTIF(INDIRECT(\"'\"&$B584&\"'!\"&$J584),\"Minor Positive\")","v":{"$error":"#VALUE!"}},{"$f":"COUNTIF(INDIRECT(\"'\"&$B584&\"'!\"&$J584),\"Minor Negative\")","v":{"$error":"#VALUE!"}},{"$f":"COUNTIF(INDIRECT(\"'\"&$B584&\"'!\"&$J584),\"Neutral\")","v":{"$error":"#VALUE!"}},{"$f":"COUNTIF(INDIRECT(\"'\"&$B584&\"'!\"&$J584),\"Uncertain\")","v":{"$error":"#VALUE!"}},"j6",30]
[null,"Markhouse Corner NC",3,{"$f":"COUNTIF(INDIRECT(\"'\"&$B585&\"'!\"&$J585),\"Significant Positive\")","v":{"$error":"#VALUE!"}},{"$f":"COUNTIF(INDIRECT(\"'\"&$B585&\"'!\"&$J585),\"Significant Negative\")","v":{"$error":"#VALUE!"}},{"$f":"COUNTIF(INDIRECT(\"'\"&$B585&\"'!\"&$J585),\"Minor Positive\")","v":{"$error":"#VALUE!"}},{"$f":"COUNTIF(INDIRECT(\"'\"&$B585&\"'!\"&$J585),\"Minor Negative\")","v":{"$error":"#VALUE!"}},{"$f":"COUNTIF(INDIRECT(\"'\"&$B585&\"'!\"&$J585),\"Neutral\")","v":{"$error":"#VALUE!"}},{"$f":"COUNTIF(INDIRECT(\"'\"&$B585&\"'!\"&$J585),\"Uncertain\")","v":{"$error":"#VALUE!"}},"j7",30]
[null,"Markhouse Corner NC",4,{"$error":"#VALUE!"},{"$error":"#VALUE!"},{"$error":"#VALUE!"},{"$error":"#VALUE!"},{"$error":"#VALUE!"},{"$error":"#VALUE!"},"j8",30]
[null,"Markhouse Corner NC",5,{"$error":"#VALUE!"},{"$error":"#VALUE!"},{"$error":"#VALUE!"},{"$error":"#VALUE!"},{"$error":"#VALUE!"},{"$error":"#VALUE!"},"j9",30]
[null,"Markhouse Corner NC",6,{"$error":"#VALUE!"},{"$error":"#VALUE!"},{"$error":"#VALUE!"},{"$error":"#VALUE!"},{"$error":"#VALUE!"},{"$error":"#VALUE!"},"j10",30]
[null,"Markhouse Corner NC",7,{"$error":"#VALUE!"},{"$error":"#VALUE!"},{"$error":"#VALUE!"},{"$error":"#VALUE!"},{"$error":"#VALUE!"},{"$error":"#VALUE!"},"j11",30]
[null,"Markhouse Corner NC",8,{"$f":"COUNTIF(INDIRECT(\"'\"&$B590&\"'!\"&$J590),\"Significant Positive\")","v":{"$error":"#VALUE!"}},{"$f":"COUNTIF(INDIRECT(\"'\"&$B590&\"'!\"&$J590),\"Significant Negative\")","v":{"$error":"#VALUE!"}},{"$f":"COUNTIF(INDIRECT(\"'\"&$B590&\"'!\"&$J590),\"Minor Positive\")","v":{"$error":"#VALUE!"}},{"$f":"COUNTIF(INDIRECT(\"'\"&$B590&\"'!\"&$J590),\"Minor Negative\")","v":{"$error":"#VALUE!"}},{"$f":"COUNTIF(INDIRECT(\"'\"&$B590&\"'!\"&$J590),\"Neutral\")","v":{"$error":"#VALUE!"}},{"$f":"COUNTIF(INDIRECT(\"'\"&$B590&\"'!\"&$J590),\"Uncertain\")","v":{"$error":"#VALUE!"}},"j12",30]
[null,"Markhouse Corner NC",9,{"$error":"#VALUE!"},{"$error":"#VALUE!"},{"$error":"#VALUE!"},{"$error":"#VALUE!"},{"$error":"#VALUE!"},{"$error":"#VALUE!"},"j13",30]
[null,"Markhouse Corner NC",10,{"$error":"#VALUE!"},{"$error":"#VALUE!"},{"$error":"#VALUE!"},{"$error":"#VALUE!"},{"$error":"#VALUE!"},{"$error":"#VALUE!"},"j14",30]
[null,"Markhouse Corner NC",11,{"$error":"#VALUE!"},{"$error":"#VALUE!"},{"$error":"#VALUE!"},{"$error":"#VALUE!"},{"$error":"#VALUE!"},{"$error":"#VALUE!"},"j15",30]
[null,"Markhouse Corner NC",12,{"$error":"#VALUE!"},{"$error":"#VALUE!"},{"$error":"#VALUE!"},{"$error":"#VALUE!"},{"$error":"#VALUE!"},{"$error":"#VALUE!"},"j16",30]
[null,"Markhouse Corner NC",13,{"$error":"#VALUE!"},{"$error":"#VALUE!"},{"$error":"#VALUE!"},{"$error":"#VALUE!"},{"$error":"#VALUE!"},{"$error":"#VALUE!"},"j17",30]
[null,"Markhouse Corner NC",14,{"$f":"COUNTIF(INDIRECT(\"'\"&$B596&\"'!\"&$J596),\"Significant Positive\")","v":{"$error":"#VALUE!"}},{"$f":"COUNTIF(INDIRECT(\"'\"&$B596&\"'!\"&$J596),\"Significant Negative\")","v":{"$error":"#VALUE!"}},{"$f":"COUNTIF(INDIRECT(\"'\"&$B596&\"'!\"&$J596),\"Minor Positive\")","v":{"$error":"#VALUE!"}},{"$f":"COUNTIF(INDIRECT(\"'\"&$B596&\"'!\"&$J596),\"Minor Negative\")","v":{"$error":"#VALUE!"}},{"$f":"COUNTIF(INDIRECT(\"'\"&$B596&\"'!\"&$J596),\"Neutral\")","v":{"$error":"#VALUE!"}},{"$f":"COUNTIF(INDIRECT(\"'\"&$B596&\"'!\"&$J596),\"Uncertain\")","v":{"$error":"#VALUE!"}},"j18",30]
[null,"Markhouse Corner NC",15,{"$error":"#VALUE!"},{"$error":"#VALUE!"},{"$error":"#VALUE!"},{"$error":"#VALUE!"},{"$error":"#VALUE!"},{"$error":"#VALUE!"},"j19",30]
[null,"Markhouse Corner NC",16,{"$error":"#VALUE!"},{"$error":"#VALUE!"},{"$error":"#VALUE!"},{"$error":"#VALUE!"},{"$error":"#VALUE!"},{"$error":"#VALUE!"},"j20",30]
[null,"Markhouse Corner NC",17,{"$error":"#VALUE!"},{"$error":"#VALUE!"},{"$error":"#VALUE!"},{"$error":"#VALUE!"},{"$error":"#VALUE!"},{"$error":"#VALUE!"},"j21",30]
[null,"Markhouse Corner NC",18,{"$error":"#VALUE!"},{"$error":"#VALUE!"},{"$error":"#VALUE!"},{"$error":"#VALUE!"},{"$error":"#VALUE!"},{"$error":"#VALUE!"},"j22",30]
[null,"Markhouse Corner NC",19,{"$error":"#VALUE!"},{"$error":"#VALUE!"},{"$error":"#VALUE!"},{"$error":"#VALUE!"},{"$error":"#VALUE!"},{"$error":"#VALUE!"},"j23",30]
[null,"Markhouse Corner NC",20,{"$error":"#VALUE!"},{"$error":"#VALUE!"},{"$error":"#VALUE!"},{"$error":"#VALUE!"},{"$error":"#VALUE!"},{"$error":"#VALUE!"},"j24",30]
[null,"Blackhorse Lane NC",1,{"$f":"COUNTIF(INDIRECT(\"'\"&$B603&\"'!\"&$J603),\"Significant Positive\")","v":{"$error":"#VALUE!"}},{"$f":"COUNTIF(INDIRECT(\"'\"&$B603&\"'!\"&$J603),\"Significant Negative\")","v":{"$error":"#VALUE!"}},{"$f":"COUNTIF(INDIRECT(\"'\"&$B603&\"'!\"&$J603),\"Minor Positive\")","v":{"$error":"#VALUE!"}},{"$f":"COUNTIF(INDIRECT(\"'\"&$B603&\"'!\"&$J603),\"Minor Negative\")","v":{"$error":"#VALUE!"}},{"$f":"COUNTIF(INDIRECT(\"'\"&$B603&\"'!\"&$J603),\"Neutral\")","v":{"$error":"#VALUE!"}},{"$f":"COUNTIF(INDIRECT(\"'\"&$B603&\"'!\"&$J603),\"Uncertain\")","v":{"$error":"#VALUE!"}},"j5",31]
[null,"Blackhorse Lane NC",2,{"$f":"COUNTIF(INDIRECT(\"'\"&$B604&\"'!\"&$J604),\"Significant Positive\")","v":{"$error":"#VALUE!"}},{"$f":"COUNTIF(INDIRECT(\"'\"&$B604&\"'!\"&$J604),\"Significant Negative\")","v":{"$error":"#VALUE!"}},{"$f":"COUNTIF(INDIRECT(\"'\"&$B604&\"'!\"&$J604),\"Minor Positive\")","v":{"$error":"#VALUE!"}},{"$f":"COUNTIF(INDIRECT(\"'\"&$B604&\"'!\"&$J604),\"Minor Negative\")","v":{"$error":"#VALUE!"}},{"$f":"COUNTIF(INDIRECT(\"'\"&$B604&\"'!\"&$J604),\"Neutral\")","v":{"$error":"#VALUE!"}},{"$f":"COUNTIF(INDIRECT(\"'\"&$B604&\"'!\"&$J604),\"Uncertain\")","v":{"$error":"#VALUE!"}},"j6",31]
[null,"Blackhorse Lane NC",3,{"$error":"#VALUE!"},{"$error":"#VALUE!"},{"$error":"#VALUE!"},{"$error":"#VALUE!"},{"$error":"#VALUE!"},{"$error":"#VALUE!"},"j7",31]
[null,"Blackhorse Lane NC",4,{"$error":"#VALUE!"},{"$error":"#VALUE!"},{"$error":"#VALUE!"},{"$error":"#VALUE!"},{"$error":"#VALUE!"},{"$error":"#VALUE!"},"j8",31]
[null,"Blackhorse Lane NC",5,{"$error":"#VALUE!"},{"$error":"#VALUE!"},{"$error":"#VALUE!"},{"$error":"#VALUE!"},{"$error":"#VALUE!"},{"$error":"#VALUE!"},"j9",31]
[null,"Blackhorse Lane NC",6,{"$error":"#VALUE!"},{"$error":"#VALUE!"},{"$error":"#VALUE!"},{"$error":"#VALUE!"},{"$error":"#VALUE!"},{"$error":"#VALUE!"},"j10",31]
[null,"Blackhorse Lane NC",7,{"$error":"#VALUE!"},{"$error":"#VALUE!"},{"$error":"#VALUE!"},{"$error":"#VALUE!"},{"$error":"#VALUE!"},{"$error":"#VALUE!"},"j11",31]
[null,"Blackhorse Lane NC",8,{"$error":"#VALUE!"},{"$error":"#VALUE!"},{"$error":"#VALUE!"},{"$error":"#VALUE!"},{"$error":"#VALUE!"},{"$error":"#VALUE!"},"j12",31]
[null,"Blackhorse Lane NC",9,{"$error":"#VALUE!"},{"$error":"#VALUE!"},{"$error":"#VALUE!"},{"$error":"#VALUE!"},{"$error":"#VALUE!"},{"$error":"#VALUE!"},"j13",31]
[null,"Blackhorse Lane NC",10,{"$error":"#VALUE!"},{"$error":"#VALUE!"},{"$error":"#VALUE!"},{"$error":"#VALUE!"},{"$error":"#VALUE!"},{"$error":"#VALUE!"},"j14",31]
[null,"Blackhorse Lane NC",11,{"$error":"#VALUE!"},{"$error":"#VALUE!"},{"$error":"#VALUE!"},{"$error":"#VALUE!"},{"$error":"#VALUE!"},{"$error":"#VALUE!"},"j15",31]
[null,"Blackhorse Lane NC",12,{"$f":"COUNTIF(INDIRECT(\"'\"&$B614&\"'!\"&$J614),\"Significant Positive\")","v":{"$error":"#VALUE!"}},{"$f":"COUNTIF(INDIRECT(\"'\"&$B614&\"'!\"&$J614),\"Significant Negative\")","v":{"$error":"#VALUE!"}},{"$f":"COUNTIF(INDIRECT(\"'\"&$B614&\"'!\"&$J614),\"Minor Positive\")","v":{"$error":"#VALUE!"}},{"$f":"COUNTIF(INDIRECT(\"'\"&$B614&\"'!\"&$J614),\"Minor Negative\")","v":{"$error":"#VALUE!"}},{"$f":"COUNTIF(INDIRECT(\"'\"&$B614&\"'!\"&$J614),\"Neutral\")","v":{"$error":"#VALUE!"}},{"$f":"COUNTIF(INDIRECT(\"'\"&$B614&\"'!\"&$J614),\"Uncertain\")","v":{"$error":"#VALUE!"}},"j16",31]
[null,"Blackhorse Lane NC",13,{"$error":"#VALUE!"},{"$error":"#VALUE!"},{"$error":"#VALUE!"},{"$error":"#VALUE!"},{"$error":"#VALUE!"},{"$error":"#VALUE!"},"j17",31]
[null,"Blackhorse Lane NC",14,{"$error":"#VALUE!"},{"$error":"#VALUE!"},{"$error":"#VALUE!"},{"$error":"#VALUE!"},{"$error":"#VALUE!"},{"$error":"#VALUE!"},"j18",31]
[null,"Blackhorse Lane NC",15,{"$error":"#VALUE!"},{"$error":"#VALUE!"},{"$error":"#VALUE!"},{"$error":"#VALUE!"},{"$error":"#VALUE!"},{"$error":"#VALUE!"},"j19",31]
[null,"Blackhorse Lane NC",16,{"$error":"#VALUE!"},{"$error":"#VALUE!"},{"$error":"#VALUE!"},{"$error":"#VALUE!"},{"$error":"#VALUE!"},{"$error":"#VALUE!"},"j20",31]
[null,"Blackhorse Lane NC",17,{"$error":"#VALUE!"},{"$error":"#VALUE!"},{"$error":"#VALUE!"},{"$error":"#VALUE!"},{"$error":"#VALUE!"},{"$error":"#VALUE!"},"j21",31]
[null,"Blackhorse Lane NC",18,{"$error":"#VALUE!"},{"$error":"#VALUE!"},{"$error":"#VALUE!"},{"$error":"#VALUE!"},{"$error":"#VALUE!"},{"$error":"#VALUE!"},"j22",31]
[null,"Blackhorse Lane NC",19,{"$error":"#VALUE!"},{"$error":"#VALUE!"},{"$error":"#VALUE!"},{"$error":"#VALUE!"},{"$error":"#VALUE!"},{"$error":"#VALUE!"},"j23",31]
[null,"Blackhorse Lane NC",20,{"$error":"#VALUE!"},{"$error":"#VALUE!"},{"$error":"#VALUE!"},{"$error":"#VALUE!"},{"$error":"#VALUE!"},{"$error":"#VALUE!"},"j24",31]
[null,"Chingford Mount NC",1,{"$f":"COUNTIF(INDIRECT(\"'\"&$B623&\"'!\"&$J623),\"Significant Positive\")","v":{"$error":"#VALUE!"}},{"$f":"COUNTIF(INDIRECT(\"'\"&$B623&\"'!\"&$J623),\"Significant Negative\")","v":{"$error":"#VALUE!"}},{"$f":"COUNTIF(INDIRECT(\"'\"&$B623&\"'!\"&$J623),\"Minor Positive\")","v":{"$error":"#VALUE!"}},{"$f":"COUNTIF(INDIRECT(\"'\"&$B623&\"'!\"&$J623),\"Minor Negative\")","v":{"$error":"#VALUE!"}},{"$f":"COUNTIF(INDIRECT(\"'\"&$B623&\"'!\"&$J623),\"Neutral\")","v":{"$error":"#VALUE!"}},{"$f":"COUNTIF(INDIRECT(\"'\"&$B623&\"'!\"&$J623),\"Uncertain\")","v":{"$error":"#VALUE!"}},"j5",32]
[null,"Chingford Mount NC",2,{"$f":"COUNTIF(INDIRECT(\"'\"&$B624&\"'!\"&$J624),\"Significant Positive\")","v":{"$error":"#VALUE!"}},{"$f":"COUNTIF(INDIRECT(\"'\"&$B624&\"'!\"&$J624),\"Significant Negative\")","v":{"$error":"#VALUE!"}},{"$f":"COUNTIF(INDIRECT(\"'\"&$B624&\"'!\"&$J624),\"Minor Positive\")","v":{"$error":"#VALUE!"}},{"$f":"COUNTIF(INDIRECT(\"'\"&$B624&\"'!\"&$J624),\"Minor Negative\")","v":{"$error":"#VALUE!"}},{"$f":"COUNTIF(INDIRECT(\"'\"&$B624&\"'!\"&$J624),\"Neutral\")","v":{"$error":"#VALUE!"}},{"$f":"COUNTIF(INDIRECT(\"'\"&$B624&\"'!\"&$J624),\"Uncertain\")","v":{"$error":"#VALUE!"}},"j6",32]
[null,"Chingford Mount NC",3,{"$error":"#VALUE!"},{"$error":"#VALUE!"},{"$error":"#VALUE!"},{"$error":"#VALUE!"},{"$error":"#VALUE!"},{"$error":"#VALUE!"},"j7",32]
[null,"Chingford Mount NC",4,{"$error":"#VALUE!"},{"$error":"#VALUE!"},{"$error":"#VALUE!"},{"$error":"#VALUE!"},{"$error":"#VALUE!"},{"$error":"#VALUE!"},"j8",32]
[null,"Chingford Mount NC",5,{"$error":"#VALUE!"},{"$error":"#VALUE!"},{"$error":"#VALUE!"},{"$error":"#VALUE!"},{"$error":"#VALUE!"},{"$error":"#VALUE!"},"j9",32]
[null,"Chingford Mount NC",6,{"$error":"#VALUE!"},{"$error":"#VALUE!"},{"$error":"#VALUE!"},{"$error":"#VALUE!"},{"$error":"#VALUE!"},{"$error":"#VALUE!"},"j10",32]
[null,"Chingford Mount NC",7,{"$error":"#VALUE!"},{"$error":"#VALUE!"},{"$error":"#VALUE!"},{"$error":"#VALUE!"},{"$error":"#VALUE!"},{"$error":"#VALUE!"},"j11",32]
[null,"Chingford Mount NC",8,{"$error":"#VALUE!"},{"$error":"#VALUE!"},{"$error":"#VALUE!"},{"$error":"#VALUE!"},{"$error":"#VALUE!"},{"$error":"#VALUE!"},"j12",32]
[null,"Chingford Mount NC",9,{"$error":"#VALUE!"},{"$error":"#VALUE!"},{"$error":"#VALUE!"},{"$error":"#VALUE!"},{"$error":"#VALUE!"},{"$error":"#VALUE!"},"j13",32]
[null,"Chingford Mount NC",10,{"$f":"COUNTIF(INDIRECT(\"'\"&$B632&\"'!\"&$J632),\"Significant Positive\")","v":{"$error":"#VALUE!"}},{"$f":"COUNTIF(INDIRECT(\"'\"&$B632&\"'!\"&$J632),\"Significant Negative\")","v":{"$error":"#VALUE!"}},{"$f":"COUNTIF(INDIRECT(\"'\"&$B632&\"'!\"&$J632),\"Minor Positive\")","v":{"$error":"#VALUE!"}},{"$f":"COUNTIF(INDIRECT(\"'\"&$B632&\"'!\"&$J632),\"Minor Negative\")","v":{"$error":"#VALUE!"}},{"$f":"COUNTIF(INDIRECT(\"'\"&$B632&\"'!\"&$J632),\"Neutral\")","v":{"$error":"#VALUE!"}},{"$f":"COUNTIF(INDIRECT(\"'\"&$B632&\"'!\"&$J632),\"Uncertain\")","v":{"$error":"#VALUE!"}},"j14",32]
[null,"Chingford Mount NC",11,{"$error":"#VALUE!"},{"$error":"#VALUE!"},{"$error":"#VALUE!"},{"$error":"#VALUE!"},{"$error":"#VALUE!"},{"$error":"#VALUE!"},"j15",32]
[null,"Chingford Mount NC",12,{"$error":"#VALUE!"},{"$error":"#VALUE!"},{"$error":"#VALUE!"},{"$error":"#VALUE!"},{"$error":"#VALUE!"},{"$error":"#VALUE!"},"j16",32]
[null,"Chingford Mount NC",13,{"$error":"#VALUE!"},{"$error":"#VALUE!"},{"$error":"#VALUE!"},{"$error":"#VALUE!"},{"$error":"#VALUE!"},{"$error":"#VALUE!"},"j17",32]
[null,"Chingford Mount NC",14,{"$error":"#VALUE!"},{"$error":"#VALUE!"},{"$error":"#VALUE!"},{"$error":"#VALUE!"},{"$error":"#VALUE!"},{"$error":"#VALUE!"},"j18",32]
[null,"Chingford Mount NC",15,{"$error":"#VALUE!"},{"$error":"#VALUE!"},{"$error":"#VALUE!"},{"$error":"#VALUE!"},{"$error":"#VALUE!"},{"$error":"#VALUE!"},"j19",32]
[null,"Chingford Mount NC",16,{"$error":"#VALUE!"},{"$error":"#VALUE!"},{"$error":"#VALUE!"},{"$error":"#VALUE!"},{"$error":"#VALUE!"},{"$error":"#VALUE!"},"j20",32]
[null,"Chingford Mount NC",17,{"$error":"#VALUE!"},{"$error":"#VALUE!"},{"$error":"#VALUE!"},{"$error":"#VALUE!"},{"$error":"#VALUE!"},{"$error":"#VALUE!"},"j21",32]
[null,"Chingford Mount NC",18,{"$error":"#VALUE!"},{"$error":"#VALUE!"},{"$error":"#VALUE!"},{"$error":"#VALUE!"},{"$error":"#VALUE!"},{"$error":"#VALUE!"},"j22",32]
[null,"Chingford Mount NC",19,{"$error":"#VALUE!"},{"$error":"#VALUE!"},{"$error":"#VALUE!"},{"$error":"#VALUE!"},{"$error":"#VALUE!"},{"$error":"#VALUE!"},"j23",32]
[null,"Chingford Mount NC",20,{"$error":"#VALUE!"},{"$error":"#VALUE!"},{"$error":"#VALUE!"},{"$error":"#VALUE!"},{"$error":"#VALUE!"},{"$error":"#VALUE!"},"j24",32]
[null,"Thatched House NC",1,{"$f":"COUNTIF(INDIRECT(\"'\"&$B643&\"'!\"&$J643),\"Significant Positive\")","v":{"$error":"#VALUE!"}},{"$f":"COUNTIF(INDIRECT(\"'\"&$B643&\"'!\"&$J643),\"Significant Negative\")","v":{"$error":"#VALUE!"}},{"$f":"COUNTIF(INDIRECT(\"'\"&$B643&\"'!\"&$J643),\"Minor Positive\")","v":{"$error":"#VALUE!"}},{"$f":"COUNTIF(INDIRECT(\"'\"&$B643&\"'!\"&$J643),\"Minor Negative\")","v":{"$error":"#VALUE!"}},{"$f":"COUNTIF(INDIRECT(\"'\"&$B643&\"'!\"&$J643),\"Neutral\")","v":{"$error":"#VALUE!"}},{"$f":"COUNTIF(INDIRECT(\"'\"&$B643&\"'!\"&$J643),\"Uncertain\")","v":{"$error":"#VALUE!"}},"j5",33]
[null,"Thatched House NC",2,{"$f":"COUNTIF(INDIRECT(\"'\"&$B644&\"'!\"&$J644),\"Significant Positive\")","v":{"$error":"#VALUE!"}},{"$f":"COUNTIF(INDIRECT(\"'\"&$B644&\"'!\"&$J644),\"Significant Negative\")","v":{"$error":"#VALUE!"}},{"$f":"COUNTIF(INDIRECT(\"'\"&$B644&\"'!\"&$J644),\"Minor Positive\")","v":{"$error":"#VALUE!"}},{"$f":"COUNTIF(INDIRECT(\"'\"&$B644&\"'!\"&$J644),\"Minor Negative\")","v":{"$error":"#VALUE!"}},{"$f":"COUNTIF(INDIRECT(\"'\"&$B644&\"'!\"&$J644),\"Neutral\")","v":{"$error":"#VALUE!"}},{"$f":"COUNTIF(INDIRECT(\"'\"&$B644&\"'!\"&$J644),\"Uncertain\")","v":{"$error":"#VALUE!"}},"j6",33]
[null,"Thatched House NC",3,{"$error":"#VALUE!"},{"$error":"#VALUE!"},{"$error":"#VALUE!"},{"$error":"#VALUE!"},{"$error":"#VALUE!"},{"$error":"#VALUE!"},"j7",33]
[null,"Thatched House NC",4,{"$error":"#VALUE!"},{"$error":"#VALUE!"},{"$error":"#VALUE!"},{"$error":"#VALUE!"},{"$error":"#VALUE!"},{"$error":"#VALUE!"},"j8",33]
[null,"Thatched House NC",5,{"$f":"COUNTIF(INDIRECT(\"'\"&$B647&\"'!\"&$J647),\"Significant Positive\")","v":{"$error":"#VALUE!"}},{"$f":"COUNTIF(INDIRECT(\"'\"&$B647&\"'!\"&$J647),\"Significant Negative\")","v":{"$error":"#VALUE!"}},{"$f":"COUNTIF(INDIRECT(\"'\"&$B647&\"'!\"&$J647),\"Minor Positive\")","v":{"$error":"#VALUE!"}},{"$f":"COUNTIF(INDIRECT(\"'\"&$B647&\"'!\"&$J647),\"Minor Negative\")","v":{"$error":"#VALUE!"}},{"$f":"COUNTIF(INDIRECT(\"'\"&$B647&\"'!\"&$J647),\"Neutral\")","v":{"$error":"#VALUE!"}},{"$f":"COUNTIF(INDIRECT(\"'\"&$B647&\"'!\"&$J647),\"Uncertain\")","v":{"$error":"#VALUE!"}},"j9",33]
[null,"Thatched House NC",6,{"$error":"#VALUE!"},{"$error":"#VALUE!"},{"$error":"#VALUE!"},{"$error":"#VALUE!"},{"$error":"#VALUE!"},{"$error":"#VALUE!"},"j10",33]
[null,"Thatched House NC",7,{"$error":"#VALUE!"},{"$error":"#VALUE!"},{"$error":"#VALUE!"},{"$error":"#VALUE!"},{"$error":"#VALUE!"},{"$error":"#VALUE!"},"j11",33]
[null,"Thatched House NC",8,{"$error":"#VALUE!"},{"$error":"#VALUE!"},{"$error":"#VALUE!"},{"$error":"#VALUE!"},{"$error":"#VALUE!"},{"$error":"#VALUE!"},"j12",33]
[null,"Thatched House NC",9,{"$error":"#VALUE!"},{"$error":"#VALUE!"},{"$error":"#VALUE!"},{"$error":"#VALUE!"},{"$error":"#VALUE!"},{"$error":"#VALUE!"},"j13",33]
[null,"Thatched House NC",10,{"$error":"#VALUE!"},{"$error":"#VALUE!"},{"$error":"#VALUE!"},{"$error":"#VALUE!"},{"$error":"#VALUE!"},{"$error":"#VALUE!"},"j14",33]
[null,"Thatched House NC",11,{"$error":"#VALUE!"},{"$error":"#VALUE!"},{"$error":"#VALUE!"},{"$error":"#VALUE!"},{"$error":"#VALUE!"},{"$error":"#VALUE!"},"j15",33]
[null,"Thatched House NC",12,{"$error":"#VALUE!"},{"$error":"#VALUE!"},{"$error":"#VALUE!"},{"$error":"#VALUE!"},{"$error":"#VALUE!"},{"$error":"#VALUE!"},"j16",33]
[null,"Thatched House NC",13,{"$f":"COUNTIF(INDIRECT(\"'\"&$B655&\"'!\"&$J655),\"Significant Positive\")","v":{"$error":"#VALUE!"}},{"$f":"COUNTIF(INDIRECT(\"'\"&$B655&\"'!\"&$J655),\"Significant Negative\")","v":{"$error":"#VALUE!"}},{"$f":"COUNTIF(INDIRECT(\"'\"&$B655&\"'!\"&$J655),\"Minor Positive\")","v":{"$error":"#VALUE!"}},{"$f":"COUNTIF(INDIRECT(\"'\"&$B655&\"'!\"&$J655),\"Minor Negative\")","v":{"$error":"#VALUE!"}},{"$f":"COUNTIF(INDIRECT(\"'\"&$B655&\"'!\"&$J655),\"Neutral\")","v":{"$error":"#VALUE!"}},{"$f":"COUNTIF(INDIRECT(\"'\"&$B655&\"'!\"&$J655),\"Uncertain\")","v":{"$error":"#VALUE!"}},"j17",33]
[null,"Thatched House NC",14,{"$error":"#VALUE!"},{"$error":"#VALUE!"},{"$error":"#VALUE!"},{"$error":"#VALUE!"},{"$error":"#VALUE!"},{"$error":"#VALUE!"},"j18",33]
[null,"Thatched House NC",15,{"$error":"#VALUE!"},{"$error":"#VALUE!"},{"$error":"#VALUE!"},{"$error":"#VALUE!"},{"$error":"#VALUE!"},{"$error":"#VALUE!"},"j19",33]
[null,"Thatched House NC",16,{"$error":"#VALUE!"},{"$error":"#VALUE!"},{"$error":"#VALUE!"},{"$error":"#VALUE!"},{"$error":"#VALUE!"},{"$error":"#VALUE!"},"j20",33]
[null,"Thatched House NC",17,{"$error":"#VALUE!"},{"$error":"#VALUE!"},{"$error":"#VALUE!"},{"$error":"#VALUE!"},{"$error":"#VALUE!"},{"$error":"#VALUE!"},"j21",33]
[null,"Thatched House NC",18,{"$error":"#VALUE!"},{"$error":"#VALUE!"},{"$error":"#VALUE!"},{"$error":"#VALUE!"},{"$error":"#VALUE!"},{"$error":"#VALUE!"},"j22",33]
[null,"Thatched House NC",19,{"$f":"COUNTIF(INDIRECT(\"'\"&$B661&\"'!\"&$J661),\"Significant Positive\")","v":{"$error":"#VALUE!"}},{"$f":"COUNTIF(INDIRECT(\"'\"&$B661&\"'!\"&$J661),\"Significant Negative\")","v":{"$error":"#VALUE!"}},{"$f":"COUNTIF(INDIRECT(\"'\"&$B661&\"'!\"&$J661),\"Minor Positive\")","v":{"$error":"#VALUE!"}},{"$f":"COUNTIF(INDIRECT(\"'\"&$B661&\"'!\"&$J661),\"Minor Negative\")","v":{"$error":"#VALUE!"}},{"$f":"COUNTIF(INDIRECT(\"'\"&$B661&\"'!\"&$J661),\"Neutral\")","v":{"$error":"#VALUE!"}},{"$f":"COUNTIF(INDIRECT(\"'\"&$B661&\"'!\"&$J661),\"Uncertain\")","v":{"$error":"#VALUE!"}},"j23",33]
[null,"Thatched House NC",20,{"$error":"#VALUE!"},{"$error":"#VALUE!"},{"$error":"#VALUE!"},{"$error":"#VALUE!"},{"$error":"#VALUE!"},{"$error":"#VALUE!"},"j24",33]

{"sheet":"Pivot Chart","index":10,"n_rows":9,"n_cols":2,"rows_kept":9,"cut":false,"hidden":true,"merged":[]}
["Site Name","Thatched House NC"]
[]
["Values"]
["Sum of Uncertain",{"$error":"#REF!"}]
["Sum of Neutral",{"$error":"#REF!"}]
["Sum of Minor Negative",{"$error":"#REF!"}]
["Sum of Minor Positive",{"$error":"#REF!"}]
["Sum of Significant Negative",{"$error":"#REF!"}]
["Sum of Significant Positive",{"$error":"#REF!"}]